{"text_format":"1","workbook":"xlsx","n_sheets":13,"sheets":["Main Sheet","MyDesigns","Demos","FullControlPaperExamples","RepFeatList","RecycleBin","FeatParams","Printpath","StartGCODE","EndGCODE","ToolGCODE","GCODE","Changelog"],"not_rendered":{"charts":0,"images":1,"macros":1,"external_links":0,"defined_names":15,"comments":3,"pivot_tables":0},"unopened":[],"bounds":{"document_bytes":16777216,"sheet_cells":100000,"rows_first":2000,"rows_last":500,"rows_between":2000,"halvings":0,"cell_chars":16384,"cell_head_chars":4096},"cells_cut":0,"cells_raw":0,"read":"whole","date_system":"1900"}

{"sheet":"Main Sheet","index":0,"n_rows":48,"n_cols":34,"rows_kept":48,"cut":false,"hidden":false,"merged":[[0,1,0,5]]}
[]
[]
[null,null,null,null,null,null,null,null,";GCODE generated with FullControl GCODE Designer software - contact Andy Gleadall (a.gleadall@lboro.ac.uk) for more information"]
[]
[null,null,null,null,null,null,null,null,null,null,null,null,null,null,null,null,null,null,null,"Recycle bin designs:",{"$f":"COUNTA(RecycleBin!#REF!)","v":1}]
["Design ID:","MyFirstDesign_v01","Save to sheet:","MyDesigns"]
["Feature",null,null,null,null,null,null,null,null,null,null,null,null,null,null,null,"Comments"]
[1,"Rectangle",{"$f":"x_start","v":50},{"$f":"y_start","v":50},{"$f":"x_start +x_size","v":70},{"$f":"\"R\"&y_size","v":"R20"},0,"CW",{"$f":"EW","v":0.5},{"$f":"EH","v":0.2},"F=1000",null,null,null,null,null,"perimeter",null,"Settings"]
[2,"Line","Cartesian","R0","R0","R0","R0",{"$f":"\"R\"&cell_size","v":"R2.5"},"R0","Print",{"$f":"EW","v":0.5},{"$f":"EH","v":0.2},"F=1000",null,null,null,"line up size",null,"Zoffset",0.2,"mm"]
[3,"Line","Cartesian","R0","R0","R0",{"$f":"\"R\"&x_size","v":"R20"},"R0","R0","Print",{"$f":"EW","v":0.5},{"$f":"EH","v":0.2},"F=1000",null,null,null,"line across to right",null,"FirstLayerExtrusionMultiplier",1,"no units"]
[4,"Line","Cartesian","R0","R0","R0","R0",{"$f":"\"R\"&cell_size","v":"R2.5"},"R0","Print",{"$f":"EW","v":0.5},{"$f":"EH","v":0.2},"F=1000",null,null,null,"line up other size",null,"FirstLayerNozzleSpeedMultiplier",1,"no units"]
[5,"Line","Cartesian","R0","R0","R0",{"$f":"\"R\"&-x_size","v":"R-20"},"R0","R0","Print",{"$f":"EW","v":0.5},{"$f":"EH","v":0.2},"F=1000",null,null,null,"line across to left",null,"ToolChange ID","Default",null,"Default","Default","Default","Default","Default","Default","Raise3D_2nozzle","Tool changer","Default","Default","Default","Default","Default"]
[6,"Cartesian repeat","2-5",0,{"$f":"2*cell_size","v":5},0,{"$f":"(y_size/(2*cell_size))-2","v":2},null,null,null,null,null,null,null,null,null,"repeat until no more unit-cell-pairs can be done",null,"Start tool  (after StartGCODE)",0]
[7,"Cartesian repeat","2-4",0,{"$f":"(((y_size/(2*cell_size))-2)+1)*(2*cell_size)","v":15},0,1,null,null,null,null,null,null,null,null,null,"finish off this square-wave with the final partial unit cell"]
[8,"Reflect","2-7","XY",{"$f":"x_start","v":50},{"$f":"y_start","v":50},{"$f":"x_start+x_size","v":70},{"$f":"y_start+y_size","v":70},null,null,null,null,null,null,null,null,null,null,"BedTemp",60,"C",60,60,60,60,60,60,60,60,60,60,60,60,60]
[9,"Postprocess",8,"OffsetLinear",0,0,{"$f":"IF(half_layer_offset=\"yes\",EH/2,0)","v":0.1},"YES","YES",null,null,null,null,null,null,null,null,null,"NozzleFeedratePrinting",1000,"mm/min"]
[10,"Cartesian repeat","1-9",0,0,{"$f":"EH","v":0.2},{"$f":"layers-1","v":9},null,null,null,null,null,null,null,null,null,null,null,"NozzleFeedrateTravelling",9000,"mm/min"]
[11,null,null,null,null,null,null,null,null,null,null,null,null,null,null,null,null,null,"NozzleTemp",210,"C",210,210,210,215,220,210,210,210,210,210,210,210,210]
[12,null,null,null,null,null,null,null,null,null,null,null,null,null,null,null,null,null,"FeedstockFilamentDiameter",2.85,"mm",2.85,1.75,1.75,1.75,1.75,1.75,1.75,1.75,1.75,1.75,1.75,2.85,1.75]
[13,null,null,null,null,null,null,null,null,null,null,null,null,null,null,null,null,null,"ExtrusionUnits","mm3","mm OR mm3","mm3","mm","mm","mm","mm","mm","mm","mm","mm","mm","mm","mm3","mm"]
[14,null,null,null,null,null,null,null,null,null,null,null,null,null,null,null,null,null,"StartGCODE ID","ULTI2+_Temps&Fan",null,"ULTI2+_Temps&Fan","Ender 3","CR-10","PrusaMini","AnycubicMegaS","Raise3D_1nozzle","Raise3D_2nozzle","ToolChanger_T0T2","Snapmaker 2_A350","REPRAP X400","Voxel8","Ultimaker3","Artillery Genius"]
[15,null,null,null,null,null,null,null,null,null,null,null,null,null,null,null,null,null,"EndGCODE ID","ULTI2+_1",null,"ULTI2+_1","Ender 3","CR-10","PrusaMini","AnycubicMegaS","Raise3D_1nozzle","Raise3D_2nozzle","ToolChanger_T0T2","Snapmaker 2_A350","REPRAP X400","Voxel8","Ultimaker3","Artillery Genius"]
[16,null,null,null,null,null,null,null,null,null,null,null,null,null,null,null,null,null,"Start X (after StartGCODE)",20,"mm"]
[17,null,null,null,null,null,null,null,null,null,null,null,null,null,null,null,null,null,"Start Y (after StartGCODE)",10,"mm"]
[18,null,null,null,null,null,null,null,null,null,null,null,null,null,null,null,null,null,"Start Z (after StartGCODE)",0.3,"mm"]
[19,null,null,null,null,null,null,null,null,null,null,null,null,null,null,null,null,null,"FanSpeed",0]
[20,null,null,null,null,null,null,null,null,null,null,null,null,null,null,null,null,null,"AutoTravelRetraction?","no","yes/no"]
[21,null,null,null,null,null,null,null,null,null,null,null,null,null,null,null,null,null," - Threshold distance",5,"mm"]
[22,null,null,null,null,null,null,null,null,null,null,null,null,null,null,null,null,null," - Retraction (E-value)",7,"mm OR mm3"]
[23,null,null,null,null,null,null,null,null,null,null,null,null,null,null,null,null,null," - Retraction speed (F-value)",2500,"mm/min"]
[24,null,null,null,null,null,null,null,null,null,null,null,null,null,null,null,null,null," - Unretraction (E-value)",{"$f":"-T29","v":-7},"mm OR mm3"]
[25,null,null,null,null,null,null,null,null,null,null,null,null,null,null,null,null,null," - Unretraction speed (F-value)",{"$f":"T30","v":2500},"mm/min"]
[26,null,null,null,null,null,null,null,null,null,null,null,null,null,null,null,null,null," - Z-hop",0.2,"mm"]
[27,null,null,null,null,null,null,null,null,null,null,null,null,null,null,null,null,null," - Z-hop speed (F-value)",7500,"mm/min"]
[28]
[29,null,null,null,null,null,null,null,null,null,null,null,null,null,null,null,null,null,"Parameter name","Parameter value","Units"]
[30,null,null,null,null,null,null,null,null,null,null,null,null,null,null,null,null,null,"layers",10]
[31,null,null,null,null,null,null,null,null,null,null,null,null,null,null,null,null,null,"size",20]
[32,null,null,null,null,null,null,null,null,null,null,null,null,null,null,null,null,null,"x_start",50,"mm"]
[33,null,null,null,null,null,null,null,null,null,null,null,null,null,null,null,null,null,"y_start",50,"mm"]
[34]
[35,null,null,null,null,null,null,null,null,null,null,null,null,null,null,null,null,null,"EW",0.5,"mm"]
[36,null,null,null,null,null,null,null,null,null,null,null,null,null,null,null,null,null,"EH",0.2,"mm"]
[37,null,null,null,null,null,null,null,null,null,null,null,null,null,null,null,null,null,"cell_size",2.5,"mm"]
[38,null,null,null,null,null,null,null,null,null,null,null,null,null,null,null,null,null,"half_layer_offset","yes","yes/no"]
[39]
[40,null,null,null,null,null,null,null,null,null,null,null,null,null,null,null,null,null,"x_size",{"$f":"size","v":20},"mm"]
[null,null,null,null,null,null,null,null,null,null,null,null,null,null,null,null,null,null,"y_size",{"$f":"size","v":20},"mm"]

{"sheet":"MyDesigns","index":1,"n_rows":0,"n_cols":0,"rows_kept":0,"cut":false,"hidden":false,"merged":[]}

{"sheet":"Demos","index":2,"n_rows":135,"n_cols":46,"rows_kept":135,"cut":false,"hidden":false,"merged":[]}
[]
[]
["Design ID:","Flow mixer","Save to sheet:","Demos",null,null,null,null,null,null,null,null,null,null,null,null,null,null,null,null,null,null,null,null,null,null,null,null,null,null,null,null,null,null,null,null,null,null,null,null,"Save data (DO NOT DELETE):","Save time: 24/07/2020 08:01:19","Design ID:","Flow mixer","Save to sheet:","Demos"]
["Feature",null,null,null,null,null,null,null,null,null,null,null,null,null,null,null,"Comments"]
[1,"Circle/arc",50,50,0,3,0,360,"CW",32,0.4,0.2,null,null,null,null,"Outer tube",null,"Settings"]
[2,"Line","Cartesian","R0","R0","R0","R-6","R0","R0","Print",0.4,0.2,null,null,null,null,"Line across",null,"Zoffset",0.2,"mm"]
[3,"Cartesian repeat","1-2",0,0,0.2,150,null,null,null,null,null,null,null,null,null,"Repeate for many layers",null,"FirstLayerExtrusionMultiplier",1,"no units"]
[4,"SKIP_Repeat rule",3,"1-2",1,50,"OffsetPolarIncrement",50,50,{"$f":"90/50","v":1.8},0,"YES","YES",null,null,null,"Twist first section",null,"FirstLayerNozzleSpeedMultiplier",1,"no units"]
[5,"SKIP_Repeat rule",3,"1-2",51,100,"OffsetPolarIncrement",50,50,{"$f":"-90/50","v":-1.8},0,"YES","YES",null,null,null,"Twist second section",null,"ToolChange ID","Default"]
[6,"SKIP_Repeat rule",3,"1-2",101,150,"OffsetPolarIncrement",50,50,{"$f":"90/50","v":1.8},0,"YES","YES",null,null,null,"Twist third section",null,"Start tool  (after StartGCODE)",0]
[7,"SKIP_Postprocess","Y3.51,Y3.101,N1","OffsetPolar",50,50,0,0.4,"YES","YES",null,null,null,null,null,null,"Extend brindge lines"]
[8,"SKIP_Repeat rule",3,"1-2",1,150,"OffsetPolarMaths",50,50,0,"(0.5+0.5*COS(((REPval/50)*(2*PI()))-PI()))*2",0,"YES","YES",null,null,"Fluctuate diameter",null,"BedTemp",60,"C"]
[9,"SKIP_Repeat rule",3,"1-2",1,150,"OffsetLinearMaths","(0.5+0.5*COS(((REPval/150)*(2*PI()))-PI()))*3",0,0,"YES","YES",null,null,null,null,"Deviate around components",null,"NozzleFeedratePrinting",1000,"mm/min"]
[10,"SKIP_Repeat rule",3,"1-2",151,200,"OffsetPolarMaths",50,50,0,"((sin(2*Aval-(pi()/2)))*0.08+0.02)*REPval",0,"YES","YES",null,null,null,null,"NozzleFeedrateTravelling",9000,"mm/min"]
[11,"SKIP_Repeat rule",3,"1-2",151,200,"OffsetLinearMaths",0,0,"((xval-50)/20)*(0.2*REPval)","YES","YES",null,null,null,null,null,null,"NozzleTemp",210,"C"]
[12,null,null,null,null,null,null,null,null,null,null,null,null,null,null,null,null,null,"FeedstockFilamentDiameter",2.85,"mm"]
[13,null,null,null,null,null,null,null,null,null,null,null,null,null,null,null,null,null,"ExtrusionUnits","mm3","mm OR mm3"]
[14,null,null,null,null,null,null,null,null,null,null,null,null,null,null,null,null,null,"StartGCODE ID","ULTI2+_Temps&Fan"]
[15,null,null,null,null,null,null,null,null,null,null,null,null,null,null,null,null,null,"EndGCODE ID","ULTI2+_1"]
[null,null,null,null,null,null,null,null,null,null,null,null,null,null,null,null,null,null,"Start X (after StartGCODE)",20,"mm"]
[null,null,null,null,null,null,null,null,null,null,null,null,null,null,null,null,null,null,"Start Y (after StartGCODE)",10,"mm"]
[null,null,null,null,null,null,null,null,null,null,null,null,null,null,null,null,null,null,"Start Z (after StartGCODE)",0.3,"mm"]
[null,null,null,null,null,null,null,null,null,null,null,null,null,null,null,null,null,null,"FanSpeed",0]
[null,null,null,null,null,null,null,null,null,null,null,null,null,null,null,null,null,null,"AutoTravelRetraction?","no","yes/no"]
[null,null,null,null,null,null,null,null,null,null,null,null,null,null,null,null,null,null," - Threshold distance",5,"mm"]
[null,null,null,null,null,null,null,null,null,null,null,null,null,null,null,null,null,null," - Retraction (E-value)",7,"mm OR mm3"]
[null,null,null,null,null,null,null,null,null,null,null,null,null,null,null,null,null,null," - Retraction speed (F-value)",2500,"mm/min"]
[null,null,null,null,null,null,null,null,null,null,null,null,null,null,null,null,null,null," - Unretraction (E-value)",{"$f":"-T26","v":-7},"mm OR mm3"]
[null,null,null,null,null,null,null,null,null,null,null,null,null,null,null,null,null,null," - Unretraction speed (F-value)",{"$f":"T27","v":2500},"mm/min"]
[null,null,null,null,null,null,null,null,null,null,null,null,null,null,null,null,null,null," - Z-hop",0.2,"mm"]
[null,null,null,null,null,null,null,null,null,null,null,null,null,null,null,null,null,null," - Z-hop speed (F-value)",7500,"mm/min"]
[]
[null,null,null,null,null,null,null,null,null,null,null,null,null,null,null,null,null,null,"Parameter name","Parameter value","Units"]
[null,null,null,null,null,null,null,null,null,null,null,null,null,null,null,null,null,null,null,null," "]
[null,null,null,null,null,null,null,null,null,null,null,null,null,null,null,null,null,null,null,null," "]
[]
["Design ID:","String Calibration","Save to sheet:","Demos",null,null,null,null,null,null,null,null,null,null,null,null,null,null,null,null,null,null,null,null,null,null,null,null,null,null,null,null,null,null,null,null,null,null,null,null,"Save data (DO NOT DELETE):","Save time: 27/07/2020 09:05:06","Design ID:","String Calibration","Save to sheet:","Demos"]
["Feature",null,null,null,null,null,null,null,null,null,null,null,null,null,null,null,"Comments"]
[1,"Rectangle",50,50,"R50","R20",0,"CW",0.4,0.2,null,null,null,null,null,null,"Rectangle base",null,"Settings"]
[2,"Line","Cartesian","R0","R0","R0","R5","R0","R0","Travel",null,null,null,null,null,null,"Move to start (5mm right)",null,"Zoffset",0.2,"mm"]
[3,"Custom GCODE","G1 E",1," F",2000,null,null,null,null,null,null,null,null,null,null,null,null,"FirstLayerExtrusionMultiplier",1,"no units"]
[4,"Line","Cartesian","R0","R0","R0","R0","R0","R0.3","Travel",0,0,"F=500",null,null,null,"Move up",null,"FirstLayerNozzleSpeedMultiplier",1,"no units"]
[5,"Line","Cartesian","R0","R0","R0","R0","R20","R0","Travel",0,0,"F=6000",null,null,null,"Move across",null,"ToolChange ID","Default"]
[6,"Line","Cartesian","R0","R0","R0","R0","R0","R-0.3","Travel",0,0,"F=500",null,null,null,"Move down",null,"Start tool  (after StartGCODE)",0]
[7,"Line","Cartesian","R0","R0","R0","R2","R0","R0","Travel",0,0,"F=500",null,null,null,"Move sideways to begin next string"]
[8,"Custom GCODE","G1 E",1," F",2000,null,null,null,null,null,null,null,null,null,null,null,null,"BedTemp",60,"C"]
[9,"Line","Cartesian","R0","R0","R0","R0","R0","R0.3","Travel",0,0,"F=500",null,null,null,"Move up",null,"NozzleFeedratePrinting",1000,"mm/min"]
[10,"Line","Cartesian","R0","R0","R0","R0","R-20","R0","Travel",0,0,"F=6000",null,null,null,"Move across",null,"NozzleFeedrateTravelling",9000,"mm/min"]
[11,"Line","Cartesian","R0","R0","R0","R0","R0","R-0.3","Travel",0,0,"F=500",null,null,null,"Move down",null,"NozzleTemp",210,"C"]
[12,"Line","Cartesian","R0","R0","R0","R2","R0","R0","Travel",0,0,"F=500",null,null,null,"Move sideways to begin next string",null,"FeedstockFilamentDiameter",2.85,"mm"]
[13,"Cartesian repeat","3-12",4,0,0,9,null,null,null,null,null,null,null,null,null,"Repeat strings",null,"ExtrusionUnits","mm3","mm OR mm3"]
[14,"Repeat rule",13,"3,8",1,{"$f":"G51","v":9},"GenericParameterIncrement",3,0.5,null,null,null,null,null,null,null,"Vary amount of extrusion",null,"StartGCODE ID","ULTI2+_Temps&Fan"]
[15,null,null,null,null,null,null,null,null,null,null,null,null,null,null,null,null,null,"EndGCODE ID","ULTI2+_1"]
[null,null,null,null,null,null,null,null,null,null,null,null,null,null,null,null,null,null,"Start X (after StartGCODE)",20,"mm"]
[null,null,null,null,null,null,null,null,null,null,null,null,null,null,null,null,null,null,"Start Y (after StartGCODE)",10,"mm"]
[null,null,null,null,null,null,null,null,null,null,null,null,null,null,null,null,null,null,"Start Z (after StartGCODE)",0.3,"mm"]
[null,null,null,null,null,null,null,null,null,null,null,null,null,null,null,null,null,null,"FanSpeed",0]
[null,null,null,null,null,null,null,null,null,null,null,null,null,null,null,null,null,null,"AutoTravelRetraction?","no","yes/no"]
[null,null,null,null,null,null,null,null,null,null,null,null,null,null,null,null,null,null," - Threshold distance",5,"mm"]
[null,null,null,null,null,null,null,null,null,null,null,null,null,null,null,null,null,null," - Retraction (E-value)",7,"mm OR mm3"]
[null,null,null,null,null,null,null,null,null,null,null,null,null,null,null,null,null,null," - Retraction speed (F-value)",2500,"mm/min"]
[null,null,null,null,null,null,null,null,null,null,null,null,null,null,null,null,null,null," - Unretraction (E-value)",{"$f":"-T60","v":-7},"mm OR mm3"]
[null,null,null,null,null,null,null,null,null,null,null,null,null,null,null,null,null,null," - Unretraction speed (F-value)",{"$f":"T61","v":2500},"mm/min"]
[null,null,null,null,null,null,null,null,null,null,null,null,null,null,null,null,null,null," - Z-hop",0.2,"mm"]
[null,null,null,null,null,null,null,null,null,null,null,null,null,null,null,null,null,null," - Z-hop speed (F-value)",7500,"mm/min"]
[]
[null,null,null,null,null,null,null,null,null,null,null,null,null,null,null,null,null,null,"Parameter name","Parameter value","Units"]
[null,null,null,null,null,null,null,null,null,null,null,null,null,null,null,null,null,null,null,null," "]
[null,null,null,null,null,null,null,null,null,null,null,null,null,null,null,null,null,null,null,null," "]
[]
["Design ID:","Box","Save to sheet:","Demos",null,null,null,null,null,null,null,null,null,null,null,null,null,null,null,null,null,null,null,null,null,null,null,null,null,null,null,null,null,null,null,null,null,null,null,null,"Save data (DO NOT DELETE):","Save time: 27/07/2020 09:40:25","Design ID:","Box","Save to sheet:","Demos"]
["Feature",null,null,null,null,null,null,null,null,null,null,null,null,null,null,null,"Comments"]
[1,"Line","Cartesian",50,50,0,"R50","R0","R0","Print",0.4,0.2,null,null,null,null,null,null,"Settings"]
[2,"Line","Cartesian","R0","R0","R0","R0","R50","R0","Print",0.4,0.2,null,null,null,null,null,null,"Zoffset",0.2,"mm"]
[3,"Line","Cartesian","R0","R0","R0","R-50","R0","R0","Print",0.4,0.2,null,null,null,null,null,null,"FirstLayerExtrusionMultiplier",1,"no units"]
[4,"Line","Cartesian","R0","R0","R0","R0","R-50","R0","Print",0.4,0.2,null,null,null,null,null,null,"FirstLayerNozzleSpeedMultiplier",1,"no units"]
[5,"Cartesian repeat","1-4",0,0,0.2,250,null,null,null,null,null,null,null,null,null,null,null,"ToolChange ID","Default"]
[6,null,null,null,null,null,null,null,null,null,null,null,null,null,null,null,null,null,"Start tool  (after StartGCODE)",0]
[7]
[8,null,null,null,null,null,null,null,null,null,null,null,null,null,null,null,null,null,"BedTemp",60,"C"]
[9,null,null,null,null,null,null,null,null,null,null,null,null,null,null,null,null,null,"NozzleFeedratePrinting",1000,"mm/min"]
[10,null,null,null,null,null,null,null,null,null,null,null,null,null,null,null,null,null,"NozzleFeedrateTravelling",9000,"mm/min"]
[11,null,null,null,null,null,null,null,null,null,null,null,null,null,null,null,null,null,"NozzleTemp",210,"C"]
[12,null,null,null,null,null,null,null,null,null,null,null,null,null,null,null,null,null,"FeedstockFilamentDiameter",2.85,"mm"]
[13,null,null,null,null,null,null,null,null,null,null,null,null,null,null,null,null,null,"ExtrusionUnits","mm3","mm OR mm3"]
[14,null,null,null,null,null,null,null,null,null,null,null,null,null,null,null,null,null,"StartGCODE ID","ULTI2+_Temps&Fan"]
[15,null,null,null,null,null,null,null,null,null,null,null,null,null,null,null,null,null,"EndGCODE ID","ULTI2+_1"]
[null,null,null,null,null,null,null,null,null,null,null,null,null,null,null,null,null,null,"Start X (after StartGCODE)",20,"mm"]
[null,null,null,null,null,null,null,null,null,null,null,null,null,null,null,null,null,null,"Start Y (after StartGCODE)",10,"mm"]
[null,null,null,null,null,null,null,null,null,null,null,null,null,null,null,null,null,null,"Start Z (after StartGCODE)",0.3,"mm"]
[null,null,null,null,null,null,null,null,null,null,null,null,null,null,null,null,null,null,"FanSpeed",0]
[null,null,null,null,null,null,null,null,null,null,null,null,null,null,null,null,null,null,"AutoTravelRetraction?","no","yes/no"]
[null,null,null,null,null,null,null,null,null,null,null,null,null,null,null,null,null,null," - Threshold distance",5,"mm"]
[null,null,null,null,null,null,null,null,null,null,null,null,null,null,null,null,null,null," - Retraction (E-value)",7,"mm OR mm3"]
[null,null,null,null,null,null,null,null,null,null,null,null,null,null,null,null,null,null," - Retraction speed (F-value)",2500,"mm/min"]
[null,null,null,null,null,null,null,null,null,null,null,null,null,null,null,null,null,null," - Unretraction (E-value)",{"$f":"-T94","v":-7},"mm OR mm3"]
[null,null,null,null,null,null,null,null,null,null,null,null,null,null,null,null,null,null," - Unretraction speed (F-value)",{"$f":"T95","v":2500},"mm/min"]
[null,null,null,null,null,null,null,null,null,null,null,null,null,null,null,null,null,null," - Z-hop",0.2,"mm"]
[null,null,null,null,null,null,null,null,null,null,null,null,null,null,null,null,null,null," - Z-hop speed (F-value)",7500,"mm/min"]
[]
[null,null,null,null,null,null,null,null,null,null,null,null,null,null,null,null,null,null,"Parameter name","Parameter value","Units"]
[null,null,null,null,null,null,null,null,null,null,null,null,null,null,null,null,null,null,null,null," "]
[null,null,null,null,null,null,null,null,null,null,null,null,null,null,null,null,null,null,null,null," "]
[]
["Design ID:","Tutorial_RepeatRule","Save to sheet:","Demos",null,null,null,null,null,null,null,null,null,null,null,null,null,null,null,null,null,null,null,null,null,null,null,null,null,null,null,null,null,null,null,null,null,null,null,null,"Save data (DO NOT DELETE):","Save time: 22/10/2020 08:40:14","Design ID:","Tutorial_RepeatRule","Save to sheet:","Demos"]
["Feature",null,null,null,null,null,null,null,null,null,null,null,null,null,null,null,"Comments"]
[1,"Line","Cartesian",50,50,0,"R20","R0","R0","Print",0.5,0.2,null,null,null,null,null,null,"Settings"]
[2,"Line","Cartesian","R0","R0","R0","R0","R20","R0","Print",0.5,0.2,null,null,null,null,null,null,"Zoffset",0.2,"mm"]
[3,"Line","Cartesian","R0","R0","R0","R-20","R0","R0","Print",0.5,0.2,null,null,null,null,null,null,"FirstLayerExtrusionMultiplier",1,"no units"]
[4,"Line","Cartesian","R0","R0","R0","R0","R-20","R0","Print",0.5,0.2,null,null,null,null,null,null,"FirstLayerNozzleSpeedMultiplier",1,"no units"]
[5,"Cartesian repeat","1-4",0,0,0.2,100,null,null,null,null,null,null,null,null,null,null,null,"ToolChange ID","Default"]
[6,"Repeat rule",5,2,50,100,"OffsetLinearIncrement",0.2,0,0,"YES","YES",null,null,null,null,null,null,"Start tool  (after StartGCODE)",0]
[7,"Repeat rule",5,1,50,100,"OffsetLinearIncrement",0.2,0,0,"NO","YES"]
[8,"Repeat rule",5,3,50,100,"OffsetLinearIncrement",0.2,0,0,"YES","NO",null,null,null,null,null,null,"BedTemp",60,"C"]
[9,"SKIP_Repeat rule",5,2,50,100,"OffsetLinearIncrementGraded",5.0000000000000001E-3,0,0,"YES","YES",null,null,null,null,null,null,"NozzleFeedratePrinting",1000,"mm/min"]
[10,"SKIP_Repeat rule",5,1,50,100,"OffsetLinearIncrementGraded",5.0000000000000001E-3,0,0,"NO","YES",null,null,null,null,null,null,"NozzleFeedrateTravelling",9000,"mm/min"]
[11,"SKIP_Repeat rule",5,3,50,100,"OffsetLinearIncrementGraded",5.0000000000000001E-3,0,0,"YES","NO",null,null,null,null,null,null,"NozzleTemp",210,"C"]
[12,"SKIP_Repeat rule",5,"1-4",50,100,"OffsetPolar",60,60,45,0,"YES","YES",null,null,null,null,null,"FeedstockFilamentDiameter",2.85,"mm"]
[13,"SKIP_Repeat rule",5,"1-4",50,100,"OffsetPolarIncrement",50,50,0,0.2,"YES","YES",null,null,null,null,null,"ExtrusionUnits","mm3","mm OR mm3"]
[14,"SKIP_Repeat rule",5,"1-4",50,100,"NomWidth",1,null,"Value of width for each repeat this rule applies to",null,null,null,null,null,null,null,null,"StartGCODE ID","ULTI2+_Temps&Fan"]
[15,"SKIP_Repeat rule",5,"1-4",50,100,"NomWidthIncrement",0.01,null,"How much to change the width by (absolute) for each repeat this rule applies to (cumulative)",null,null,null,null,null,null,null,null,"EndGCODE ID","ULTI2+_1"]
[16,"SKIP_Repeat rule",5,"1-4",50,100,"Fspeed","VALUE",null,"Value of speed for each repeat this rule applies to",null,null,null,null,null,null,null,null,"Start X (after StartGCODE)",20,"mm"]
[17,"SKIP_Repeat rule",5,"1-4",50,100,"FspeedIncrement",10,null,"How much to change the wpeed by (absolute) for each repeat this rule applies to (cumulative)",null,null,null,null,null,null,null,null,"Start Y (after StartGCODE)",10,"mm"]
[18,null,null,null,null,null,null,null,null,null,null,null,null,null,null,null,null,null,"Start Z (after StartGCODE)",0.3,"mm"]
[19,null,null,null,null,null,null,null,null,null,null,null,null,null,null,null,null,null,"FanSpeed",0]
[null,null,null,null,null,null,null,null,null,null,null,null,null,null,null,null,null,null,"AutoTravelRetraction?","no","yes/no"]
[null,null,null,null,null,null,null,null,null,null,null,null,null,null,null,null,null,null," - Threshold distance",5,"mm"]
[null,null,null,null,null,null,null,null,null,null,null,null,null,null,null,null,null,null," - Retraction (E-value)",7,"mm OR mm3"]
[null,null,null,null,null,null,null,null,null,null,null,null,null,null,null,null,null,null," - Retraction speed (F-value)",2500,"mm/min"]
[null,null,null,null,null,null,null,null,null,null,null,null,null,null,null,null,null,null," - Unretraction (E-value)",{"$f":"-T128","v":-7},"mm OR mm3"]
[null,null,null,null,null,null,null,null,null,null,null,null,null,null,null,null,null,null," - Unretraction speed (F-value)",{"$f":"T129","v":2500},"mm/min"]
[null,null,null,null,null,null,null,null,null,null,null,null,null,null,null,null,null,null," - Z-hop",0.2,"mm"]
[null,null,null,null,null,null,null,null,null,null,null,null,null,null,null,null,null,null," - Z-hop speed (F-value)",7500,"mm/min"]
[]
[null,null,null,null,null,null,null,null,null,null,null,null,null,null,null,null,null,null,"Parameter name","Parameter value","Units"]

{"sheet":"FullControlPaperExamples","index":3,"n_rows":264,"n_cols":46,"rows_kept":264,"cut":false,"hidden":false,"merged":[[12,2,12,13],[13,2,13,13],[14,2,14,13],[15,2,15,13],[16,2,16,13]]}
[]
[]
["Design ID:","Lattice","Save to sheet:","FullControlPaperExamples",null,null,null,null,null,null,null,null,null,null,null,null,null,null,null,null,null,null,null,null,null,null,null,null,null,null,null,null,null,null,null,null,null,null,null,null,"Save data (DO NOT DELETE):","Save time: 03/07/2020 16:13:37","Design ID:","Lattice","Save to sheet:","FullControlPaperExamples"]
["Feature",null,null,null,null,null,null,null,null,null,null,null,null,null,null,null,"Comments"]
[1,"Circle/arc",{"$f":"StartX-F5*COS(RADIANS(T49))","v":{"$error":"#NAME?"}},{"$f":"StartY+T48","v":{"$error":"#NAME?"}},0,{"$f":"T48/SIN(RADIANS(T49))","v":{"$error":"#NAME?"}},{"$f":"-T49","v":{"$error":"#NAME?"}},{"$f":"T43","v":90},"anti-CW",16,{"$f":"Width","v":{"$error":"#NAME?"}},{"$f":"Height","v":{"$error":"#NAME?"}},null,null,null,null,"PRINT FIRST ARC",null,"Settings"]
[2,"Circle/arc",{"$f":"StartX+F6*COS(RADIANS(T49))","v":{"$error":"#NAME?"}},{"$f":"StartY+T47+T48","v":{"$error":"#NAME?"}},0,{"$f":"T48/SIN(RADIANS(T49))","v":{"$error":"#NAME?"}},{"$f":"180+T49","v":{"$error":"#NAME?"}},{"$f":"T43","v":90},"CW",16,{"$error":"#NAME?"},{"$f":"Height","v":{"$error":"#NAME?"}},null,null,null,null,"PRINT SECOND ARC",null,"Zoffset",0.2,"mm"]
[3,"Cartesian repeat","1-2",0,{"$f":"Period","v":{"$error":"#NAME?"}},0,{"$f":"UnitCells-1","v":{"$error":"#NAME?"}},null,null,null,null,null,null,null,null,null,"REPEAT BOTH ARCS MULTIPLE TIMES",null,"FirstLayerExtrusionMultiplier",1,"no units"]
[4,"Reflect","1-3","Polar",{"$f":"CONCATENATE(\"R\",QuarterPeriod)","v":{"$error":"#NAME?"}},"R0",90,null,null,null,null,null,null,null,null,null,"REFLECT TO REPEAT FIRST WAVE-LINE",null,"FirstLayerNozzleSpeedMultiplier",1,"no units"]
[5,"Cartesian repeat","1-4",{"$f":"Period","v":{"$error":"#NAME?"}},0,0,{"$f":"UnitCells-1","v":{"$error":"#NAME?"}},null,null,null,null,null,null,null,null,null,"REPEAT FIRST TWO WAVE-LINES MULTIPLE TIMES",null,"ToolChange ID","Default"]
[6,"Cartesian repeat","1-5",0,0,{"$f":"SecondLayerOffset","v":{"$error":"#NAME?"}},{"$f":"NumberOfLayers-1","v":{"$error":"#NAME?"}},null,null,null,null,null,null,null,null,null,"REPEAT FOR MULTIPLE LAYERS",null,"Start tool  (after StartGCODE)",0]
[7,"Repeat rule",6,"1-6",1,{"$f":"NumberOfLayers-1","v":{"$error":"#NAME?"}},"OffsetPolarIncrement",{"$f":"StartX+((((UnitCells)*Period))/2)-(HalfPeriod)","v":{"$error":"#NAME?"}},{"$f":"StartY+((((UnitCells)*Period))/2)","v":{"$error":"#NAME?"}},90,0,"YES","YES",null,null,null,"ROTATE EACH LAYER-REPITITION BY 90°"]
[8,null,null,null,null,null,null,null,null,null,null,null,null,null,null,null,null,null,"BedTemp",60,"C"]
[9,null,"Note that for simplicity in this illustrative design, disconnected wavy lines are created.",null,null,null,null,null,null,null,null,null,null,null,null,null,null,null,"NozzleFeedratePrinting",1000,"mm/min"]
[10,null,"FullControl automatically adds lines of non-extruding travel (\"G0\" commands) to move the nozzle between the lines.",null,null,null,null,null,null,null,null,null,null,null,null,null,null,null,"NozzleFeedrateTravelling",9000,"mm/min"]
[11,null,"It is better to define all lines, including non-extruding travel lines, to minimise undefined nozzle movements.",null,null,null,null,null,null,null,null,null,null,null,null,null,null,null,"NozzleTemp",210,"C"]
[12,null,"Make sure GCode preview software is set to \"Show Travel Moves\" (or the equivalent option).",null,null,null,null,null,null,null,null,null,null,null,null,null,null,null,"FeedstockFilamentDiameter",2.85,"mm"]
[13,null,"Also for simplicity, the outer edges of this structure are only printed every alternate layer so would need to be cut off after manufacture.",null,null,null,null,null,null,null,null,null,null,null,null,null,null,null,"ExtrusionUnits","mm3","mm OR mm3"]
[14,null,null,null,null,null,null,null,null,null,null,null,null,null,null,null,null,null,"StartGCODE ID","ULTI2+_Temps&Fan"]
[15,null,null,null,null,null,null,null,null,null,null,null,null,null,null,null,null,null,"EndGCODE ID","ULTI2+_1"]
[null,null,null,null,null,null,null,null,null,null,null,null,null,null,null,null,null,null,"Start X (after StartGCODE)",20,"mm"]
[null,null,null,null,null,null,null,null,null,null,null,null,null,null,null,null,null,null,"Start Y (after StartGCODE)",10,"mm"]
[null,null,null,null,null,null,null,null,null,null,null,null,null,null,null,null,null,null,"Start Z (after StartGCODE)",0.3,"mm"]
[null,null,null,null,null,null,null,null,null,null,null,null,null,null,null,null,null,null,"FanSpeed",0]
[null,null,null,null,null,null,null,null,null,null,null,null,null,null,null,null,null,null,"AutoTravelRetraction?","no","yes/no"]
[null,null,null,null,null,null,null,null,null,null,null,null,null,null,null,null,null,null," - Threshold distance",5,"mm"]
[null,null,null,null,null,null,null,null,null,null,null,null,null,null,null,null,null,null," - Retraction (E-value)",7,"mm OR mm3"]
[null,null,null,null,null,null,null,null,null,null,null,null,null,null,null,null,null,null," - Retraction speed (F-value)",2500,"mm/min"]
[null,null,null,null,null,null,null,null,null,null,null,null,null,null,null,null,null,null," - Unretraction (E-value)",{"$f":"-T26","v":-7},"mm OR mm3"]
[null,null,null,null,null,null,null,null,null,null,null,null,null,null,null,null,null,null," - Unretraction speed (F-value)",{"$f":"T27","v":2500},"mm/min"]
[null,null,null,null,null,null,null,null,null,null,null,null,null,null,null,null,null,null," - Z-hop",0.2,"mm"]
[null,null,null,null,null,null,null,null,null,null,null,null,null,null,null,null,null,null," - Z-hop speed (F-value)",7500,"mm/min"]
[]
[null,null,null,null,null,null,null,null,null,null,null,null,null,null,null,null,null,null,"Parameter name","Parameter value","Units"]
[]
[null,null,null,null,null,null,null,null,null,null,null,null,null,null,null,null,null,null,"Defined:"]
[null,null,null,null,null,null,null,null,null,null,null,null,null,null,null,null,null,null,"StartX",50,"mm"]
[null,null,null,null,null,null,null,null,null,null,null,null,null,null,null,null,null,null,"StartY",50,"mm"]
[null,null,null,null,null,null,null,null,null,null,null,null,null,null,null,null,null,null,"Width",0.6,"mm"]
[null,null,null,null,null,null,null,null,null,null,null,null,null,null,null,null,null,null,"Height",0.2,"mm"]
[null,null,null,null,null,null,null,null,null,null,null,null,null,null,null,null,null,null,"UnitCells",4,"no units"]
[null,null,null,null,null,null,null,null,null,null,null,null,null,null,null,null,null,null,"Period",16,"mm"]
[null,null,null,null,null,null,null,null,null,null,null,null,null,null,null,null,null,null,"NumberOfLayers",40,"no units"]
[null,null,null,null,null,null,null,null,null,null,null,null,null,null,null,null,null,null,"ArcAngle",90,"degrees"]
[null,null,null,null,null,null,null,null,null,null,null,null,null,null,null,null,null,null,null,null," "]
[null,null,null,null,null,null,null,null,null,null,null,null,null,null,null,null,null,null,null,null," "]
[null,null,null,null,null,null,null,null,null,null,null,null,null,null,null,null,null,null,"Automatically identified:"]
[null,null,null,null,null,null,null,null,null,null,null,null,null,null,null,null,null,null,"HalfPeriod",{"$f":"Period/2","v":{"$error":"#NAME?"}},"mm"]
[null,null,null,null,null,null,null,null,null,null,null,null,null,null,null,null,null,null,"QuarterPeriod",{"$f":"Period/4","v":{"$error":"#NAME?"}},"mm"]
[null,null,null,null,null,null,null,null,null,null,null,null,null,null,null,null,null,null,"HalfAngle",{"$f":"ArcAngle/2","v":{"$error":"#NAME?"}},"degrees"]
[null,null,null,null,null,null,null,null,null,null,null,null,null,null,null,null,null,null,"TotalHeight",{"$f":"NumberOfLayers*SecondLayerOffset","v":{"$error":"#NAME?"}},"mm"]
[null,null,null,null,null,null,null,null,null,null,null,null,null,null,null,null,null,null,"SecondLayerOffset",{"$f":"Height/2","v":{"$error":"#NAME?"}},"mm"]
[]
["Design ID:","TensileTestingBox","Save to sheet:","FullControlPaperExamples",null,null,null,null,null,null,null,null,null,null,null,null,null,null,null,null,null,null,null,null,null,null,null,null,null,null,null,null,null,null,null,null,null,null,null,null,"Save data (DO NOT DELETE):","Save time: 14/07/2020 12:27:19","Design ID:","TensileTestingBox","Save to sheet:","FullControlPaperExamples"]
["Feature",null,null,null,null,null,null,null,null,null,null,null,null,null,null,null,"Comments"]
[1,"Line","Cartesian",50,50,0,"R0","R45","R0","Print",{"$f":"ShoulderThickness","v":{"$error":"#NAME?"}},{"$f":"LayerHeight","v":{"$error":"#NAME?"}},null,null,null,null,"PRINT FIRST WALL",null,"Settings"]
[2,"Polar repeat","1",{"$f":"50+(45/2)","v":72.5},{"$f":"50+(45/2)","v":72.5},-90,0,3,null,null,null,null,null,null,null,null,"REPEAT WALL THREE TIMES TO PRINT A SQUARE",null,"Zoffset",0.2,"mm"]
[3,"Cartesian repeat","1-2",0,0,{"$f":"LayerHeight","v":{"$error":"#NAME?"}},{"$f":"(45/LayerHeight)-1","v":{"$error":"#NAME?"}},null,null,null,null,null,null,null,null,null,"REPEAT SQUARE FOR MANY LAYER UP TO A HEIGHT OF 45 MM",null,"FirstLayerExtrusionMultiplier",1,"no units"]
[4,"Repeat rule",3,"1,2",{"$f":"14/LayerHeight-1","v":{"$error":"#NAME?"}},{"$f":"(14+1.4)/LayerHeight-1","v":{"$error":"#NAME?"}},"NomWidthIncrement",{"$f":"-(ShoulderThickness-GaugeThickness)/(F58-E58)","v":{"$error":"#NAME?"}},null,null,null,null,null,null,null,null,"RULE TO TAPER FROM SHOULDER TO GAUGE (LOWER TRANSITION)",null,"FirstLayerNozzleSpeedMultiplier",1,"no units"]
[5,"Repeat rule",3,"1,2",{"$f":"(14+1.4)/LayerHeight-1","v":{"$error":"#NAME?"}},{"$f":"(14+1.4+14)/LayerHeight-1","v":{"$error":"#NAME?"}},"NomWidth",{"$f":"GaugeThickness","v":{"$error":"#NAME?"}},null,null,null,null,null,null,null,null,"RULE TO CHANGE EXTRUSION WIDTH IN GAUGE",null,"ToolChange ID","Default"]
[6,"Repeat rule",3,"1,2",{"$f":"(14+1.4+14)/LayerHeight-1","v":{"$error":"#NAME?"}},{"$f":"(14+1.4+14+1.4)/LayerHeight-1","v":{"$error":"#NAME?"}},"NomWidth",{"$f":"GaugeThickness","v":{"$error":"#NAME?"}},null,null,null,null,null,null,null,null,"RULE FOR UPPER TRANSITION SECTION (ALLOWS TAPER IN FEATURE 7)",null,"Start tool  (after StartGCODE)",0]
[7,"Repeat rule",3,"1,2",{"$f":"(14+1.4+14)/LayerHeight-1","v":{"$error":"#NAME?"}},{"$f":"(14+1.4+14+1.4)/LayerHeight-1","v":{"$error":"#NAME?"}},"NomWidthIncrement",{"$f":"(ShoulderThickness-GaugeThickness)/(F61-E61)","v":{"$error":"#NAME?"}},null,null,null,null,null,null,null,null,"RULE TO TAPER FROM GAUGE TO SHOULDER (UPPER TRANSITION)"]
[8,null,null,null,null,null,null,null,null,null,null,null,null,null,null,null,null,null,"BedTemp",60,"C"]
[9,null,null,"Similar structures use in:",null,"https://doi.org/10.1016/j.jmbbm.2019.103510",null,null,null,null,null,null,null,null,null,null,null,null,"NozzleFeedratePrinting",1000,"mm/min"]
[10,null,null,null,null,"https://doi.org/10.1016/j.addma.2020.101297",null,null,null,null,null,null,null,null,null,null,null,null,"NozzleFeedrateTravelling",9000,"mm/min"]
[11,null,null,null,null,"https://doi.org/10.1016/j.prostr.2018.12.103",null,null,null,null,null,null,null,null,null,null,null,null,"NozzleTemp",210,"C"]
[null,null,null,null,null,null,null,null,null,null,null,null,null,null,null,null,null,null,"FeedstockFilamentDiameter",2.85,"mm"]
[null,null,null,null,null,null,null,null,null,null,null,null,null,null,null,null,null,null,"ExtrusionUnits","mm3","mm OR mm3"]
[null,null,null,null,null,null,null,null,null,null,null,null,null,null,null,null,null,null,"StartGCODE ID","ULTI2+_Temps&Fan"]
[null,null,null,null,null,null,null,null,null,null,null,null,null,null,null,null,null,null,"EndGCODE ID","ULTI2+_1"]
[null,null,null,null,null,null,null,null,null,null,null,null,null,null,null,null,null,null,"Start X (after StartGCODE)",20,"mm"]
[null,null,null,null,null,null,null,null,null,null,null,null,null,null,null,null,null,null,"Start Y (after StartGCODE)",10,"mm"]
[null,null,null,null,null,null,null,null,null,null,null,null,null,null,null,null,null,null,"Start Z (after StartGCODE)",0.3,"mm"]
[null,null,null,null,null,null,null,null,null,null,null,null,null,null,null,null,null,null,"FanSpeed",0]
[null,null,null,null,null,null,null,null,null,null,null,null,null,null,null,null,null,null,"AutoTravelRetraction?","no","yes/no"]
[null,null,null,null,null,null,null,null,null,null,null,null,null,null,null,null,null,null," - Threshold distance",5,"mm"]
[null,null,null,null,null,null,null,null,null,null,null,null,null,null,null,null,null,null," - Retraction (E-value)",7,"mm OR mm3"]
[null,null,null,null,null,null,null,null,null,null,null,null,null,null,null,null,null,null," - Retraction speed (F-value)",2500,"mm/min"]
[null,null,null,null,null,null,null,null,null,null,null,null,null,null,null,null,null,null," - Unretraction (E-value)",{"$f":"-T76","v":-7},"mm OR mm3"]
[null,null,null,null,null,null,null,null,null,null,null,null,null,null,null,null,null,null," - Unretraction speed (F-value)",{"$f":"T77","v":2500},"mm/min"]
[null,null,null,null,null,null,null,null,null,null,null,null,null,null,null,null,null,null," - Z-hop",0.2,"mm"]
[null,null,null,null,null,null,null,null,null,null,null,null,null,null,null,null,null,null," - Z-hop speed (F-value)",7500,"mm/min"]
[]
[null,null,null,null,null,null,null,null,null,null,null,null,null,null,null,null,null,null,"Parameter name","Parameter value","Units"]
[]
[null,null,null,null,null,null,null,null,null,null,null,null,null,null,null,null,null,null,"LayerHeight",0.2,"mm"]
[null,null,null,null,null,null,null,null,null,null,null,null,null,null,null,null,null,null,"ShoulderThickness",1,"mm"]
[null,null,null,null,null,null,null,null,null,null,null,null,null,null,null,null,null,null,"GaugeThickness",0.5,"mm"]
[]
["Design ID:","SineTube","Save to sheet:","FullControlPaperExamples",null,null,null,null,null,null,null,null,null,null,null,null,null,null,null,null,null,null,null,null,null,null,null,null,null,null,null,null,null,null,null,null,null,null,null,null,"Save data (DO NOT DELETE):","Save time: 14/07/2020 12:40:15","Design ID:","SineTube","Save to sheet:","FullControlPaperExamples"]
["Feature",null,null,null,null,null,null,null,null,null,null,null,null,null,null,null,"Comments"]
[1,"Line Equation","110-(Radius-Fluctuation*(cos((Tval/50)*2*pi())))*cos(Tval*2*pi())","100+(Radius+Fluctuation*(cos((Tval/50)*2*pi())))*sin(Tval*2*pi())","Tval*0.2","0",250,{"$f":"G91*40","v":10000},0.5,0.2,null,null,null,null,null,null,"A CONTINUOUSLY PRINTED CURVE MADE OF 10,000 LINE SEGMENTS",null,"Settings"]
[2,null,null,null,null,null,null,null,null,null,null,null,null,null,null,null,null,null,"Zoffset",0.2,"mm"]
[3,null,null,null,null,null,null,null,null,null,null,null,null,null,null,null,null,null,"FirstLayerExtrusionMultiplier",1,"no units"]
[4,null,null,null,null,null,null,null,null,null,null,null,null,null,null,null,null,null,"FirstLayerNozzleSpeedMultiplier",1,"no units"]
[5,null,null,null,null,null,null,null,null,null,null,null,null,null,null,null,null,null,"ToolChange ID","Default"]
[6,null,null,null,null,null,null,null,null,null,null,null,null,null,null,null,null,null,"Start tool  (after StartGCODE)",0]
[7]
[8,null,null,null,null,null,null,null,null,null,null,null,null,null,null,null,null,null,"BedTemp",60,"C"]
[9,null,null,null,null,null,null,null,null,null,null,null,null,null,null,null,null,null,"NozzleFeedratePrinting",1000,"mm/min"]
[10,null,null,null,null,null,null,null,null,null,null,null,null,null,null,null,null,null,"NozzleFeedrateTravelling",9000,"mm/min"]
[11,null,null,null,null,null,null,null,null,null,null,null,null,null,null,null,null,null,"NozzleTemp",210,"C"]
[null,null,null,null,null,null,null,null,null,null,null,null,null,null,null,null,null,null,"FeedstockFilamentDiameter",2.85,"mm"]
[null,null,null,null,null,null,null,null,null,null,null,null,null,null,null,null,null,null,"ExtrusionUnits","mm3","mm OR mm3"]
[null,null,null,null,null,null,null,null,null,null,null,null,null,null,null,null,null,null,"StartGCODE ID","ULTI2+_Temps&Fan"]
[null,null,null,null,null,null,null,null,null,null,null,null,null,null,null,null,null,null,"EndGCODE ID","ULTI2+_1"]
[null,null,null,null,null,null,null,null,null,null,null,null,null,null,null,null,null,null,"Start X (after StartGCODE)",20,"mm"]
[null,null,null,null,null,null,null,null,null,null,null,null,null,null,null,null,null,null,"Start Y (after StartGCODE)",10,"mm"]
[null,null,null,null,null,null,null,null,null,null,null,null,null,null,null,null,null,null,"Start Z (after StartGCODE)",0.3,"mm"]
[null,null,null,null,null,null,null,null,null,null,null,null,null,null,null,null,null,null,"FanSpeed",0]
[null,null,null,null,null,null,null,null,null,null,null,null,null,null,null,null,null,null,"AutoTravelRetraction?","no","yes/no"]
[null,null,null,null,null,null,null,null,null,null,null,null,null,null,null,null,null,null," - Threshold distance",5,"mm"]
[null,null,null,null,null,null,null,null,null,null,null,null,null,null,null,null,null,null," - Retraction (E-value)",7,"mm OR mm3"]
[null,null,null,null,null,null,null,null,null,null,null,null,null,null,null,null,null,null," - Retraction speed (F-value)",2500,"mm/min"]
[null,null,null,null,null,null,null,null,null,null,null,null,null,null,null,null,null,null," - Unretraction (E-value)",{"$f":"-T112","v":-7},"mm OR mm3"]
[null,null,null,null,null,null,null,null,null,null,null,null,null,null,null,null,null,null," - Unretraction speed (F-value)",{"$f":"T113","v":2500},"mm/min"]
[null,null,null,null,null,null,null,null,null,null,null,null,null,null,null,null,null,null," - Z-hop",0.2,"mm"]
[null,null,null,null,null,null,null,null,null,null,null,null,null,null,null,null,null,null," - Z-hop speed (F-value)",7500,"mm/min"]
[]
[null,null,null,null,null,null,null,null,null,null,null,null,null,null,null,null,null,null,"Parameter name","Parameter value","Units"]
[]
[null,null,null,null,null,null,null,null,null,null,null,null,null,null,null,null,null,null,"Radius",12,"mm"]
[null,null,null,null,null,null,null,null,null,null,null,null,null,null,null,null,null,null,"Fluctuation",2,"mm"]
[]
[]
["Design ID:","NonplanarCylinder","Save to sheet:","FullControlPaperExamples",null,null,null,null,null,null,null,null,null,null,null,null,null,null,null,null,null,null,null,null,null,null,null,null,null,null,null,null,null,null,null,null,null,null,null,null,"Save data (DO NOT DELETE):","Save time: 14/07/2020 11:50:24","Design ID:","NonplanarCylinder","Save to sheet:","FullControlPaperExamples"]
["Feature",null,null,null,null,null,null,null,null,null,null,null,null,null,null,null,"Comments"]
[1,"Polygon",50,50,0,10,180,"CW",{"$f":"Sides","v":{"$error":"#NAME?"}},0.6,0.2,null,null,null,null,null,"PRINT POLYGON WITH NUMBER OF SIDES INDICATED BY \"Sides\" PARAMETER",null,"Settings"]
[2,"Cartesian repeat",1,0,0,0.2,{"$f":"_xlfn.SINGLE(layers)","v":10},null,null,null,null,null,null,null,null,null,"REPEAT FOR NUMBER OF LAYERS LISTED BY THE \"Layers\" PARAMETER",null,"Zoffset",0.2,"mm"]
[3,"SKIP_Repeat rule",2,1,1,{"$f":"_xlfn.SINGLE(layers)","v":10},"OffsetLinearMaths",0,"0","(50-Yval)*(50-Xval)*REPval/2000","YES","YES",null,null,null,null,"USE EITHER FEATURE 3 OR 4 TO MAKE CYLINDER NONPLANAR",null,"FirstLayerExtrusionMultiplier",1,"no units"]
[4,"Postprocess","1,2","OffsetPolarMaths",{"$f":"C127","v":50},{"$f":"D127","v":50},0,0,"sin(Aval*2)*3*Zval/20","YES","YES",null,null,null,null,null,"USE EITHER FEATURE 3 OR 4 TO MAKE CYLINDER NONPLANAR",null,"FirstLayerNozzleSpeedMultiplier",1,"no units"]
[5,null,null,null,null,null,null,null,null,null,null,null,null,null,null,null,null,null,"ToolChange ID","Default"]
[6,null,"See tutorials of how to use \"Skip/Stop/Use\" functions to disable and enable either feature 3 or 4.",null,null,null,null,null,null,null,null,null,null,null,null,null,null,null,"Start tool  (after StartGCODE)",0]
[7]
[8,null,null,null,null,null,null,null,null,null,null,null,null,null,null,null,null,null,"BedTemp",60,"C"]
[9,null,null,null,null,null,null,null,null,null,null,null,null,null,null,null,null,null,"NozzleFeedratePrinting",1000,"mm/min"]
[10,null,null,null,null,null,null,null,null,null,null,null,null,null,null,null,null,null,"NozzleFeedrateTravelling",9000,"mm/min"]
[11,null,null,null,null,null,null,null,null,null,null,null,null,null,null,null,null,null,"NozzleTemp",210,"C"]
[null,null,null,null,null,null,null,null,null,null,null,null,null,null,null,null,null,null,"FeedstockFilamentDiameter",2.85,"mm"]
[null,null,null,null,null,null,null,null,null,null,null,null,null,null,null,null,null,null,"ExtrusionUnits","mm3","mm OR mm3"]
[null,null,null,null,null,null,null,null,null,null,null,null,null,null,null,null,null,null,"StartGCODE ID","ULTI2+_Temps&Fan"]
[null,null,null,null,null,null,null,null,null,null,null,null,null,null,null,null,null,null,"EndGCODE ID","ULTI2+_1"]
[null,null,null,null,null,null,null,null,null,null,null,null,null,null,null,null,null,null,"Start X (after StartGCODE)",20,"mm"]
[null,null,null,null,null,null,null,null,null,null,null,null,null,null,null,null,null,null,"Start Y (after StartGCODE)",10,"mm"]
[null,null,null,null,null,null,null,null,null,null,null,null,null,null,null,null,null,null,"Start Z (after StartGCODE)",0.3,"mm"]
[null,null,null,null,null,null,null,null,null,null,null,null,null,null,null,null,null,null,"FanSpeed",0]
[null,null,null,null,null,null,null,null,null,null,null,null,null,null,null,null,null,null,"AutoTravelRetraction?","no","yes/no"]
[null,null,null,null,null,null,null,null,null,null,null,null,null,null,null,null,null,null," - Threshold distance",5,"mm"]
[null,null,null,null,null,null,null,null,null,null,null,null,null,null,null,null,null,null," - Retraction (E-value)",7,"mm OR mm3"]
[null,null,null,null,null,null,null,null,null,null,null,null,null,null,null,null,null,null," - Retraction speed (F-value)",2500,"mm/min"]
[null,null,null,null,null,null,null,null,null,null,null,null,null,null,null,null,null,null," - Unretraction (E-value)",{"$f":"-T148","v":-7},"mm OR mm3"]
[null,null,null,null,null,null,null,null,null,null,null,null,null,null,null,null,null,null," - Unretraction speed (F-value)",{"$f":"T149","v":2500},"mm/min"]
[null,null,null,null,null,null,null,null,null,null,null,null,null,null,null,null,null,null," - Z-hop",0.2,"mm"]
[null,null,null,null,null,null,null,null,null,null,null,null,null,null,null,null,null,null," - Z-hop speed (F-value)",7500,"mm/min"]
[]
[null,null,null,null,null,null,null,null,null,null,null,null,null,null,null,null,null,null,"Parameter name","Parameter value","Units"]
[]
[null,null,null,null,null,null,null,null,null,null,null,null,null,null,null,null,null,null,"Sides",12,"no units"]
[null,null,null,null,null,null,null,null,null,null,null,null,null,null,null,null,null,null,"Layers",100,"no units"]
[]
["Design ID:","ExampleFlowStabiliser (Primer)","Save to sheet:","FullControlPaperExamples",null,null,null,null,null,null,null,null,null,null,null,null,null,null,null,null,null,null,null,null,null,null,null,null,null,null,null,null,null,null,null,null,null,null,null,null,"Save data (DO NOT DELETE):","Save time: 14/07/2020 11:59:00","Design ID:","ExampleFlowStabiliser (Primer)","Save to sheet:","FullControlPaperExamples"]
["Feature",null,null,null,null,null,null,null,null,null,null,null,null,null,null,null,"Comments"]
[1,"Line","Cartesian",20,10,0,30,10,0,"Print",0.6,0.2,null,null,null,null,"FLOW STABILISER (E.G. USE AS FEATURES 1 TO 3) - AKA PRIMER",null,"Settings"]
[2,"Rectangle","R0","R0","R100","R-1",0,"CW",0.6,0.2,null,null,null,null,null,null,"FLOW STABILISER (E.G. USE AS FEATURES 1 TO 3) - AKA PRIMER",null,"Zoffset",0.2,"mm"]
[3,"Line","Cartesian","R0","R0","R0",{"$f":"StartX","v":{"$error":"#NAME?"}},{"$f":"StartY","v":{"$error":"#NAME?"}},0,"Print",0.6,0.2,null,null,null,null,"FLOW STABILISER (E.G. USE AS FEATURES 1 TO 3) - AKA PRIMER",null,"FirstLayerExtrusionMultiplier",1,"no units"]
[4,null,null,null,null,null,null,null,null,null,null,null,null,null,null,null,null,null,"FirstLayerNozzleSpeedMultiplier",1,"no units"]
[5,null,null,null,null,null,null,null,null,null,null,null,null,null,null,null,null,null,"ToolChange ID","Default"]
[6,null,null,null,null,null,null,null,null,null,null,null,null,null,null,null,null,null,"Start tool  (after StartGCODE)",0]
[7]
[8,null,null,null,null,null,null,null,null,null,null,null,null,null,null,null,null,null,"BedTemp",60,"C"]
[9,null,null,null,null,null,null,null,null,null,null,null,null,null,null,null,null,null,"NozzleFeedratePrinting",1000,"mm/min"]
[10,null,null,null,null,null,null,null,null,null,null,null,null,null,null,null,null,null,"NozzleFeedrateTravelling",9000,"mm/min"]
[11,null,null,null,null,null,null,null,null,null,null,null,null,null,null,null,null,null,"NozzleTemp",210,"C"]
[null,null,null,null,null,null,null,null,null,null,null,null,null,null,null,null,null,null,"FeedstockFilamentDiameter",2.85,"mm"]
[null,null,null,null,null,null,null,null,null,null,null,null,null,null,null,null,null,null,"ExtrusionUnits","mm3","mm OR mm3"]
[null,null,null,null,null,null,null,null,null,null,null,null,null,null,null,null,null,null,"StartGCODE ID","ULTI2+_Temps&Fan"]
[null,null,null,null,null,null,null,null,null,null,null,null,null,null,null,null,null,null,"EndGCODE ID","ULTI2+_1"]
[null,null,null,null,null,null,null,null,null,null,null,null,null,null,null,null,null,null,"Start X (after StartGCODE)",20,"mm"]
[null,null,null,null,null,null,null,null,null,null,null,null,null,null,null,null,null,null,"Start Y (after StartGCODE)",10,"mm"]
[null,null,null,null,null,null,null,null,null,null,null,null,null,null,null,null,null,null,"Start Z (after StartGCODE)",0.3,"mm"]
[null,null,null,null,null,null,null,null,null,null,null,null,null,null,null,null,null,null,"FanSpeed",0]
[null,null,null,null,null,null,null,null,null,null,null,null,null,null,null,null,null,null,"AutoTravelRetraction?","no","yes/no"]
[null,null,null,null,null,null,null,null,null,null,null,null,null,null,null,null,null,null," - Threshold distance",5,"mm"]
[null,null,null,null,null,null,null,null,null,null,null,null,null,null,null,null,null,null," - Retraction (E-value)",7,"mm OR mm3"]
[null,null,null,null,null,null,null,null,null,null,null,null,null,null,null,null,null,null," - Retraction speed (F-value)",2500,"mm/min"]
[null,null,null,null,null,null,null,null,null,null,null,null,null,null,null,null,null,null," - Unretraction (E-value)",{"$f":"-T183","v":-7},"mm OR mm3"]
[null,null,null,null,null,null,null,null,null,null,null,null,null,null,null,null,null,null," - Unretraction speed (F-value)",{"$f":"T184","v":2500},"mm/min"]
[null,null,null,null,null,null,null,null,null,null,null,null,null,null,null,null,null,null," - Z-hop",0.2,"mm"]
[null,null,null,null,null,null,null,null,null,null,null,null,null,null,null,null,null,null," - Z-hop speed (F-value)",7500,"mm/min"]
[]
[null,null,null,null,null,null,null,null,null,null,null,null,null,null,null,null,null,null,"Parameter name","Parameter value","Units"]
[]
[null,null,null,null,null,null,null,null,null,null,null,null,null,null,null,null,null,null,"StartX",50,"mm"]
[null,null,null,null,null,null,null,null,null,null,null,null,null,null,null,null,null,null,"StartY",50,"mm"]
[]
["Design ID:","NonplanarCylinder+FlowStabiliser","Save to sheet:","FullControlPaperExamples",null,null,null,null,null,null,null,null,null,null,null,null,null,null,null,null,null,null,null,null,null,null,null,null,null,null,null,null,null,null,null,null,null,null,null,null,"Save data (DO NOT DELETE):","Save time: 14/07/2020 12:03:53","Design ID:","NonplanarCylinder+FlowStabiliser","Save to sheet:","FullControlPaperExamples"]
["Feature",null,null,null,null,null,null,null,null,null,null,null,null,null,null,null,"Comments"]
[1,"Line","Cartesian",20,10,0,30,10,0,"Print",0.6,0.2,null,null,null,null,"FLOW STABILISER (E.G. USE AS FEATURES 1 TO 3) - AKA PRIMER",null,"Settings"]
[2,"Rectangle","R0","R0","R100","R-1",0,"CW",0.6,0.2,null,null,null,null,null,null,"FLOW STABILISER (E.G. USE AS FEATURES 1 TO 3) - AKA PRIMER",null,"Zoffset",0.2,"mm"]
[3,"Line","Cartesian","R0","R0","R0",40,50,0,"Print",0.6,0.2,null,null,null,null,"FLOW STABILISER (E.G. USE AS FEATURES 1 TO 3) - AKA PRIMER",null,"FirstLayerExtrusionMultiplier",1,"no units"]
[4,"Polygon",50,50,0,10,180,"CW",{"$f":"Sides","v":{"$error":"#NAME?"}},0.6,0.2,null,null,null,null,null,"PRINT POLYGON WITH NUMBER OF SIDES INDICATED BY \"Sides\" PARAMETER",null,"FirstLayerNozzleSpeedMultiplier",1,"no units"]
[5,"Cartesian repeat",4,0,0,0.2,{"$f":"_xlfn.SINGLE(layers)","v":10},null,null,null,null,null,null,null,null,null,"REPEAT FOR NUMBER OF LAYERS LISTED BY THE \"Layers\" PARAMETER",null,"ToolChange ID","Default"]
[6,"Repeat rule",5,4,1,{"$f":"_xlfn.SINGLE(layers)","v":10},"OffsetLinearMaths",0,"0","(50-Yval)*(50-Xval)*REPval/2000","YES","YES",null,null,null,null,"USE EITHER FEATURE 6 OR 7 TO MAKE CYLINDER NONPLANAR",null,"Start tool  (after StartGCODE)",0]
[7,"SKIP_Postprocess","4,5","OffsetPolarMaths",{"$f":"C200","v":50},{"$f":"D200","v":50},0,0,"sin(Aval*2)*3*Zval/20","YES","YES",null,null,null,null,null,"USE EITHER FEATURE 6 OR 7 TO MAKE CYLINDER NONPLANAR"]
[8,null,null,null,null,null,null,null,null,null,null,null,null,null,null,null,null,null,"BedTemp",60,"C"]
[9,null,"See tutorials of how to use \"Skip/Stop/Use\" functions to disable and enable either feature 6 or 7.",null,null,null,null,null,null,null,null,null,null,null,null,null,null,null,"NozzleFeedratePrinting",1000,"mm/min"]
[10,null,null,null,null,null,null,null,null,null,null,null,null,null,null,null,null,null,"NozzleFeedrateTravelling",9000,"mm/min"]
[11,null,null,null,null,null,null,null,null,null,null,null,null,null,null,null,null,null,"NozzleTemp",210,"C"]
[null,null,null,null,null,null,null,null,null,null,null,null,null,null,null,null,null,null,"FeedstockFilamentDiameter",2.85,"mm"]
[null,null,null,null,null,null,null,null,null,null,null,null,null,null,null,null,null,null,"ExtrusionUnits","mm3","mm OR mm3"]
[null,null,null,null,null,null,null,null,null,null,null,null,null,null,null,null,null,null,"StartGCODE ID","ULTI2+_Temps&Fan"]
[null,null,null,null,null,null,null,null,null,null,null,null,null,null,null,null,null,null,"EndGCODE ID","ULTI2+_1"]
[null,null,null,null,null,null,null,null,null,null,null,null,null,null,null,null,null,null,"Start X (after StartGCODE)",20,"mm"]
[null,null,null,null,null,null,null,null,null,null,null,null,null,null,null,null,null,null,"Start Y (after StartGCODE)",10,"mm"]
[null,null,null,null,null,null,null,null,null,null,null,null,null,null,null,null,null,null,"Start Z (after StartGCODE)",0.3,"mm"]
[null,null,null,null,null,null,null,null,null,null,null,null,null,null,null,null,null,null,"FanSpeed",0]
[null,null,null,null,null,null,null,null,null,null,null,null,null,null,null,null,null,null,"AutoTravelRetraction?","no","yes/no"]
[null,null,null,null,null,null,null,null,null,null,null,null,null,null,null,null,null,null," - Threshold distance",5,"mm"]
[null,null,null,null,null,null,null,null,null,null,null,null,null,null,null,null,null,null," - Retraction (E-value)",7,"mm OR mm3"]
[null,null,null,null,null,null,null,null,null,null,null,null,null,null,null,null,null,null," - Retraction speed (F-value)",2500,"mm/min"]
[null,null,null,null,null,null,null,null,null,null,null,null,null,null,null,null,null,null," - Unretraction (E-value)",{"$f":"-T218","v":-7},"mm OR mm3"]
[null,null,null,null,null,null,null,null,null,null,null,null,null,null,null,null,null,null," - Unretraction speed (F-value)",{"$f":"T219","v":2500},"mm/min"]
[null,null,null,null,null,null,null,null,null,null,null,null,null,null,null,null,null,null," - Z-hop",0.2,"mm"]
[null,null,null,null,null,null,null,null,null,null,null,null,null,null,null,null,null,null," - Z-hop speed (F-value)",7500,"mm/min"]
[]
[null,null,null,null,null,null,null,null,null,null,null,null,null,null,null,null,null,null,"Parameter name","Parameter value","Units"]
[]
[null,null,null,null,null,null,null,null,null,null,null,null,null,null,null,null,null,null,"Sides",12,"no units"]
[null,null,null,null,null,null,null,null,null,null,null,null,null,null,null,null,null,null,"Layers",100,"no units"]
[]
["Design ID:","New Design","Save to sheet:","FullControlPaperExamples",null,null,null,null,null,null,null,null,null,null,null,null,null,null,null,null,null,null,null,null,null,null,null,null,null,null,null,null,null,null,null,null,null,null,null,null,"Save data (DO NOT DELETE):","Save time: 09/09/2020 15:56:09","Design ID:","New Design","Save to sheet:","FullControlPaperExamples"]
["Feature",null,null,null,null,null,null,null,null,null,null,null,null,null,null,null,"Comments"]
[1,null,null,null,null,null,null,null,null,null,null,null,null,null,null,null,null,null,"Settings"]
[2,null,null,null,null,null,null,null,null,null,null,null,null,null,null,null,null,null,"Zoffset",0.2,"mm"]
[3,null,null,null,null,null,null,null,null,null,null,null,null,null,null,null,null,null,"FirstLayerExtrusionMultiplier",1,"no units"]
[4,null,null,null,null,null,null,null,null,null,null,null,null,null,null,null,null,null,"FirstLayerNozzleSpeedMultiplier",1,"no units"]
[5,null,null,null,null,null,null,null,null,null,null,null,null,null,null,null,null,null,"ToolChange ID","Default"]
[6,null,null,null,null,null,null,null,null,null,null,null,null,null,null,null,null,null,"Start tool  (after StartGCODE)",0]
[7]
[8,null,null,null,null,null,null,null,null,null,null,null,null,null,null,null,null,null,"BedTemp",60,"C"]
[9,null,null,null,null,null,null,null,null,null,null,null,null,null,null,null,null,null,"NozzleFeedratePrinting",1000,"mm/min"]
[10,null,null,null,null,null,null,null,null,null,null,null,null,null,null,null,null,null,"NozzleFeedrateTravelling",9000,"mm/min"]
[11,null,null,null,null,null,null,null,null,null,null,null,null,null,null,null,null,null,"NozzleTemp",210,"C"]
[null,null,null,null,null,null,null,null,null,null,null,null,null,null,null,null,null,null,"FeedstockFilamentDiameter",2.85,"mm"]
[null,null,null,null,null,null,null,null,null,null,null,null,null,null,null,null,null,null,"ExtrusionUnits","mm3","mm OR mm3"]
[null,null,null,null,null,null,null,null,null,null,null,null,null,null,null,null,null,null,"StartGCODE ID","ULTI2+_Temps&Fan"]
[null,null,null,null,null,null,null,null,null,null,null,null,null,null,null,null,null,null,"EndGCODE ID","ULTI2+_1"]
[null,null,null,null,null,null,null,null,null,null,null,null,null,null,null,null,null,null,"Start X (after StartGCODE)",20,"mm"]
[null,null,null,null,null,null,null,null,null,null,null,null,null,null,null,null,null,null,"Start Y (after StartGCODE)",10,"mm"]
[null,null,null,null,null,null,null,null,null,null,null,null,null,null,null,null,null,null,"Start Z (after StartGCODE)",0.3,"mm"]
[null,null,null,null,null,null,null,null,null,null,null,null,null,null,null,null,null,null,"FanSpeed",0]
[null,null,null,null,null,null,null,null,null,null,null,null,null,null,null,null,null,null,"AutoTravelRetraction?","no","yes/no"]
[null,null,null,null,null,null,null,null,null,null,null,null,null,null,null,null,null,null," - Threshold distance",5,"mm"]
[null,null,null,null,null,null,null,null,null,null,null,null,null,null,null,null,null,null," - Retraction (E-value)",7,"mm OR mm3"]
[null,null,null,null,null,null,null,null,null,null,null,null,null,null,null,null,null,null," - Retraction speed (F-value)",2500,"mm/min"]
[null,null,null,null,null,null,null,null,null,null,null,null,null,null,null,null,null,null," - Unretraction (E-value)",{"$f":"-T253","v":-7},"mm OR mm3"]
[null,null,null,null,null,null,null,null,null,null,null,null,null,null,null,null,null,null," - Unretraction speed (F-value)",{"$f":"T254","v":2500},"mm/min"]
[null,null,null,null,null,null,null,null,null,null,null,null,null,null,null,null,null,null," - Z-hop",0.2,"mm"]
[null,null,null,null,null,null,null,null,null,null,null,null,null,null,null,null,null,null," - Z-hop speed (F-value)",7500,"mm/min"]
[]
[null,null,null,null,null,null,null,null,null,null,null,null,null,null,null,null,null,null,"Parameter name","Parameter value","Units"]
[]
[null,null,null,null,null,null,null,null,null,null,null,null,null,null,null,null,null,null,"LayerHeight",0.2,"mm"]
[null,null,null,null,null,null,null,null,null,null,null,null,null,null,null,null,null,null,"ShoulderThickness",1,"mm"]
[null,null,null,null,null,null,null,null,null,null,null,null,null,null,null,null,null,null,"GaugeThickness",0.5,"mm"]

{"sheet":"RepFeatList","index":4,"n_rows":1,"n_cols":4,"rows_kept":1,"cut":false,"hidden":false,"merged":[]}
["Original feature numbers","Copied feature","New feature numbers","Feature details"]

{"sheet":"RecycleBin","index":5,"n_rows":0,"n_cols":0,"rows_kept":0,"cut":false,"hidden":false,"merged":[]}

{"sheet":"FeatParams","index":6,"n_rows":47,"n_cols":18,"rows_kept":47,"cut":false,"hidden":false,"merged":[[20,6,20,14],[41,3,41,14]]}
[null,"This sheet contains the information required for each type of feature. Units should be considered to be mm and degrees unless stated otherwise. Further details are provided about each feature in supporting videos."]
[null,"Line (cartesian)","Cartesian","X1","Y1","Z1","X2","Y2","Z2","\"Print\" or \"Travel\"","NomWidth","NomHeight","E=?;F=?;T=?     EvalueOverride;F-SpeedOverride:ToolNumber"]
[null,"Line (polar)","Polar","X-centre","Y-centre","RadiusOfPoint1","AngleStart (0=+X,90=+Y)","Z1","RadiusOfPoint2","AngleEnd (0=+X,90=+Y)","Z2","\"Print\" or \"Travel\"","NomWidth","NomHeight","E=?;F=?;T=?     EvalueOverride;F-SpeedOverride:ToolNumber"]
[null,"Line equation","X-formula","Y-formula","Z-formula","\"T\"-start","\"T\"-end","NumberOfSegments (equal T spacing)","NomWidth","NomHeight","Eoverride-formula (per seg)","F-speed formula","T=?;more?",null,"Calculation order = \nX then Y then Z then Width then Height then Eoverride then F-Speed … NOTE THAT CALCULATIONS ARE DONE ONLY ONCE! NO ITERATIVE SOLVING!","Terms for X/Y equations: \n\"Tval\" \"Zval\"\n\nTerms for Z equation: \n\"Tval\" \"Xval\" \"Yval\" \"Zval\"\n\nTerms for the other 4 equations:\n\"Tstart\" \"Xstart\" \"Ystart\" \"Zstart\" = T/X/Y/Z at start of segment\n\"Tend\" \"Xend\" \"Yend\" \"Zend\" = T/X/Y/Z at end of segment\n\"Tmid\" \"Xmid\" \"Ymid\" \"Zmid\" = mean of start and end"]
[null,"Line equation polar","X-centre","Y-centre","Angle-formula (radians)","Radial-formula","Z-formula","\"T\"-start","\"T\"-end","NumberOfSegments (equal T spacing)","NomWidth","NomHeight","Eoverride-formula (per seg)","F-speed formula","T=? (tool number)","Calculation order = \nAngle then Radius then Z then Width then Height then Eoverride then F-Speed … NOTE THAT CALCULATIONS ARE DONE ONLY ONCE! NO ITERATIVE SOLVING!\n\nTerms for Angle/Radius equations: \n\"Tval\" \"Zval\"\n\nTerms for Z equation: \n\"Tval\" \"Aval\" (radians) \"Rval\" \"Zval\"\n\nTerms for the other 4 equations:\n\"Tstart\" \"Astart\"(radians) \"Rstart\" \"Zstart\" = T/Angle/Radius/Z at start of segment\n\"Tend\" \"Aend\"(radians) \"Rend\" \"Zend\" = T/Angle/Radius/Z at end of segment\n\"Tmid\" \"Amid\"(radians) \"Rmid\" \"Zmid\" = mean of start and end"]
[null,"Circle/arc","X-centre","Y-centre","Z-centre","Radius","AngleStart (0=+X,90=+Y)","ArcAngle (0-360)","CW or anti-CW","NumberOfSegments","NomWidth","NomHeight","E=?;F=?;T=?     EvaluePerSegmentOverride;F-SpeedOverride:ToolNumber"]
[null,"Rectangle","X1","Y1","X2","Y2","Z","CW or anti-CW","NomWidth","NomHeight","E=?;F=?;T=?     EvaluePerSegmentOverride;F-SpeedOverride:ToolNumber"]
[null,"Polygon","X-centre","Y-centre","Z-centre","RadiusOfCircleContainingPolygon","AngleOfStartPoint (0=+X,90=+Y)","CW or anti-CW","NumberOfSides","NomWidth","NomHeight","E=?;F=?;T=?     EvaluePerSegmentOverride;F-SpeedOverride:ToolNumber"]
[null," "]
[null,"Cartesian repeat","Repeated feature(s)","X-disp","Y-disp","Z-disp","Repeats (excl. original)"]
[null,"Polar repeat","Repeated feature(s)","X-centre","Y-centre","Angle (+ive = anti-CW)","Radial (+ive = out)","Repeats (excl. original)"]
[null,"Reflect (XY)","Features included","XY","X1","Y1","X2","Y2"]
[null,"Reflect (polar)","Features included","Polar","Xc","Yc","PolarAngle",null,"(Xc Yc is the point the reflective line goes through - centre of circle for polar line)"]
[null,"Reflect (Z)","Features included","Z","Zvalue",null,"To move up by one layer, set Z value to be the current value plus HALF a layer height (it can be written as a relateive value using \"R\")"]
[null,"Concentric repeat (only for \"rectangle\")","Features included","Inside or Outside","Repeats (excl. original)","Spacing",null,null,null,"This only works for rectangles. For polygons and circles/arcs, use \"Polar repeat\" with radial displacement to achieve a concentric pattern"]
[null,"Reproduce and recalculate","Features included","Repeats (excl. original)","X-disp","Y-disp","Z-disp","X-centre","Y-centre","Angle (+ive = anti-CW)","Radial (+ive = out) (degrees)",null,"Features are simply copied directly, as if they were now rows written by the user (feature numbers are updated for features like cartesian repeat that refer to other features)","Choose EITHER cartesian or polar displacements","NOTE A: parameters described by relative coordinates (e.g. \"R0\") will not be changed. Nor will \"offsets.\" Nor will linear equations for \"Postprocess\" features (but they could be if needed, and polar offsets/equations do have the Xcentre and Ycentre adjusted).","NOTE B: since X and Y equations are solved first for cartesian equations (and angle and radius equations solved first for polar equations), if you make them dependent on Zval, the first point of each reproduced equation will be calculated using the value of Z at the end of the previous print-path segment (i.e. BEFORE the \"Reproduce and recalculate\" feature). This can cause the first point to be at an unexpected position compared to other points in the line equation. It's difficult to solve this issue in VBA, so a workaround is to add a cartesian line feature after the line equation going from X1=R0,Y1=R0,Z1=R0 to X2=R0,Y2=R0,Z2=R[layerheight] and include this line feature in the \"Reproduce and recalculate\" feature list. This means the nozzle will have moved up to the new Z position before the X/Y/angle/radius equations are calculated for the first point of each reproduced equation."]
[null," "]
[null,"Retraction","E-value (+ive = retract)","F-Speed (for retraction)","Z-hop (mm) (+ive = +Z)","F-Speed (for Z-hop)"]
[null,"Custom GCODE","String","Value","String","Value","String","Value","String","Value","String","Value",null,null,"DO NOT CHANGE X, Y,  Z or F-speed because the program does not current detect this yet"]
[null," "]
[null,"Repeat rule","RepeatING feature - the feature doing the repeating","RepeatED feature(s) - the feature(s) being repeated","RepeatStart:\n0 is the original feature\n1 is the first repeated feature","RepeatEnd","Choose: \nNomWidth NomWidthIncrement (parameters: width)\nNomHeight NomHeightIncrement (parameters: height)\nFspeed FspeedIncrement (parameters: speed)\nOffsetLinear OffsetLinearIncrement OffsetLinearIncrementGraded  (parameters: Xoffset, Yoffset)\nOffsetPolar OffsetPolarIncrement  (parameters: Xcentre, Ycentre, AngleOffset, RadialOffset)\nGenericParameterIncrement GenericParameter (ParamNumber(colB=1), Value) - ONLY WORKS FOR CUSTOM GCODE AND RETRACTION\nEtc."]
[]
[null,null,null,null,null,null,"NomWidth","VALUE",null,"Value of width for each repeat this rule applies to"]
[null,null,null,null,null,null,"NomWidthIncrement","VALUE",null,"How much to change the width by (absolute) for each repeat this rule applies to (cumulative)"]
[null,null,null,null,null,null,"NomHeight","VALUE",null,"Value of height for each repeat this rule applies to"]
[null,null,null,null,null,null,"NomHeightIncrement","VALUE",null,"How much to change the height by (absolute) for each repeat this rule applies to (cumulative)"]
[null,null,null,null,null,null,"Fspeed","VALUE",null,"Value of speed for each repeat this rule applies to"]
[null,null,null,null,null,null,"FspeedIncrement","VALUE",null,"How much to change the wpeed by (absolute) for each repeat this rule applies to (cumulative)"]
[null,null,null,null,null,null,"OffsetPolar","X-centre","Y-centre","AngleDisp","RadialDisp","ApplyToStartNode? (YES/NO)","ApplyToEndNode? (YES/NO)",null,"Rotation centre (XY), angular rotation increment (degree), and radial displacement (mm) for each line for each repeat this rule applies to"]
[null,null,null,null,null,null,"OffsetPolarIncrement","X-centre","Y-centre","AngleDisp","RadialDisp","ApplyToStartNode? (YES/NO)","ApplyToEndNode? (YES/NO)",null,"Rotation centre (XY), angular rotation increment (degree), and radial displacement (mm) for each line for each repeat this rule applies to (cumulative)"]
[null,null,null,null,null,null,"OffsetPolarMaths","X-centre","Y-centre","AngleDisp-formula","RadialDisp-formula","Zoffset-formula","ApplyToStartNode? (YES/NO)","ApplyToEndNode? (YES/NO)",null,"Rotation centre (XY), equation for angular displacement (radians), and equation for radial displacement (mm) for each line for each repeat this rule applies to",null,"Terms for A/R/Z equations: \n\"Xval\" \"Yval\" \"Zval\" \"Aval\" \"Rval\" \"REPval\" where REPval is the number of the repeat being modified (starting at 1 for the first repeat being modified [even if that is not the first repeat])\n\nThe X/Y/Z values are taken from the start and end node as appropriate."]
[null,null,null,null,null,null,"OffsetLinear","Xoffset","Yoffset","Zoffset","ApplyToStartNode? (YES/NO)","ApplyToEndNode? (YES/NO)"]
[null,null,null,null,null,null,"OffsetLinearIncrement","Xoffset","Yoffset","Zoffset","ApplyToStartNode? (YES/NO)","ApplyToEndNode? (YES/NO)"]
[null,null,null,null,null,null,"OffsetLinearIncrementGraded","Xoffset","Yoffset","Zoffset","ApplyToStartNode? (YES/NO)","ApplyToEndNode? (YES/NO)"]
[null,null,null,null,null,null,"OffsetLinearMaths","Xoffset-formula","Yoffset-formula","Zoffset-formula","ApplyToStartNode? (YES/NO)","ApplyToEndNode? (YES/NO)","Calculation order = \nall three calculations based on the initial position",null,null,null,"Terms for X/Y/Z equations: \n\"Xval\" \"Yval\" \"Zval\" \"REPval\" where REPval is the number of the repeat being modified (starting at 1 for the first repeat being modified [even if that is not the first repeat])\n\nThe X/Y/Z values are taken from the start and end node as appropriate."]
[null,null,null,null,null,null,"GenericParameter","ParamNumber(colB=1)","Value",null,null,null,"ONLY WORKS FOR CUSTOM GCODE AND RETRACTION. For multiple features, they all have the same param numbers modified, which it turn all have the same modifier value. Create a new value if there are multiple values or different parameters for different features"]
[null,null,null,null,null,null,"GenericParameterIncrement","ParamNumber(colB=1)","Value",null,null,null,"ONLY WORKS FOR CUSTOM GCODE AND RETRACTION. For multiple features, they all have the same param numbers modified, which it turn all have the same modifier value. Create a new value if there are multiple values or different parameters for different features"]
[null,null,null,null,null,null,"ChangeTool","VALUE","Number of the new tool for each repeat this rule applies to"]
[]
[]
[]
[null,"Postprocess","Features included","Choose:\n\nOffsetLinear\nOffsetLinearMaths\nOffsetPolar\nOffsetPolarMaths"]
[]
[null,null,null,"OffsetLinear","Xoffset","Yoffset","Zoffset","ApplyToStartNode? (YES/NO)","ApplyToEndNode? (YES/NO)"]
[null,null,null,"OffsetLinearMaths","X-formula","Y-formula","Z-formula","ApplyToStartNode? (YES/NO)","ApplyToEndNode? (YES/NO)",null,null,null,"Calculation order = \nall three calculations based on the initial position",null,null,"Terms for X/Y/Z equations: \n\"Xval\" \"Yval\" \"Zval\"\n\nThe X/Y/Z values are taken from the start and end node as appropriate."]
[null,null,null,"OffsetPolar","X-centre","Y-centre","AngularDisp","RadialDisp","ApplyToStartNode? (YES/NO)","ApplyToEndNode? (YES/NO)",null,null,null,null,"Rotation centre (XY), angular rotation increment (degree), and radial displacement (mm) for each line for each repeat this rule applies to"]
[null,null,null,"OffsetPolarMaths","X-centre","Y-centre","AngularDisp-formula","RadialDisp-formula","Zoffset-formula","ApplyToStartNode? (YES/NO)","ApplyToEndNode? (YES/NO)",null,null,null,"Rotation centre (XY), equation for angular displacement (radians), and equation for radial displacement (mm) for each line for each repeat this rule applies to","Terms for A/R/Z equations: \n\"Xval\" \"Yval\" \"Zval\" \"Aval\" \"Rval\"\n\nThe X/Y/Z values are taken from the start and end node as appropriate."]

{"sheet":"Printpath","index":7,"n_rows":841,"n_cols":17,"rows_kept":841,"cut":false,"hidden":false,"merged":[]}
["Command","X1","Y1","Z1","X2","Y2","Z2","NomWidth","NomHeight","E","F","T","Extra","Feature number","Feature tree","Notes"]
["Travel",20,10,0.3,50,50,0,0,0,null,9000,null,null,0,0,"Travel automatically added","G0 F9000 X50.0 Y50.0 Z0.2"]
["Print",50,50,0,50,150,0,0.5,0.2,10,1000,0,null,1,"1","RectangleFeat1","G1 F1000 Y150.0 E10.0"]
["Print",50,150,0,150,150,0,0.5,0.2,10,1000,0,null,1,"1","RectangleFeat1","G1 X150.0 E10.0"]
["Print",150,150,0,150,50,0,0.5,0.2,10,1000,0,null,1,"1","RectangleFeat1","G1 Y50.0 E10.0"]
["Print",150,50,0,50,50,0,0.5,0.2,10,1000,0,null,1,"1","RectangleFeat1","G1 X50.0 E10.0"]
["Print",50,50,0,50,55,0,0.5,0.2,0.5,1000,0,null,2,"2","LineFeat1","G1 Y55.0 E0.5"]
["Print",50,55,0,150,55,0,0.5,0.2,10,1000,0,null,3,"3","LineFeat2","G1 X150.0 E10.0"]
["Print",150,55,0,150,60,0,0.5,0.2,0.5,1000,0,null,4,"4","LineFeat3","G1 Y60.0 E0.5"]
["Print",150,60,0,50,60,0,0.5,0.2,10,1000,0,null,5,"5","LineFeat4","G1 X50.0 E10.0"]
["Print",50,60,0,50,65,0,0.5,0.2,0.5,1000,0,null,6,"6.1-2","CartesianRepFeat1 of LineFeat1","G1 Y65.0 E0.5"]
["Print",50,65,0,150,65,0,0.5,0.2,10,1000,0,null,6,"6.1-3","CartesianRepFeat1 of LineFeat2","G1 X150.0 E10.0"]
["Print",150,65,0,150,70,0,0.5,0.2,0.5,1000,0,null,6,"6.1-4","CartesianRepFeat1 of LineFeat3","G1 Y70.0 E0.5"]
["Print",150,70,0,50,70,0,0.5,0.2,10,1000,0,null,6,"6.1-5","CartesianRepFeat1 of LineFeat4","G1 X50.0 E10.0"]
["Print",50,70,0,50,75,0,0.5,0.2,0.5,1000,0,null,6,"6.2-2","CartesianRepFeat1 of LineFeat1","G1 Y75.0 E0.5"]
["Print",50,75,0,150,75,0,0.5,0.2,10,1000,0,null,6,"6.2-3","CartesianRepFeat1 of LineFeat2","G1 X150.0 E10.0"]
["Print",150,75,0,150,80,0,0.5,0.2,0.5,1000,0,null,6,"6.2-4","CartesianRepFeat1 of LineFeat3","G1 Y80.0 E0.5"]
["Print",150,80,0,50,80,0,0.5,0.2,10,1000,0,null,6,"6.2-5","CartesianRepFeat1 of LineFeat4","G1 X50.0 E10.0"]
["Print",50,80,0,50,85,0,0.5,0.2,0.5,1000,0,null,6,"6.3-2","CartesianRepFeat1 of LineFeat1","G1 Y85.0 E0.5"]
["Print",50,85,0,150,85,0,0.5,0.2,10,1000,0,null,6,"6.3-3","CartesianRepFeat1 of LineFeat2","G1 X150.0 E10.0"]
["Print",150,85,0,150,90,0,0.5,0.2,0.5,1000,0,null,6,"6.3-4","CartesianRepFeat1 of LineFeat3","G1 Y90.0 E0.5"]
["Print",150,90,0,50,90,0,0.5,0.2,10,1000,0,null,6,"6.3-5","CartesianRepFeat1 of LineFeat4","G1 X50.0 E10.0"]
["Print",50,90,0,50,95,0,0.5,0.2,0.5,1000,0,null,6,"6.4-2","CartesianRepFeat1 of LineFeat1","G1 Y95.0 E0.5"]
["Print",50,95,0,150,95,0,0.5,0.2,10,1000,0,null,6,"6.4-3","CartesianRepFeat1 of LineFeat2","G1 X150.0 E10.0"]
["Print",150,95,0,150,100,0,0.5,0.2,0.5,1000,0,null,6,"6.4-4","CartesianRepFeat1 of LineFeat3","G1 Y100.0 E0.5"]
["Print",150,100,0,50,100,0,0.5,0.2,10,1000,0,null,6,"6.4-5","CartesianRepFeat1 of LineFeat4","G1 X50.0 E10.0"]
["Print",50,100,0,50,105,0,0.5,0.2,0.5,1000,0,null,6,"6.5-2","CartesianRepFeat1 of LineFeat1","G1 Y105.0 E0.5"]
["Print",50,105,0,150,105,0,0.5,0.2,10,1000,0,null,6,"6.5-3","CartesianRepFeat1 of LineFeat2","G1 X150.0 E10.0"]
["Print",150,105,0,150,110,0,0.5,0.2,0.5,1000,0,null,6,"6.5-4","CartesianRepFeat1 of LineFeat3","G1 Y110.0 E0.5"]
["Print",150,110,0,50,110,0,0.5,0.2,10,1000,0,null,6,"6.5-5","CartesianRepFeat1 of LineFeat4","G1 X50.0 E10.0"]
["Print",50,110,0,50,115,0,0.5,0.2,0.5,1000,0,null,6,"6.6-2","CartesianRepFeat1 of LineFeat1","G1 Y115.0 E0.5"]
["Print",50,115,0,150,115,0,0.5,0.2,10,1000,0,null,6,"6.6-3","CartesianRepFeat1 of LineFeat2","G1 X150.0 E10.0"]
["Print",150,115,0,150,120,0,0.5,0.2,0.5,1000,0,null,6,"6.6-4","CartesianRepFeat1 of LineFeat3","G1 Y120.0 E0.5"]
["Print",150,120,0,50,120,0,0.5,0.2,10,1000,0,null,6,"6.6-5","CartesianRepFeat1 of LineFeat4","G1 X50.0 E10.0"]
["Print",50,120,0,50,125,0,0.5,0.2,0.5,1000,0,null,6,"6.7-2","CartesianRepFeat1 of LineFeat1","G1 Y125.0 E0.5"]
["Print",50,125,0,150,125,0,0.5,0.2,10,1000,0,null,6,"6.7-3","CartesianRepFeat1 of LineFeat2","G1 X150.0 E10.0"]
["Print",150,125,0,150,130,0,0.5,0.2,0.5,1000,0,null,6,"6.7-4","CartesianRepFeat1 of LineFeat3","G1 Y130.0 E0.5"]
["Print",150,130,0,50,130,0,0.5,0.2,10,1000,0,null,6,"6.7-5","CartesianRepFeat1 of LineFeat4","G1 X50.0 E10.0"]
["Print",50,130,0,50,135,0,0.5,0.2,0.5,1000,0,null,6,"6.8-2","CartesianRepFeat1 of LineFeat1","G1 Y135.0 E0.5"]
["Print",50,135,0,150,135,0,0.5,0.2,10,1000,0,null,6,"6.8-3","CartesianRepFeat1 of LineFeat2","G1 X150.0 E10.0"]
["Print",150,135,0,150,140,0,0.5,0.2,0.5,1000,0,null,6,"6.8-4","CartesianRepFeat1 of LineFeat3","G1 Y140.0 E0.5"]
["Print",150,140,0,50,140,0,0.5,0.2,10,1000,0,null,6,"6.8-5","CartesianRepFeat1 of LineFeat4","G1 X50.0 E10.0"]
["Print",50,140,0,50,145,0,0.5,0.2,0.5,1000,0,null,7,"7.1-2","CartesianRepFeat2 of LineFeat1","G1 Y145.0 E0.5"]
["Print",50,145,0,150,145,0,0.5,0.2,10,1000,0,null,7,"7.1-3","CartesianRepFeat2 of LineFeat2","G1 X150.0 E10.0"]
["Print",150,145,0,150,150,0,0.5,0.2,0.5,1000,0,null,7,"7.1-4","CartesianRepFeat2 of LineFeat3","G1 Y150.0 E0.5"]
["Travel",150,150,0,150,150,0.1,0,0,null,9000,null,null,0,0,"Travel automatically added","G0 F9000 Z0.3"]
["Print",150,150,0.1,145,150,0.1,0.5,0.2,0.5,1000,0,null,8,"9-7.1-4-8.1","Postprocessed version of ReflectFeat1 of CartesianRepFeat2 of LineFeat3","G1 F1000 X145.0 E0.5"]
["Print",145,150,0.1,145,50,0.1,0.5,0.2,10,1000,0,null,8,"9-7.1-3-8.1","Postprocessed version of ReflectFeat1 of CartesianRepFeat2 of LineFeat2","G1 Y50.0 E10.0"]
["Print",145,50,0.1,140,50,0.1,0.5,0.2,0.5,1000,0,null,8,"9-7.1-2-8.1","Postprocessed version of ReflectFeat1 of CartesianRepFeat2 of LineFeat1","G1 X140.0 E0.5"]
["Print",140,50,0.1,140,150,0.1,0.5,0.2,10,1000,0,null,8,"9-6.8-5-8.1","Postprocessed version of ReflectFeat1 of CartesianRepFeat1 of LineFeat4","G1 Y150.0 E10.0"]
["Print",140,150,0.1,135,150,0.1,0.5,0.2,0.5,1000,0,null,8,"9-6.8-4-8.1","Postprocessed version of ReflectFeat1 of CartesianRepFeat1 of LineFeat3","G1 X135.0 E0.5"]
["Print",135,150,0.1,135,50,0.1,0.5,0.2,10,1000,0,null,8,"9-6.8-3-8.1","Postprocessed version of ReflectFeat1 of CartesianRepFeat1 of LineFeat2","G1 Y50.0 E10.0"]
["Print",135,50,0.1,130,50,0.1,0.5,0.2,0.5,1000,0,null,8,"9-6.8-2-8.1","Postprocessed version of ReflectFeat1 of CartesianRepFeat1 of LineFeat1","G1 X130.0 E0.5"]
["Print",130,50,0.1,130,150,0.1,0.5,0.2,10,1000,0,null,8,"9-6.7-5-8.1","Postprocessed version of ReflectFeat1 of CartesianRepFeat1 of LineFeat4","G1 Y150.0 E10.0"]
["Print",130,150,0.1,125,150,0.1,0.5,0.2,0.5,1000,0,null,8,"9-6.7-4-8.1","Postprocessed version of ReflectFeat1 of CartesianRepFeat1 of LineFeat3","G1 X125.0 E0.5"]
["Print",125,150,0.1,125,50,0.1,0.5,0.2,10,1000,0,null,8,"9-6.7-3-8.1","Postprocessed version of ReflectFeat1 of CartesianRepFeat1 of LineFeat2","G1 Y50.0 E10.0"]
["Print",125,50,0.1,120,50,0.1,0.5,0.2,0.5,1000,0,null,8,"9-6.7-2-8.1","Postprocessed version of ReflectFeat1 of CartesianRepFeat1 of LineFeat1","G1 X120.0 E0.5"]
["Print",120,50,0.1,120,150,0.1,0.5,0.2,10,1000,0,null,8,"9-6.6-5-8.1","Postprocessed version of ReflectFeat1 of CartesianRepFeat1 of LineFeat4","G1 Y150.0 E10.0"]
["Print",120,150,0.1,115,150,0.1,0.5,0.2,0.5,1000,0,null,8,"9-6.6-4-8.1","Postprocessed version of ReflectFeat1 of CartesianRepFeat1 of LineFeat3","G1 X115.0 E0.5"]
["Print",115,150,0.1,115,50,0.1,0.5,0.2,10,1000,0,null,8,"9-6.6-3-8.1","Postprocessed version of ReflectFeat1 of CartesianRepFeat1 of LineFeat2","G1 Y50.0 E10.0"]
["Print",115,50,0.1,110,50,0.1,0.5,0.2,0.5,1000,0,null,8,"9-6.6-2-8.1","Postprocessed version of ReflectFeat1 of CartesianRepFeat1 of LineFeat1","G1 X110.0 E0.5"]
["Print",110,50,0.1,110,150,0.1,0.5,0.2,10,1000,0,null,8,"9-6.5-5-8.1","Postprocessed version of ReflectFeat1 of CartesianRepFeat1 of LineFeat4","G1 Y150.0 E10.0"]
["Print",110,150,0.1,105,150,0.1,0.5,0.2,0.5,1000,0,null,8,"9-6.5-4-8.1","Postprocessed version of ReflectFeat1 of CartesianRepFeat1 of LineFeat3","G1 X105.0 E0.5"]
["Print",105,150,0.1,105,50,0.1,0.5,0.2,10,1000,0,null,8,"9-6.5-3-8.1","Postprocessed version of ReflectFeat1 of CartesianRepFeat1 of LineFeat2","G1 Y50.0 E10.0"]
["Print",105,50,0.1,100,50,0.1,0.5,0.2,0.5,1000,0,null,8,"9-6.5-2-8.1","Postprocessed version of ReflectFeat1 of CartesianRepFeat1 of LineFeat1","G1 X100.0 E0.5"]
["Print",100,50,0.1,100,150,0.1,0.5,0.2,10,1000,0,null,8,"9-6.4-5-8.1","Postprocessed version of ReflectFeat1 of CartesianRepFeat1 of LineFeat4","G1 Y150.0 E10.0"]
["Print",100,150,0.1,95,150,0.1,0.5,0.2,0.5,1000,0,null,8,"9-6.4-4-8.1","Postprocessed version of ReflectFeat1 of CartesianRepFeat1 of LineFeat3","G1 X95.0 E0.5"]
["Print",95,150,0.1,95,50,0.1,0.5,0.2,10,1000,0,null,8,"9-6.4-3-8.1","Postprocessed version of ReflectFeat1 of CartesianRepFeat1 of LineFeat2","G1 Y50.0 E10.0"]
["Print",95,50,0.1,90,50,0.1,0.5,0.2,0.5,1000,0,null,8,"9-6.4-2-8.1","Postprocessed version of ReflectFeat1 of CartesianRepFeat1 of LineFeat1","G1 X90.0 E0.5"]
["Print",90,50,0.1,90,150,0.1,0.5,0.2,10,1000,0,null,8,"9-6.3-5-8.1","Postprocessed version of ReflectFeat1 of CartesianRepFeat1 of LineFeat4","G1 Y150.0 E10.0"]
["Print",90,150,0.1,85,150,0.1,0.5,0.2,0.5,1000,0,null,8,"9-6.3-4-8.1","Postprocessed version of ReflectFeat1 of CartesianRepFeat1 of LineFeat3","G1 X85.0 E0.5"]
["Print",85,150,0.1,85,50,0.1,0.5,0.2,10,1000,0,null,8,"9-6.3-3-8.1","Postprocessed version of ReflectFeat1 of CartesianRepFeat1 of LineFeat2","G1 Y50.0 E10.0"]
["Print",85,50,0.1,80,50,0.1,0.5,0.2,0.5,1000,0,null,8,"9-6.3-2-8.1","Postprocessed version of ReflectFeat1 of CartesianRepFeat1 of LineFeat1","G1 X80.0 E0.5"]
["Print",80,50,0.1,80,150,0.1,0.5,0.2,10,1000,0,null,8,"9-6.2-5-8.1","Postprocessed version of ReflectFeat1 of CartesianRepFeat1 of LineFeat4","G1 Y150.0 E10.0"]
["Print",80,150,0.1,75,150,0.1,0.5,0.2,0.5,1000,0,null,8,"9-6.2-4-8.1","Postprocessed version of ReflectFeat1 of CartesianRepFeat1 of LineFeat3","G1 X75.0 E0.5"]
["Print",75,150,0.1,75,50,0.1,0.5,0.2,10,1000,0,null,8,"9-6.2-3-8.1","Postprocessed version of ReflectFeat1 of CartesianRepFeat1 of LineFeat2","G1 Y50.0 E10.0"]
["Print",75,50,0.1,70,50,0.1,0.5,0.2,0.5,1000,0,null,8,"9-6.2-2-8.1","Postprocessed version of ReflectFeat1 of CartesianRepFeat1 of LineFeat1","G1 X70.0 E0.5"]
["Print",70,50,0.1,70,150,0.1,0.5,0.2,10,1000,0,null,8,"9-6.1-5-8.1","Postprocessed version of ReflectFeat1 of CartesianRepFeat1 of LineFeat4","G1 Y150.0 E10.0"]
["Print",70,150,0.1,65,150,0.1,0.5,0.2,0.5,1000,0,null,8,"9-6.1-4-8.1","Postprocessed version of ReflectFeat1 of CartesianRepFeat1 of LineFeat3","G1 X65.0 E0.5"]
["Print",65,150,0.1,65,50,0.1,0.5,0.2,10,1000,0,null,8,"9-6.1-3-8.1","Postprocessed version of ReflectFeat1 of CartesianRepFeat1 of LineFeat2","G1 Y50.0 E10.0"]
["Print",65,50,0.1,60,50,0.1,0.5,0.2,0.5,1000,0,null,8,"9-6.1-2-8.1","Postprocessed version of ReflectFeat1 of CartesianRepFeat1 of LineFeat1","G1 X60.0 E0.5"]
["Print",60,50,0.1,60,150,0.1,0.5,0.2,10,1000,0,null,8,"9-5-8.1","Postprocessed version of ReflectFeat1 of LineFeat4","G1 Y150.0 E10.0"]
["Print",60,150,0.1,55,150,0.1,0.5,0.2,0.5,1000,0,null,8,"9-4-8.1","Postprocessed version of ReflectFeat1 of LineFeat3","G1 X55.0 E0.5"]
["Print",55,150,0.1,55,50,0.1,0.5,0.2,10,1000,0,null,8,"9-3-8.1","Postprocessed version of ReflectFeat1 of LineFeat2","G1 Y50.0 E10.0"]
["Print",55,50,0.1,50,50,0.1,0.5,0.2,0.5,1000,0,null,8,"9-2-8.1","Postprocessed version of ReflectFeat1 of LineFeat1","G1 X50.0 E0.5"]
["Travel",50,50,0.1,50,50,0.2,0,0,null,9000,null,null,0,0,"Travel automatically added","G0 F9000 Z0.4"]
["Print",50,50,0.2,50,150,0.2,0.5,0.2,10,1000,0,null,10,"10.1-1","CartesianRepFeat3 of RectangleFeat1","G1 F1000 Y150.0 E10.0"]
["Print",50,150,0.2,150,150,0.2,0.5,0.2,10,1000,0,null,10,"10.1-1","CartesianRepFeat3 of RectangleFeat1","G1 X150.0 E10.0"]
["Print",150,150,0.2,150,50,0.2,0.5,0.2,10,1000,0,null,10,"10.1-1","CartesianRepFeat3 of RectangleFeat1","G1 Y50.0 E10.0"]
["Print",150,50,0.2,50,50,0.2,0.5,0.2,10,1000,0,null,10,"10.1-1","CartesianRepFeat3 of RectangleFeat1","G1 X50.0 E10.0"]
["Print",50,50,0.2,50,55,0.2,0.5,0.2,0.5,1000,0,null,10,"10.1-2","CartesianRepFeat3 of LineFeat1","G1 Y55.0 E0.5"]
["Print",50,55,0.2,150,55,0.2,0.5,0.2,10,1000,0,null,10,"10.1-3","CartesianRepFeat3 of LineFeat2","G1 X150.0 E10.0"]
["Print",150,55,0.2,150,60,0.2,0.5,0.2,0.5,1000,0,null,10,"10.1-4","CartesianRepFeat3 of LineFeat3","G1 Y60.0 E0.5"]
["Print",150,60,0.2,50,60,0.2,0.5,0.2,10,1000,0,null,10,"10.1-5","CartesianRepFeat3 of LineFeat4","G1 X50.0 E10.0"]
["Print",50,60,0.2,50,65,0.2,0.5,0.2,0.5,1000,0,null,10,"10.1-6.1-2","CartesianRepFeat3 of CartesianRepFeat1 of LineFeat1","G1 Y65.0 E0.5"]
["Print",50,65,0.2,150,65,0.2,0.5,0.2,10,1000,0,null,10,"10.1-6.1-3","CartesianRepFeat3 of CartesianRepFeat1 of LineFeat2","G1 X150.0 E10.0"]
["Print",150,65,0.2,150,70,0.2,0.5,0.2,0.5,1000,0,null,10,"10.1-6.1-4","CartesianRepFeat3 of CartesianRepFeat1 of LineFeat3","G1 Y70.0 E0.5"]
["Print",150,70,0.2,50,70,0.2,0.5,0.2,10,1000,0,null,10,"10.1-6.1-5","CartesianRepFeat3 of CartesianRepFeat1 of LineFeat4","G1 X50.0 E10.0"]
["Print",50,70,0.2,50,75,0.2,0.5,0.2,0.5,1000,0,null,10,"10.1-6.2-2","CartesianRepFeat3 of CartesianRepFeat1 of LineFeat1","G1 Y75.0 E0.5"]
["Print",50,75,0.2,150,75,0.2,0.5,0.2,10,1000,0,null,10,"10.1-6.2-3","CartesianRepFeat3 of CartesianRepFeat1 of LineFeat2","G1 X150.0 E10.0"]
["Print",150,75,0.2,150,80,0.2,0.5,0.2,0.5,1000,0,null,10,"10.1-6.2-4","CartesianRepFeat3 of CartesianRepFeat1 of LineFeat3","G1 Y80.0 E0.5"]
["Print",150,80,0.2,50,80,0.2,0.5,0.2,10,1000,0,null,10,"10.1-6.2-5","CartesianRepFeat3 of CartesianRepFeat1 of LineFeat4","G1 X50.0 E10.0"]
["Print",50,80,0.2,50,85,0.2,0.5,0.2,0.5,1000,0,null,10,"10.1-6.3-2","CartesianRepFeat3 of CartesianRepFeat1 of LineFeat1","G1 Y85.0 E0.5"]
["Print",50,85,0.2,150,85,0.2,0.5,0.2,10,1000,0,null,10,"10.1-6.3-3","CartesianRepFeat3 of CartesianRepFeat1 of LineFeat2","G1 X150.0 E10.0"]
["Print",150,85,0.2,150,90,0.2,0.5,0.2,0.5,1000,0,null,10,"10.1-6.3-4","CartesianRepFeat3 of CartesianRepFeat1 of LineFeat3","G1 Y90.0 E0.5"]
["Print",150,90,0.2,50,90,0.2,0.5,0.2,10,1000,0,null,10,"10.1-6.3-5","CartesianRepFeat3 of CartesianRepFeat1 of LineFeat4","G1 X50.0 E10.0"]
["Print",50,90,0.2,50,95,0.2,0.5,0.2,0.5,1000,0,null,10,"10.1-6.4-2","CartesianRepFeat3 of CartesianRepFeat1 of LineFeat1","G1 Y95.0 E0.5"]
["Print",50,95,0.2,150,95,0.2,0.5,0.2,10,1000,0,null,10,"10.1-6.4-3","CartesianRepFeat3 of CartesianRepFeat1 of LineFeat2","G1 X150.0 E10.0"]
["Print",150,95,0.2,150,100,0.2,0.5,0.2,0.5,1000,0,null,10,"10.1-6.4-4","CartesianRepFeat3 of CartesianRepFeat1 of LineFeat3","G1 Y100.0 E0.5"]
["Print",150,100,0.2,50,100,0.2,0.5,0.2,10,1000,0,null,10,"10.1-6.4-5","CartesianRepFeat3 of CartesianRepFeat1 of LineFeat4","G1 X50.0 E10.0"]
["Print",50,100,0.2,50,105,0.2,0.5,0.2,0.5,1000,0,null,10,"10.1-6.5-2","CartesianRepFeat3 of CartesianRepFeat1 of LineFeat1","G1 Y105.0 E0.5"]
["Print",50,105,0.2,150,105,0.2,0.5,0.2,10,1000,0,null,10,"10.1-6.5-3","CartesianRepFeat3 of CartesianRepFeat1 of LineFeat2","G1 X150.0 E10.0"]
["Print",150,105,0.2,150,110,0.2,0.5,0.2,0.5,1000,0,null,10,"10.1-6.5-4","CartesianRepFeat3 of CartesianRepFeat1 of LineFeat3","G1 Y110.0 E0.5"]
["Print",150,110,0.2,50,110,0.2,0.5,0.2,10,1000,0,null,10,"10.1-6.5-5","CartesianRepFeat3 of CartesianRepFeat1 of LineFeat4","G1 X50.0 E10.0"]
["Print",50,110,0.2,50,115,0.2,0.5,0.2,0.5,1000,0,null,10,"10.1-6.6-2","CartesianRepFeat3 of CartesianRepFeat1 of LineFeat1","G1 Y115.0 E0.5"]
["Print",50,115,0.2,150,115,0.2,0.5,0.2,10,1000,0,null,10,"10.1-6.6-3","CartesianRepFeat3 of CartesianRepFeat1 of LineFeat2","G1 X150.0 E10.0"]
["Print",150,115,0.2,150,120,0.2,0.5,0.2,0.5,1000,0,null,10,"10.1-6.6-4","CartesianRepFeat3 of CartesianRepFeat1 of LineFeat3","G1 Y120.0 E0.5"]
["Print",150,120,0.2,50,120,0.2,0.5,0.2,10,1000,0,null,10,"10.1-6.6-5","CartesianRepFeat3 of CartesianRepFeat1 of LineFeat4","G1 X50.0 E10.0"]
["Print",50,120,0.2,50,125,0.2,0.5,0.2,0.5,1000,0,null,10,"10.1-6.7-2","CartesianRepFeat3 of CartesianRepFeat1 of LineFeat1","G1 Y125.0 E0.5"]
["Print",50,125,0.2,150,125,0.2,0.5,0.2,10,1000,0,null,10,"10.1-6.7-3","CartesianRepFeat3 of CartesianRepFeat1 of LineFeat2","G1 X150.0 E10.0"]
["Print",150,125,0.2,150,130,0.2,0.5,0.2,0.5,1000,0,null,10,"10.1-6.7-4","CartesianRepFeat3 of CartesianRepFeat1 of LineFeat3","G1 Y130.0 E0.5"]
["Print",150,130,0.2,50,130,0.2,0.5,0.2,10,1000,0,null,10,"10.1-6.7-5","CartesianRepFeat3 of CartesianRepFeat1 of LineFeat4","G1 X50.0 E10.0"]
["Print",50,130,0.2,50,135,0.2,0.5,0.2,0.5,1000,0,null,10,"10.1-6.8-2","CartesianRepFeat3 of CartesianRepFeat1 of LineFeat1","G1 Y135.0 E0.5"]
["Print",50,135,0.2,150,135,0.2,0.5,0.2,10,1000,0,null,10,"10.1-6.8-3","CartesianRepFeat3 of CartesianRepFeat1 of LineFeat2","G1 X150.0 E10.0"]
["Print",150,135,0.2,150,140,0.2,0.5,0.2,0.5,1000,0,null,10,"10.1-6.8-4","CartesianRepFeat3 of CartesianRepFeat1 of LineFeat3","G1 Y140.0 E0.5"]
["Print",150,140,0.2,50,140,0.2,0.5,0.2,10,1000,0,null,10,"10.1-6.8-5","CartesianRepFeat3 of CartesianRepFeat1 of LineFeat4","G1 X50.0 E10.0"]
["Print",50,140,0.2,50,145,0.2,0.5,0.2,0.5,1000,0,null,10,"10.1-7.1-2","CartesianRepFeat3 of CartesianRepFeat2 of LineFeat1","G1 Y145.0 E0.5"]
["Print",50,145,0.2,150,145,0.2,0.5,0.2,10,1000,0,null,10,"10.1-7.1-3","CartesianRepFeat3 of CartesianRepFeat2 of LineFeat2","G1 X150.0 E10.0"]
["Print",150,145,0.2,150,150,0.2,0.5,0.2,0.5,1000,0,null,10,"10.1-7.1-4","CartesianRepFeat3 of CartesianRepFeat2 of LineFeat3","G1 Y150.0 E0.5"]
["Travel",150,150,0.2,150,150,0.30000000000000004,0,0,null,9000,null,null,0,0,"Travel automatically added","G0 F9000 Z0.5"]
["Print",150,150,0.30000000000000004,145,150,0.30000000000000004,0.5,0.2,0.5,1000,0,null,10,"10.1-9-7.1-4-8.1","CartesianRepFeat3 of Postprocessed version of ReflectFeat1 of CartesianRepFeat2 of LineFeat3","G1 F1000 X145.0 E0.5"]
["Print",145,150,0.30000000000000004,145,50,0.30000000000000004,0.5,0.2,10,1000,0,null,10,"10.1-9-7.1-3-8.1","CartesianRepFeat3 of Postprocessed version of ReflectFeat1 of CartesianRepFeat2 of LineFeat2","G1 Y50.0 E10.0"]
["Print",145,50,0.30000000000000004,140,50,0.30000000000000004,0.5,0.2,0.5,1000,0,null,10,"10.1-9-7.1-2-8.1","CartesianRepFeat3 of Postprocessed version of ReflectFeat1 of CartesianRepFeat2 of LineFeat1","G1 X140.0 E0.5"]
["Print",140,50,0.30000000000000004,140,150,0.30000000000000004,0.5,0.2,10,1000,0,null,10,"10.1-9-6.8-5-8.1","CartesianRepFeat3 of Postprocessed version of ReflectFeat1 of CartesianRepFeat1 of LineFeat4","G1 Y150.0 E10.0"]
["Print",140,150,0.30000000000000004,135,150,0.30000000000000004,0.5,0.2,0.5,1000,0,null,10,"10.1-9-6.8-4-8.1","CartesianRepFeat3 of Postprocessed version of ReflectFeat1 of CartesianRepFeat1 of LineFeat3","G1 X135.0 E0.5"]
["Print",135,150,0.30000000000000004,135,50,0.30000000000000004,0.5,0.2,10,1000,0,null,10,"10.1-9-6.8-3-8.1","CartesianRepFeat3 of Postprocessed version of ReflectFeat1 of CartesianRepFeat1 of LineFeat2","G1 Y50.0 E10.0"]
["Print",135,50,0.30000000000000004,130,50,0.30000000000000004,0.5,0.2,0.5,1000,0,null,10,"10.1-9-6.8-2-8.1","CartesianRepFeat3 of Postprocessed version of ReflectFeat1 of CartesianRepFeat1 of LineFeat1","G1 X130.0 E0.5"]
["Print",130,50,0.30000000000000004,130,150,0.30000000000000004,0.5,0.2,10,1000,0,null,10,"10.1-9-6.7-5-8.1","CartesianRepFeat3 of Postprocessed version of ReflectFeat1 of CartesianRepFeat1 of LineFeat4","G1 Y150.0 E10.0"]
["Print",130,150,0.30000000000000004,125,150,0.30000000000000004,0.5,0.2,0.5,1000,0,null,10,"10.1-9-6.7-4-8.1","CartesianRepFeat3 of Postprocessed version of ReflectFeat1 of CartesianRepFeat1 of LineFeat3","G1 X125.0 E0.5"]
["Print",125,150,0.30000000000000004,125,50,0.30000000000000004,0.5,0.2,10,1000,0,null,10,"10.1-9-6.7-3-8.1","CartesianRepFeat3 of Postprocessed version of ReflectFeat1 of CartesianRepFeat1 of LineFeat2","G1 Y50.0 E10.0"]
["Print",125,50,0.30000000000000004,120,50,0.30000000000000004,0.5,0.2,0.5,1000,0,null,10,"10.1-9-6.7-2-8.1","CartesianRepFeat3 of Postprocessed version of ReflectFeat1 of CartesianRepFeat1 of LineFeat1","G1 X120.0 E0.5"]
["Print",120,50,0.30000000000000004,120,150,0.30000000000000004,0.5,0.2,10,1000,0,null,10,"10.1-9-6.6-5-8.1","CartesianRepFeat3 of Postprocessed version of ReflectFeat1 of CartesianRepFeat1 of LineFeat4","G1 Y150.0 E10.0"]
["Print",120,150,0.30000000000000004,115,150,0.30000000000000004,0.5,0.2,0.5,1000,0,null,10,"10.1-9-6.6-4-8.1","CartesianRepFeat3 of Postprocessed version of ReflectFeat1 of CartesianRepFeat1 of LineFeat3","G1 X115.0 E0.5"]
["Print",115,150,0.30000000000000004,115,50,0.30000000000000004,0.5,0.2,10,1000,0,null,10,"10.1-9-6.6-3-8.1","CartesianRepFeat3 of Postprocessed version of ReflectFeat1 of CartesianRepFeat1 of LineFeat2","G1 Y50.0 E10.0"]
["Print",115,50,0.30000000000000004,110,50,0.30000000000000004,0.5,0.2,0.5,1000,0,null,10,"10.1-9-6.6-2-8.1","CartesianRepFeat3 of Postprocessed version of ReflectFeat1 of CartesianRepFeat1 of LineFeat1","G1 X110.0 E0.5"]
["Print",110,50,0.30000000000000004,110,150,0.30000000000000004,0.5,0.2,10,1000,0,null,10,"10.1-9-6.5-5-8.1","CartesianRepFeat3 of Postprocessed version of ReflectFeat1 of CartesianRepFeat1 of LineFeat4","G1 Y150.0 E10.0"]
["Print",110,150,0.30000000000000004,105,150,0.30000000000000004,0.5,0.2,0.5,1000,0,null,10,"10.1-9-6.5-4-8.1","CartesianRepFeat3 of Postprocessed version of ReflectFeat1 of CartesianRepFeat1 of LineFeat3","G1 X105.0 E0.5"]
["Print",105,150,0.30000000000000004,105,50,0.30000000000000004,0.5,0.2,10,1000,0,null,10,"10.1-9-6.5-3-8.1","CartesianRepFeat3 of Postprocessed version of ReflectFeat1 of CartesianRepFeat1 of LineFeat2","G1 Y50.0 E10.0"]
["Print",105,50,0.30000000000000004,100,50,0.30000000000000004,0.5,0.2,0.5,1000,0,null,10,"10.1-9-6.5-2-8.1","CartesianRepFeat3 of Postprocessed version of ReflectFeat1 of CartesianRepFeat1 of LineFeat1","G1 X100.0 E0.5"]
["Print",100,50,0.30000000000000004,100,150,0.30000000000000004,0.5,0.2,10,1000,0,null,10,"10.1-9-6.4-5-8.1","CartesianRepFeat3 of Postprocessed version of ReflectFeat1 of CartesianRepFeat1 of LineFeat4","G1 Y150.0 E10.0"]
["Print",100,150,0.30000000000000004,95,150,0.30000000000000004,0.5,0.2,0.5,1000,0,null,10,"10.1-9-6.4-4-8.1","CartesianRepFeat3 of Postprocessed version of ReflectFeat1 of CartesianRepFeat1 of LineFeat3","G1 X95.0 E0.5"]
["Print",95,150,0.30000000000000004,95,50,0.30000000000000004,0.5,0.2,10,1000,0,null,10,"10.1-9-6.4-3-8.1","CartesianRepFeat3 of Postprocessed version of ReflectFeat1 of CartesianRepFeat1 of LineFeat2","G1 Y50.0 E10.0"]
["Print",95,50,0.30000000000000004,90,50,0.30000000000000004,0.5,0.2,0.5,1000,0,null,10,"10.1-9-6.4-2-8.1","CartesianRepFeat3 of Postprocessed version of ReflectFeat1 of CartesianRepFeat1 of LineFeat1","G1 X90.0 E0.5"]
["Print",90,50,0.30000000000000004,90,150,0.30000000000000004,0.5,0.2,10,1000,0,null,10,"10.1-9-6.3-5-8.1","CartesianRepFeat3 of Postprocessed version of ReflectFeat1 of CartesianRepFeat1 of LineFeat4","G1 Y150.0 E10.0"]
["Print",90,150,0.30000000000000004,85,150,0.30000000000000004,0.5,0.2,0.5,1000,0,null,10,"10.1-9-6.3-4-8.1","CartesianRepFeat3 of Postprocessed version of ReflectFeat1 of CartesianRepFeat1 of LineFeat3","G1 X85.0 E0.5"]
["Print",85,150,0.30000000000000004,85,50,0.30000000000000004,0.5,0.2,10,1000,0,null,10,"10.1-9-6.3-3-8.1","CartesianRepFeat3 of Postprocessed version of ReflectFeat1 of CartesianRepFeat1 of LineFeat2","G1 Y50.0 E10.0"]
["Print",85,50,0.30000000000000004,80,50,0.30000000000000004,0.5,0.2,0.5,1000,0,null,10,"10.1-9-6.3-2-8.1","CartesianRepFeat3 of Postprocessed version of ReflectFeat1 of CartesianRepFeat1 of LineFeat1","G1 X80.0 E0.5"]
["Print",80,50,0.30000000000000004,80,150,0.30000000000000004,0.5,0.2,10,1000,0,null,10,"10.1-9-6.2-5-8.1","CartesianRepFeat3 of Postprocessed version of ReflectFeat1 of CartesianRepFeat1 of LineFeat4","G1 Y150.0 E10.0"]
["Print",80,150,0.30000000000000004,75,150,0.30000000000000004,0.5,0.2,0.5,1000,0,null,10,"10.1-9-6.2-4-8.1","CartesianRepFeat3 of Postprocessed version of ReflectFeat1 of CartesianRepFeat1 of LineFeat3","G1 X75.0 E0.5"]
["Print",75,150,0.30000000000000004,75,50,0.30000000000000004,0.5,0.2,10,1000,0,null,10,"10.1-9-6.2-3-8.1","CartesianRepFeat3 of Postprocessed version of ReflectFeat1 of CartesianRepFeat1 of LineFeat2","G1 Y50.0 E10.0"]
["Print",75,50,0.30000000000000004,70,50,0.30000000000000004,0.5,0.2,0.5,1000,0,null,10,"10.1-9-6.2-2-8.1","CartesianRepFeat3 of Postprocessed version of ReflectFeat1 of CartesianRepFeat1 of LineFeat1","G1 X70.0 E0.5"]
["Print",70,50,0.30000000000000004,70,150,0.30000000000000004,0.5,0.2,10,1000,0,null,10,"10.1-9-6.1-5-8.1","CartesianRepFeat3 of Postprocessed version of ReflectFeat1 of CartesianRepFeat1 of LineFeat4","G1 Y150.0 E10.0"]
["Print",70,150,0.30000000000000004,65,150,0.30000000000000004,0.5,0.2,0.5,1000,0,null,10,"10.1-9-6.1-4-8.1","CartesianRepFeat3 of Postprocessed version of ReflectFeat1 of CartesianRepFeat1 of LineFeat3","G1 X65.0 E0.5"]
["Print",65,150,0.30000000000000004,65,50,0.30000000000000004,0.5,0.2,10,1000,0,null,10,"10.1-9-6.1-3-8.1","CartesianRepFeat3 of Postprocessed version of ReflectFeat1 of CartesianRepFeat1 of LineFeat2","G1 Y50.0 E10.0"]
["Print",65,50,0.30000000000000004,60,50,0.30000000000000004,0.5,0.2,0.5,1000,0,null,10,"10.1-9-6.1-2-8.1","CartesianRepFeat3 of Postprocessed version of ReflectFeat1 of CartesianRepFeat1 of LineFeat1","G1 X60.0 E0.5"]
["Print",60,50,0.30000000000000004,60,150,0.30000000000000004,0.5,0.2,10,1000,0,null,10,"10.1-9-5-8.1","CartesianRepFeat3 of Postprocessed version of ReflectFeat1 of LineFeat4","G1 Y150.0 E10.0"]
["Print",60,150,0.30000000000000004,55,150,0.30000000000000004,0.5,0.2,0.5,1000,0,null,10,"10.1-9-4-8.1","CartesianRepFeat3 of Postprocessed version of ReflectFeat1 of LineFeat3","G1 X55.0 E0.5"]
["Print",55,150,0.30000000000000004,55,50,0.30000000000000004,0.5,0.2,10,1000,0,null,10,"10.1-9-3-8.1","CartesianRepFeat3 of Postprocessed version of ReflectFeat1 of LineFeat2","G1 Y50.0 E10.0"]
["Print",55,50,0.30000000000000004,50,50,0.30000000000000004,0.5,0.2,0.5,1000,0,null,10,"10.1-9-2-8.1","CartesianRepFeat3 of Postprocessed version of ReflectFeat1 of LineFeat1","G1 X50.0 E0.5"]
["Travel",50,50,0.30000000000000004,50,50,0.4,0,0,null,9000,null,null,0,0,"Travel automatically added","G0 F9000 Z0.6"]
["Print",50,50,0.4,50,150,0.4,0.5,0.2,10,1000,0,null,10,"10.2-1","CartesianRepFeat3 of RectangleFeat1","G1 F1000 Y150.0 E10.0"]
["Print",50,150,0.4,150,150,0.4,0.5,0.2,10,1000,0,null,10,"10.2-1","CartesianRepFeat3 of RectangleFeat1","G1 X150.0 E10.0"]
["Print",150,150,0.4,150,50,0.4,0.5,0.2,10,1000,0,null,10,"10.2-1","CartesianRepFeat3 of RectangleFeat1","G1 Y50.0 E10.0"]
["Print",150,50,0.4,50,50,0.4,0.5,0.2,10,1000,0,null,10,"10.2-1","CartesianRepFeat3 of RectangleFeat1","G1 X50.0 E10.0"]
["Print",50,50,0.4,50,55,0.4,0.5,0.2,0.5,1000,0,null,10,"10.2-2","CartesianRepFeat3 of LineFeat1","G1 Y55.0 E0.5"]
["Print",50,55,0.4,150,55,0.4,0.5,0.2,10,1000,0,null,10,"10.2-3","CartesianRepFeat3 of LineFeat2","G1 X150.0 E10.0"]
["Print",150,55,0.4,150,60,0.4,0.5,0.2,0.5,1000,0,null,10,"10.2-4","CartesianRepFeat3 of LineFeat3","G1 Y60.0 E0.5"]
["Print",150,60,0.4,50,60,0.4,0.5,0.2,10,1000,0,null,10,"10.2-5","CartesianRepFeat3 of LineFeat4","G1 X50.0 E10.0"]
["Print",50,60,0.4,50,65,0.4,0.5,0.2,0.5,1000,0,null,10,"10.2-6.1-2","CartesianRepFeat3 of CartesianRepFeat1 of LineFeat1","G1 Y65.0 E0.5"]
["Print",50,65,0.4,150,65,0.4,0.5,0.2,10,1000,0,null,10,"10.2-6.1-3","CartesianRepFeat3 of CartesianRepFeat1 of LineFeat2","G1 X150.0 E10.0"]
["Print",150,65,0.4,150,70,0.4,0.5,0.2,0.5,1000,0,null,10,"10.2-6.1-4","CartesianRepFeat3 of CartesianRepFeat1 of LineFeat3","G1 Y70.0 E0.5"]
["Print",150,70,0.4,50,70,0.4,0.5,0.2,10,1000,0,null,10,"10.2-6.1-5","CartesianRepFeat3 of CartesianRepFeat1 of LineFeat4","G1 X50.0 E10.0"]
["Print",50,70,0.4,50,75,0.4,0.5,0.2,0.5,1000,0,null,10,"10.2-6.2-2","CartesianRepFeat3 of CartesianRepFeat1 of LineFeat1","G1 Y75.0 E0.5"]
["Print",50,75,0.4,150,75,0.4,0.5,0.2,10,1000,0,null,10,"10.2-6.2-3","CartesianRepFeat3 of CartesianRepFeat1 of LineFeat2","G1 X150.0 E10.0"]
["Print",150,75,0.4,150,80,0.4,0.5,0.2,0.5,1000,0,null,10,"10.2-6.2-4","CartesianRepFeat3 of CartesianRepFeat1 of LineFeat3","G1 Y80.0 E0.5"]
["Print",150,80,0.4,50,80,0.4,0.5,0.2,10,1000,0,null,10,"10.2-6.2-5","CartesianRepFeat3 of CartesianRepFeat1 of LineFeat4","G1 X50.0 E10.0"]
["Print",50,80,0.4,50,85,0.4,0.5,0.2,0.5,1000,0,null,10,"10.2-6.3-2","CartesianRepFeat3 of CartesianRepFeat1 of LineFeat1","G1 Y85.0 E0.5"]
["Print",50,85,0.4,150,85,0.4,0.5,0.2,10,1000,0,null,10,"10.2-6.3-3","CartesianRepFeat3 of CartesianRepFeat1 of LineFeat2","G1 X150.0 E10.0"]
["Print",150,85,0.4,150,90,0.4,0.5,0.2,0.5,1000,0,null,10,"10.2-6.3-4","CartesianRepFeat3 of CartesianRepFeat1 of LineFeat3","G1 Y90.0 E0.5"]
["Print",150,90,0.4,50,90,0.4,0.5,0.2,10,1000,0,null,10,"10.2-6.3-5","CartesianRepFeat3 of CartesianRepFeat1 of LineFeat4","G1 X50.0 E10.0"]
["Print",50,90,0.4,50,95,0.4,0.5,0.2,0.5,1000,0,null,10,"10.2-6.4-2","CartesianRepFeat3 of CartesianRepFeat1 of LineFeat1","G1 Y95.0 E0.5"]
["Print",50,95,0.4,150,95,0.4,0.5,0.2,10,1000,0,null,10,"10.2-6.4-3","CartesianRepFeat3 of CartesianRepFeat1 of LineFeat2","G1 X150.0 E10.0"]
["Print",150,95,0.4,150,100,0.4,0.5,0.2,0.5,1000,0,null,10,"10.2-6.4-4","CartesianRepFeat3 of CartesianRepFeat1 of LineFeat3","G1 Y100.0 E0.5"]
["Print",150,100,0.4,50,100,0.4,0.5,0.2,10,1000,0,null,10,"10.2-6.4-5","CartesianRepFeat3 of CartesianRepFeat1 of LineFeat4","G1 X50.0 E10.0"]
["Print",50,100,0.4,50,105,0.4,0.5,0.2,0.5,1000,0,null,10,"10.2-6.5-2","CartesianRepFeat3 of CartesianRepFeat1 of LineFeat1","G1 Y105.0 E0.5"]
["Print",50,105,0.4,150,105,0.4,0.5,0.2,10,1000,0,null,10,"10.2-6.5-3","CartesianRepFeat3 of CartesianRepFeat1 of LineFeat2","G1 X150.0 E10.0"]
["Print",150,105,0.4,150,110,0.4,0.5,0.2,0.5,1000,0,null,10,"10.2-6.5-4","CartesianRepFeat3 of CartesianRepFeat1 of LineFeat3","G1 Y110.0 E0.5"]
["Print",150,110,0.4,50,110,0.4,0.5,0.2,10,1000,0,null,10,"10.2-6.5-5","CartesianRepFeat3 of CartesianRepFeat1 of LineFeat4","G1 X50.0 E10.0"]
["Print",50,110,0.4,50,115,0.4,0.5,0.2,0.5,1000,0,null,10,"10.2-6.6-2","CartesianRepFeat3 of CartesianRepFeat1 of LineFeat1","G1 Y115.0 E0.5"]
["Print",50,115,0.4,150,115,0.4,0.5,0.2,10,1000,0,null,10,"10.2-6.6-3","CartesianRepFeat3 of CartesianRepFeat1 of LineFeat2","G1 X150.0 E10.0"]
["Print",150,115,0.4,150,120,0.4,0.5,0.2,0.5,1000,0,null,10,"10.2-6.6-4","CartesianRepFeat3 of CartesianRepFeat1 of LineFeat3","G1 Y120.0 E0.5"]
["Print",150,120,0.4,50,120,0.4,0.5,0.2,10,1000,0,null,10,"10.2-6.6-5","CartesianRepFeat3 of CartesianRepFeat1 of LineFeat4","G1 X50.0 E10.0"]
["Print",50,120,0.4,50,125,0.4,0.5,0.2,0.5,1000,0,null,10,"10.2-6.7-2","CartesianRepFeat3 of CartesianRepFeat1 of LineFeat1","G1 Y125.0 E0.5"]
["Print",50,125,0.4,150,125,0.4,0.5,0.2,10,1000,0,null,10,"10.2-6.7-3","CartesianRepFeat3 of CartesianRepFeat1 of LineFeat2","G1 X150.0 E10.0"]
["Print",150,125,0.4,150,130,0.4,0.5,0.2,0.5,1000,0,null,10,"10.2-6.7-4","CartesianRepFeat3 of CartesianRepFeat1 of LineFeat3","G1 Y130.0 E0.5"]
["Print",150,130,0.4,50,130,0.4,0.5,0.2,10,1000,0,null,10,"10.2-6.7-5","CartesianRepFeat3 of CartesianRepFeat1 of LineFeat4","G1 X50.0 E10.0"]
["Print",50,130,0.4,50,135,0.4,0.5,0.2,0.5,1000,0,null,10,"10.2-6.8-2","CartesianRepFeat3 of CartesianRepFeat1 of LineFeat1","G1 Y135.0 E0.5"]
["Print",50,135,0.4,150,135,0.4,0.5,0.2,10,1000,0,null,10,"10.2-6.8-3","CartesianRepFeat3 of CartesianRepFeat1 of LineFeat2","G1 X150.0 E10.0"]
["Print",150,135,0.4,150,140,0.4,0.5,0.2,0.5,1000,0,null,10,"10.2-6.8-4","CartesianRepFeat3 of CartesianRepFeat1 of LineFeat3","G1 Y140.0 E0.5"]
["Print",150,140,0.4,50,140,0.4,0.5,0.2,10,1000,0,null,10,"10.2-6.8-5","CartesianRepFeat3 of CartesianRepFeat1 of LineFeat4","G1 X50.0 E10.0"]
["Print",50,140,0.4,50,145,0.4,0.5,0.2,0.5,1000,0,null,10,"10.2-7.1-2","CartesianRepFeat3 of CartesianRepFeat2 of LineFeat1","G1 Y145.0 E0.5"]
["Print",50,145,0.4,150,145,0.4,0.5,0.2,10,1000,0,null,10,"10.2-7.1-3","CartesianRepFeat3 of CartesianRepFeat2 of LineFeat2","G1 X150.0 E10.0"]
["Print",150,145,0.4,150,150,0.4,0.5,0.2,0.5,1000,0,null,10,"10.2-7.1-4","CartesianRepFeat3 of CartesianRepFeat2 of LineFeat3","G1 Y150.0 E0.5"]
["Travel",150,150,0.4,150,150,0.5,0,0,null,9000,null,null,0,0,"Travel automatically added","G0 F9000 Z0.7"]
["Print",150,150,0.5,145,150,0.5,0.5,0.2,0.5,1000,0,null,10,"10.2-9-7.1-4-8.1","CartesianRepFeat3 of Postprocessed version of ReflectFeat1 of CartesianRepFeat2 of LineFeat3","G1 F1000 X145.0 E0.5"]
["Print",145,150,0.5,145,50,0.5,0.5,0.2,10,1000,0,null,10,"10.2-9-7.1-3-8.1","CartesianRepFeat3 of Postprocessed version of ReflectFeat1 of CartesianRepFeat2 of LineFeat2","G1 Y50.0 E10.0"]
["Print",145,50,0.5,140,50,0.5,0.5,0.2,0.5,1000,0,null,10,"10.2-9-7.1-2-8.1","CartesianRepFeat3 of Postprocessed version of ReflectFeat1 of CartesianRepFeat2 of LineFeat1","G1 X140.0 E0.5"]
["Print",140,50,0.5,140,150,0.5,0.5,0.2,10,1000,0,null,10,"10.2-9-6.8-5-8.1","CartesianRepFeat3 of Postprocessed version of ReflectFeat1 of CartesianRepFeat1 of LineFeat4","G1 Y150.0 E10.0"]
["Print",140,150,0.5,135,150,0.5,0.5,0.2,0.5,1000,0,null,10,"10.2-9-6.8-4-8.1","CartesianRepFeat3 of Postprocessed version of ReflectFeat1 of CartesianRepFeat1 of LineFeat3","G1 X135.0 E0.5"]
["Print",135,150,0.5,135,50,0.5,0.5,0.2,10,1000,0,null,10,"10.2-9-6.8-3-8.1","CartesianRepFeat3 of Postprocessed version of ReflectFeat1 of CartesianRepFeat1 of LineFeat2","G1 Y50.0 E10.0"]
["Print",135,50,0.5,130,50,0.5,0.5,0.2,0.5,1000,0,null,10,"10.2-9-6.8-2-8.1","CartesianRepFeat3 of Postprocessed version of ReflectFeat1 of CartesianRepFeat1 of LineFeat1","G1 X130.0 E0.5"]
["Print",130,50,0.5,130,150,0.5,0.5,0.2,10,1000,0,null,10,"10.2-9-6.7-5-8.1","CartesianRepFeat3 of Postprocessed version of ReflectFeat1 of CartesianRepFeat1 of LineFeat4","G1 Y150.0 E10.0"]
["Print",130,150,0.5,125,150,0.5,0.5,0.2,0.5,1000,0,null,10,"10.2-9-6.7-4-8.1","CartesianRepFeat3 of Postprocessed version of ReflectFeat1 of CartesianRepFeat1 of LineFeat3","G1 X125.0 E0.5"]
["Print",125,150,0.5,125,50,0.5,0.5,0.2,10,1000,0,null,10,"10.2-9-6.7-3-8.1","CartesianRepFeat3 of Postprocessed version of ReflectFeat1 of CartesianRepFeat1 of LineFeat2","G1 Y50.0 E10.0"]
["Print",125,50,0.5,120,50,0.5,0.5,0.2,0.5,1000,0,null,10,"10.2-9-6.7-2-8.1","CartesianRepFeat3 of Postprocessed version of ReflectFeat1 of CartesianRepFeat1 of LineFeat1","G1 X120.0 E0.5"]
["Print",120,50,0.5,120,150,0.5,0.5,0.2,10,1000,0,null,10,"10.2-9-6.6-5-8.1","CartesianRepFeat3 of Postprocessed version of ReflectFeat1 of CartesianRepFeat1 of LineFeat4","G1 Y150.0 E10.0"]
["Print",120,150,0.5,115,150,0.5,0.5,0.2,0.5,1000,0,null,10,"10.2-9-6.6-4-8.1","CartesianRepFeat3 of Postprocessed version of ReflectFeat1 of CartesianRepFeat1 of LineFeat3","G1 X115.0 E0.5"]
["Print",115,150,0.5,115,50,0.5,0.5,0.2,10,1000,0,null,10,"10.2-9-6.6-3-8.1","CartesianRepFeat3 of Postprocessed version of ReflectFeat1 of CartesianRepFeat1 of LineFeat2","G1 Y50.0 E10.0"]
["Print",115,50,0.5,110,50,0.5,0.5,0.2,0.5,1000,0,null,10,"10.2-9-6.6-2-8.1","CartesianRepFeat3 of Postprocessed version of ReflectFeat1 of CartesianRepFeat1 of LineFeat1","G1 X110.0 E0.5"]
["Print",110,50,0.5,110,150,0.5,0.5,0.2,10,1000,0,null,10,"10.2-9-6.5-5-8.1","CartesianRepFeat3 of Postprocessed version of ReflectFeat1 of CartesianRepFeat1 of LineFeat4","G1 Y150.0 E10.0"]
["Print",110,150,0.5,105,150,0.5,0.5,0.2,0.5,1000,0,null,10,"10.2-9-6.5-4-8.1","CartesianRepFeat3 of Postprocessed version of ReflectFeat1 of CartesianRepFeat1 of LineFeat3","G1 X105.0 E0.5"]
["Print",105,150,0.5,105,50,0.5,0.5,0.2,10,1000,0,null,10,"10.2-9-6.5-3-8.1","CartesianRepFeat3 of Postprocessed version of ReflectFeat1 of CartesianRepFeat1 of LineFeat2","G1 Y50.0 E10.0"]
["Print",105,50,0.5,100,50,0.5,0.5,0.2,0.5,1000,0,null,10,"10.2-9-6.5-2-8.1","CartesianRepFeat3 of Postprocessed version of ReflectFeat1 of CartesianRepFeat1 of LineFeat1","G1 X100.0 E0.5"]
["Print",100,50,0.5,100,150,0.5,0.5,0.2,10,1000,0,null,10,"10.2-9-6.4-5-8.1","CartesianRepFeat3 of Postprocessed version of ReflectFeat1 of CartesianRepFeat1 of LineFeat4","G1 Y150.0 E10.0"]
["Print",100,150,0.5,95,150,0.5,0.5,0.2,0.5,1000,0,null,10,"10.2-9-6.4-4-8.1","CartesianRepFeat3 of Postprocessed version of ReflectFeat1 of CartesianRepFeat1 of LineFeat3","G1 X95.0 E0.5"]
["Print",95,150,0.5,95,50,0.5,0.5,0.2,10,1000,0,null,10,"10.2-9-6.4-3-8.1","CartesianRepFeat3 of Postprocessed version of ReflectFeat1 of CartesianRepFeat1 of LineFeat2","G1 Y50.0 E10.0"]
["Print",95,50,0.5,90,50,0.5,0.5,0.2,0.5,1000,0,null,10,"10.2-9-6.4-2-8.1","CartesianRepFeat3 of Postprocessed version of ReflectFeat1 of CartesianRepFeat1 of LineFeat1","G1 X90.0 E0.5"]
["Print",90,50,0.5,90,150,0.5,0.5,0.2,10,1000,0,null,10,"10.2-9-6.3-5-8.1","CartesianRepFeat3 of Postprocessed version of ReflectFeat1 of CartesianRepFeat1 of LineFeat4","G1 Y150.0 E10.0"]
["Print",90,150,0.5,85,150,0.5,0.5,0.2,0.5,1000,0,null,10,"10.2-9-6.3-4-8.1","CartesianRepFeat3 of Postprocessed version of ReflectFeat1 of CartesianRepFeat1 of LineFeat3","G1 X85.0 E0.5"]
["Print",85,150,0.5,85,50,0.5,0.5,0.2,10,1000,0,null,10,"10.2-9-6.3-3-8.1","CartesianRepFeat3 of Postprocessed version of ReflectFeat1 of CartesianRepFeat1 of LineFeat2","G1 Y50.0 E10.0"]
["Print",85,50,0.5,80,50,0.5,0.5,0.2,0.5,1000,0,null,10,"10.2-9-6.3-2-8.1","CartesianRepFeat3 of Postprocessed version of ReflectFeat1 of CartesianRepFeat1 of LineFeat1","G1 X80.0 E0.5"]
["Print",80,50,0.5,80,150,0.5,0.5,0.2,10,1000,0,null,10,"10.2-9-6.2-5-8.1","CartesianRepFeat3 of Postprocessed version of ReflectFeat1 of CartesianRepFeat1 of LineFeat4","G1 Y150.0 E10.0"]
["Print",80,150,0.5,75,150,0.5,0.5,0.2,0.5,1000,0,null,10,"10.2-9-6.2-4-8.1","CartesianRepFeat3 of Postprocessed version of ReflectFeat1 of CartesianRepFeat1 of LineFeat3","G1 X75.0 E0.5"]
["Print",75,150,0.5,75,50,0.5,0.5,0.2,10,1000,0,null,10,"10.2-9-6.2-3-8.1","CartesianRepFeat3 of Postprocessed version of ReflectFeat1 of CartesianRepFeat1 of LineFeat2","G1 Y50.0 E10.0"]
["Print",75,50,0.5,70,50,0.5,0.5,0.2,0.5,1000,0,null,10,"10.2-9-6.2-2-8.1","CartesianRepFeat3 of Postprocessed version of ReflectFeat1 of CartesianRepFeat1 of LineFeat1","G1 X70.0 E0.5"]
["Print",70,50,0.5,70,150,0.5,0.5,0.2,10,1000,0,null,10,"10.2-9-6.1-5-8.1","CartesianRepFeat3 of Postprocessed version of ReflectFeat1 of CartesianRepFeat1 of LineFeat4","G1 Y150.0 E10.0"]
["Print",70,150,0.5,65,150,0.5,0.5,0.2,0.5,1000,0,null,10,"10.2-9-6.1-4-8.1","CartesianRepFeat3 of Postprocessed version of ReflectFeat1 of CartesianRepFeat1 of LineFeat3","G1 X65.0 E0.5"]
["Print",65,150,0.5,65,50,0.5,0.5,0.2,10,1000,0,null,10,"10.2-9-6.1-3-8.1","CartesianRepFeat3 of Postprocessed version of ReflectFeat1 of CartesianRepFeat1 of LineFeat2","G1 Y50.0 E10.0"]
["Print",65,50,0.5,60,50,0.5,0.5,0.2,0.5,1000,0,null,10,"10.2-9-6.1-2-8.1","CartesianRepFeat3 of Postprocessed version of ReflectFeat1 of CartesianRepFeat1 of LineFeat1","G1 X60.0 E0.5"]
["Print",60,50,0.5,60,150,0.5,0.5,0.2,10,1000,0,null,10,"10.2-9-5-8.1","CartesianRepFeat3 of Postprocessed version of ReflectFeat1 of LineFeat4","G1 Y150.0 E10.0"]
["Print",60,150,0.5,55,150,0.5,0.5,0.2,0.5,1000,0,null,10,"10.2-9-4-8.1","CartesianRepFeat3 of Postprocessed version of ReflectFeat1 of LineFeat3","G1 X55.0 E0.5"]
["Print",55,150,0.5,55,50,0.5,0.5,0.2,10,1000,0,null,10,"10.2-9-3-8.1","CartesianRepFeat3 of Postprocessed version of ReflectFeat1 of LineFeat2","G1 Y50.0 E10.0"]
["Print",55,50,0.5,50,50,0.5,0.5,0.2,0.5,1000,0,null,10,"10.2-9-2-8.1","CartesianRepFeat3 of Postprocessed version of ReflectFeat1 of LineFeat1","G1 X50.0 E0.5"]
["Travel",50,50,0.5,50,50,0.60000000000000009,0,0,null,9000,null,null,0,0,"Travel automatically added","G0 F9000 Z0.8"]
["Print",50,50,0.60000000000000009,50,150,0.60000000000000009,0.5,0.2,10,1000,0,null,10,"10.3-1","CartesianRepFeat3 of RectangleFeat1","G1 F1000 Y150.0 E10.0"]
["Print",50,150,0.60000000000000009,150,150,0.60000000000000009,0.5,0.2,10,1000,0,null,10,"10.3-1","CartesianRepFeat3 of RectangleFeat1","G1 X150.0 E10.0"]
["Print",150,150,0.60000000000000009,150,50,0.60000000000000009,0.5,0.2,10,1000,0,null,10,"10.3-1","CartesianRepFeat3 of RectangleFeat1","G1 Y50.0 E10.0"]
["Print",150,50,0.60000000000000009,50,50,0.60000000000000009,0.5,0.2,10,1000,0,null,10,"10.3-1","CartesianRepFeat3 of RectangleFeat1","G1 X50.0 E10.0"]
["Print",50,50,0.60000000000000009,50,55,0.60000000000000009,0.5,0.2,0.5,1000,0,null,10,"10.3-2","CartesianRepFeat3 of LineFeat1","G1 Y55.0 E0.5"]
["Print",50,55,0.60000000000000009,150,55,0.60000000000000009,0.5,0.2,10,1000,0,null,10,"10.3-3","CartesianRepFeat3 of LineFeat2","G1 X150.0 E10.0"]
["Print",150,55,0.60000000000000009,150,60,0.60000000000000009,0.5,0.2,0.5,1000,0,null,10,"10.3-4","CartesianRepFeat3 of LineFeat3","G1 Y60.0 E0.5"]
["Print",150,60,0.60000000000000009,50,60,0.60000000000000009,0.5,0.2,10,1000,0,null,10,"10.3-5","CartesianRepFeat3 of LineFeat4","G1 X50.0 E10.0"]
["Print",50,60,0.60000000000000009,50,65,0.60000000000000009,0.5,0.2,0.5,1000,0,null,10,"10.3-6.1-2","CartesianRepFeat3 of CartesianRepFeat1 of LineFeat1","G1 Y65.0 E0.5"]
["Print",50,65,0.60000000000000009,150,65,0.60000000000000009,0.5,0.2,10,1000,0,null,10,"10.3-6.1-3","CartesianRepFeat3 of CartesianRepFeat1 of LineFeat2","G1 X150.0 E10.0"]
["Print",150,65,0.60000000000000009,150,70,0.60000000000000009,0.5,0.2,0.5,1000,0,null,10,"10.3-6.1-4","CartesianRepFeat3 of CartesianRepFeat1 of LineFeat3","G1 Y70.0 E0.5"]
["Print",150,70,0.60000000000000009,50,70,0.60000000000000009,0.5,0.2,10,1000,0,null,10,"10.3-6.1-5","CartesianRepFeat3 of CartesianRepFeat1 of LineFeat4","G1 X50.0 E10.0"]
["Print",50,70,0.60000000000000009,50,75,0.60000000000000009,0.5,0.2,0.5,1000,0,null,10,"10.3-6.2-2","CartesianRepFeat3 of CartesianRepFeat1 of LineFeat1","G1 Y75.0 E0.5"]
["Print",50,75,0.60000000000000009,150,75,0.60000000000000009,0.5,0.2,10,1000,0,null,10,"10.3-6.2-3","CartesianRepFeat3 of CartesianRepFeat1 of LineFeat2","G1 X150.0 E10.0"]
["Print",150,75,0.60000000000000009,150,80,0.60000000000000009,0.5,0.2,0.5,1000,0,null,10,"10.3-6.2-4","CartesianRepFeat3 of CartesianRepFeat1 of LineFeat3","G1 Y80.0 E0.5"]
["Print",150,80,0.60000000000000009,50,80,0.60000000000000009,0.5,0.2,10,1000,0,null,10,"10.3-6.2-5","CartesianRepFeat3 of CartesianRepFeat1 of LineFeat4","G1 X50.0 E10.0"]
["Print",50,80,0.60000000000000009,50,85,0.60000000000000009,0.5,0.2,0.5,1000,0,null,10,"10.3-6.3-2","CartesianRepFeat3 of CartesianRepFeat1 of LineFeat1","G1 Y85.0 E0.5"]
["Print",50,85,0.60000000000000009,150,85,0.60000000000000009,0.5,0.2,10,1000,0,null,10,"10.3-6.3-3","CartesianRepFeat3 of CartesianRepFeat1 of LineFeat2","G1 X150.0 E10.0"]
["Print",150,85,0.60000000000000009,150,90,0.60000000000000009,0.5,0.2,0.5,1000,0,null,10,"10.3-6.3-4","CartesianRepFeat3 of CartesianRepFeat1 of LineFeat3","G1 Y90.0 E0.5"]
["Print",150,90,0.60000000000000009,50,90,0.60000000000000009,0.5,0.2,10,1000,0,null,10,"10.3-6.3-5","CartesianRepFeat3 of CartesianRepFeat1 of LineFeat4","G1 X50.0 E10.0"]
["Print",50,90,0.60000000000000009,50,95,0.60000000000000009,0.5,0.2,0.5,1000,0,null,10,"10.3-6.4-2","CartesianRepFeat3 of CartesianRepFeat1 of LineFeat1","G1 Y95.0 E0.5"]
["Print",50,95,0.60000000000000009,150,95,0.60000000000000009,0.5,0.2,10,1000,0,null,10,"10.3-6.4-3","CartesianRepFeat3 of CartesianRepFeat1 of LineFeat2","G1 X150.0 E10.0"]
["Print",150,95,0.60000000000000009,150,100,0.60000000000000009,0.5,0.2,0.5,1000,0,null,10,"10.3-6.4-4","CartesianRepFeat3 of CartesianRepFeat1 of LineFeat3","G1 Y100.0 E0.5"]
["Print",150,100,0.60000000000000009,50,100,0.60000000000000009,0.5,0.2,10,1000,0,null,10,"10.3-6.4-5","CartesianRepFeat3 of CartesianRepFeat1 of LineFeat4","G1 X50.0 E10.0"]
["Print",50,100,0.60000000000000009,50,105,0.60000000000000009,0.5,0.2,0.5,1000,0,null,10,"10.3-6.5-2","CartesianRepFeat3 of CartesianRepFeat1 of LineFeat1","G1 Y105.0 E0.5"]
["Print",50,105,0.60000000000000009,150,105,0.60000000000000009,0.5,0.2,10,1000,0,null,10,"10.3-6.5-3","CartesianRepFeat3 of CartesianRepFeat1 of LineFeat2","G1 X150.0 E10.0"]
["Print",150,105,0.60000000000000009,150,110,0.60000000000000009,0.5,0.2,0.5,1000,0,null,10,"10.3-6.5-4","CartesianRepFeat3 of CartesianRepFeat1 of LineFeat3","G1 Y110.0 E0.5"]
["Print",150,110,0.60000000000000009,50,110,0.60000000000000009,0.5,0.2,10,1000,0,null,10,"10.3-6.5-5","CartesianRepFeat3 of CartesianRepFeat1 of LineFeat4","G1 X50.0 E10.0"]
["Print",50,110,0.60000000000000009,50,115,0.60000000000000009,0.5,0.2,0.5,1000,0,null,10,"10.3-6.6-2","CartesianRepFeat3 of CartesianRepFeat1 of LineFeat1","G1 Y115.0 E0.5"]
["Print",50,115,0.60000000000000009,150,115,0.60000000000000009,0.5,0.2,10,1000,0,null,10,"10.3-6.6-3","CartesianRepFeat3 of CartesianRepFeat1 of LineFeat2","G1 X150.0 E10.0"]
["Print",150,115,0.60000000000000009,150,120,0.60000000000000009,0.5,0.2,0.5,1000,0,null,10,"10.3-6.6-4","CartesianRepFeat3 of CartesianRepFeat1 of LineFeat3","G1 Y120.0 E0.5"]
["Print",150,120,0.60000000000000009,50,120,0.60000000000000009,0.5,0.2,10,1000,0,null,10,"10.3-6.6-5","CartesianRepFeat3 of CartesianRepFeat1 of LineFeat4","G1 X50.0 E10.0"]
["Print",50,120,0.60000000000000009,50,125,0.60000000000000009,0.5,0.2,0.5,1000,0,null,10,"10.3-6.7-2","CartesianRepFeat3 of CartesianRepFeat1 of LineFeat1","G1 Y125.0 E0.5"]
["Print",50,125,0.60000000000000009,150,125,0.60000000000000009,0.5,0.2,10,1000,0,null,10,"10.3-6.7-3","CartesianRepFeat3 of CartesianRepFeat1 of LineFeat2","G1 X150.0 E10.0"]
["Print",150,125,0.60000000000000009,150,130,0.60000000000000009,0.5,0.2,0.5,1000,0,null,10,"10.3-6.7-4","CartesianRepFeat3 of CartesianRepFeat1 of LineFeat3","G1 Y130.0 E0.5"]
["Print",150,130,0.60000000000000009,50,130,0.60000000000000009,0.5,0.2,10,1000,0,null,10,"10.3-6.7-5","CartesianRepFeat3 of CartesianRepFeat1 of LineFeat4","G1 X50.0 E10.0"]
["Print",50,130,0.60000000000000009,50,135,0.60000000000000009,0.5,0.2,0.5,1000,0,null,10,"10.3-6.8-2","CartesianRepFeat3 of CartesianRepFeat1 of LineFeat1","G1 Y135.0 E0.5"]
["Print",50,135,0.60000000000000009,150,135,0.60000000000000009,0.5,0.2,10,1000,0,null,10,"10.3-6.8-3","CartesianRepFeat3 of CartesianRepFeat1 of LineFeat2","G1 X150.0 E10.0"]
["Print",150,135,0.60000000000000009,150,140,0.60000000000000009,0.5,0.2,0.5,1000,0,null,10,"10.3-6.8-4","CartesianRepFeat3 of CartesianRepFeat1 of LineFeat3","G1 Y140.0 E0.5"]
["Print",150,140,0.60000000000000009,50,140,0.60000000000000009,0.5,0.2,10,1000,0,null,10,"10.3-6.8-5","CartesianRepFeat3 of CartesianRepFeat1 of LineFeat4","G1 X50.0 E10.0"]
["Print",50,140,0.60000000000000009,50,145,0.60000000000000009,0.5,0.2,0.5,1000,0,null,10,"10.3-7.1-2","CartesianRepFeat3 of CartesianRepFeat2 of LineFeat1","G1 Y145.0 E0.5"]
["Print",50,145,0.60000000000000009,150,145,0.60000000000000009,0.5,0.2,10,1000,0,null,10,"10.3-7.1-3","CartesianRepFeat3 of CartesianRepFeat2 of LineFeat2","G1 X150.0 E10.0"]
["Print",150,145,0.60000000000000009,150,150,0.60000000000000009,0.5,0.2,0.5,1000,0,null,10,"10.3-7.1-4","CartesianRepFeat3 of CartesianRepFeat2 of LineFeat3","G1 Y150.0 E0.5"]
["Travel",150,150,0.60000000000000009,150,150,0.70000000000000007,0,0,null,9000,null,null,0,0,"Travel automatically added","G0 F9000 Z0.9"]
["Print",150,150,0.70000000000000007,145,150,0.70000000000000007,0.5,0.2,0.5,1000,0,null,10,"10.3-9-7.1-4-8.1","CartesianRepFeat3 of Postprocessed version of ReflectFeat1 of CartesianRepFeat2 of LineFeat3","G1 F1000 X145.0 E0.5"]
["Print",145,150,0.70000000000000007,145,50,0.70000000000000007,0.5,0.2,10,1000,0,null,10,"10.3-9-7.1-3-8.1","CartesianRepFeat3 of Postprocessed version of ReflectFeat1 of CartesianRepFeat2 of LineFeat2","G1 Y50.0 E10.0"]
["Print",145,50,0.70000000000000007,140,50,0.70000000000000007,0.5,0.2,0.5,1000,0,null,10,"10.3-9-7.1-2-8.1","CartesianRepFeat3 of Postprocessed version of ReflectFeat1 of CartesianRepFeat2 of LineFeat1","G1 X140.0 E0.5"]
["Print",140,50,0.70000000000000007,140,150,0.70000000000000007,0.5,0.2,10,1000,0,null,10,"10.3-9-6.8-5-8.1","CartesianRepFeat3 of Postprocessed version of ReflectFeat1 of CartesianRepFeat1 of LineFeat4","G1 Y150.0 E10.0"]
["Print",140,150,0.70000000000000007,135,150,0.70000000000000007,0.5,0.2,0.5,1000,0,null,10,"10.3-9-6.8-4-8.1","CartesianRepFeat3 of Postprocessed version of ReflectFeat1 of CartesianRepFeat1 of LineFeat3","G1 X135.0 E0.5"]
["Print",135,150,0.70000000000000007,135,50,0.70000000000000007,0.5,0.2,10,1000,0,null,10,"10.3-9-6.8-3-8.1","CartesianRepFeat3 of Postprocessed version of ReflectFeat1 of CartesianRepFeat1 of LineFeat2","G1 Y50.0 E10.0"]
["Print",135,50,0.70000000000000007,130,50,0.70000000000000007,0.5,0.2,0.5,1000,0,null,10,"10.3-9-6.8-2-8.1","CartesianRepFeat3 of Postprocessed version of ReflectFeat1 of CartesianRepFeat1 of LineFeat1","G1 X130.0 E0.5"]
["Print",130,50,0.70000000000000007,130,150,0.70000000000000007,0.5,0.2,10,1000,0,null,10,"10.3-9-6.7-5-8.1","CartesianRepFeat3 of Postprocessed version of ReflectFeat1 of CartesianRepFeat1 of LineFeat4","G1 Y150.0 E10.0"]
["Print",130,150,0.70000000000000007,125,150,0.70000000000000007,0.5,0.2,0.5,1000,0,null,10,"10.3-9-6.7-4-8.1","CartesianRepFeat3 of Postprocessed version of ReflectFeat1 of CartesianRepFeat1 of LineFeat3","G1 X125.0 E0.5"]
["Print",125,150,0.70000000000000007,125,50,0.70000000000000007,0.5,0.2,10,1000,0,null,10,"10.3-9-6.7-3-8.1","CartesianRepFeat3 of Postprocessed version of ReflectFeat1 of CartesianRepFeat1 of LineFeat2","G1 Y50.0 E10.0"]
["Print",125,50,0.70000000000000007,120,50,0.70000000000000007,0.5,0.2,0.5,1000,0,null,10,"10.3-9-6.7-2-8.1","CartesianRepFeat3 of Postprocessed version of ReflectFeat1 of CartesianRepFeat1 of LineFeat1","G1 X120.0 E0.5"]
["Print",120,50,0.70000000000000007,120,150,0.70000000000000007,0.5,0.2,10,1000,0,null,10,"10.3-9-6.6-5-8.1","CartesianRepFeat3 of Postprocessed version of ReflectFeat1 of CartesianRepFeat1 of LineFeat4","G1 Y150.0 E10.0"]
["Print",120,150,0.70000000000000007,115,150,0.70000000000000007,0.5,0.2,0.5,1000,0,null,10,"10.3-9-6.6-4-8.1","CartesianRepFeat3 of Postprocessed version of ReflectFeat1 of CartesianRepFeat1 of LineFeat3","G1 X115.0 E0.5"]
["Print",115,150,0.70000000000000007,115,50,0.70000000000000007,0.5,0.2,10,1000,0,null,10,"10.3-9-6.6-3-8.1","CartesianRepFeat3 of Postprocessed version of ReflectFeat1 of CartesianRepFeat1 of LineFeat2","G1 Y50.0 E10.0"]
["Print",115,50,0.70000000000000007,110,50,0.70000000000000007,0.5,0.2,0.5,1000,0,null,10,"10.3-9-6.6-2-8.1","CartesianRepFeat3 of Postprocessed version of ReflectFeat1 of CartesianRepFeat1 of LineFeat1","G1 X110.0 E0.5"]
["Print",110,50,0.70000000000000007,110,150,0.70000000000000007,0.5,0.2,10,1000,0,null,10,"10.3-9-6.5-5-8.1","CartesianRepFeat3 of Postprocessed version of ReflectFeat1 of CartesianRepFeat1 of LineFeat4","G1 Y150.0 E10.0"]
["Print",110,150,0.70000000000000007,105,150,0.70000000000000007,0.5,0.2,0.5,1000,0,null,10,"10.3-9-6.5-4-8.1","CartesianRepFeat3 of Postprocessed version of ReflectFeat1 of CartesianRepFeat1 of LineFeat3","G1 X105.0 E0.5"]
["Print",105,150,0.70000000000000007,105,50,0.70000000000000007,0.5,0.2,10,1000,0,null,10,"10.3-9-6.5-3-8.1","CartesianRepFeat3 of Postprocessed version of ReflectFeat1 of CartesianRepFeat1 of LineFeat2","G1 Y50.0 E10.0"]
["Print",105,50,0.70000000000000007,100,50,0.70000000000000007,0.5,0.2,0.5,1000,0,null,10,"10.3-9-6.5-2-8.1","CartesianRepFeat3 of Postprocessed version of ReflectFeat1 of CartesianRepFeat1 of LineFeat1","G1 X100.0 E0.5"]
["Print",100,50,0.70000000000000007,100,150,0.70000000000000007,0.5,0.2,10,1000,0,null,10,"10.3-9-6.4-5-8.1","CartesianRepFeat3 of Postprocessed version of ReflectFeat1 of CartesianRepFeat1 of LineFeat4","G1 Y150.0 E10.0"]
["Print",100,150,0.70000000000000007,95,150,0.70000000000000007,0.5,0.2,0.5,1000,0,null,10,"10.3-9-6.4-4-8.1","CartesianRepFeat3 of Postprocessed version of ReflectFeat1 of CartesianRepFeat1 of LineFeat3","G1 X95.0 E0.5"]
["Print",95,150,0.70000000000000007,95,50,0.70000000000000007,0.5,0.2,10,1000,0,null,10,"10.3-9-6.4-3-8.1","CartesianRepFeat3 of Postprocessed version of ReflectFeat1 of CartesianRepFeat1 of LineFeat2","G1 Y50.0 E10.0"]
["Print",95,50,0.70000000000000007,90,50,0.70000000000000007,0.5,0.2,0.5,1000,0,null,10,"10.3-9-6.4-2-8.1","CartesianRepFeat3 of Postprocessed version of ReflectFeat1 of CartesianRepFeat1 of LineFeat1","G1 X90.0 E0.5"]
["Print",90,50,0.70000000000000007,90,150,0.70000000000000007,0.5,0.2,10,1000,0,null,10,"10.3-9-6.3-5-8.1","CartesianRepFeat3 of Postprocessed version of ReflectFeat1 of CartesianRepFeat1 of LineFeat4","G1 Y150.0 E10.0"]
["Print",90,150,0.70000000000000007,85,150,0.70000000000000007,0.5,0.2,0.5,1000,0,null,10,"10.3-9-6.3-4-8.1","CartesianRepFeat3 of Postprocessed version of ReflectFeat1 of CartesianRepFeat1 of LineFeat3","G1 X85.0 E0.5"]
["Print",85,150,0.70000000000000007,85,50,0.70000000000000007,0.5,0.2,10,1000,0,null,10,"10.3-9-6.3-3-8.1","CartesianRepFeat3 of Postprocessed version of ReflectFeat1 of CartesianRepFeat1 of LineFeat2","G1 Y50.0 E10.0"]
["Print",85,50,0.70000000000000007,80,50,0.70000000000000007,0.5,0.2,0.5,1000,0,null,10,"10.3-9-6.3-2-8.1","CartesianRepFeat3 of Postprocessed version of ReflectFeat1 of CartesianRepFeat1 of LineFeat1","G1 X80.0 E0.5"]
["Print",80,50,0.70000000000000007,80,150,0.70000000000000007,0.5,0.2,10,1000,0,null,10,"10.3-9-6.2-5-8.1","CartesianRepFeat3 of Postprocessed version of ReflectFeat1 of CartesianRepFeat1 of LineFeat4","G1 Y150.0 E10.0"]
["Print",80,150,0.70000000000000007,75,150,0.70000000000000007,0.5,0.2,0.5,1000,0,null,10,"10.3-9-6.2-4-8.1","CartesianRepFeat3 of Postprocessed version of ReflectFeat1 of CartesianRepFeat1 of LineFeat3","G1 X75.0 E0.5"]
["Print",75,150,0.70000000000000007,75,50,0.70000000000000007,0.5,0.2,10,1000,0,null,10,"10.3-9-6.2-3-8.1","CartesianRepFeat3 of Postprocessed version of ReflectFeat1 of CartesianRepFeat1 of LineFeat2","G1 Y50.0 E10.0"]
["Print",75,50,0.70000000000000007,70,50,0.70000000000000007,0.5,0.2,0.5,1000,0,null,10,"10.3-9-6.2-2-8.1","CartesianRepFeat3 of Postprocessed version of ReflectFeat1 of CartesianRepFeat1 of LineFeat1","G1 X70.0 E0.5"]
["Print",70,50,0.70000000000000007,70,150,0.70000000000000007,0.5,0.2,10,1000,0,null,10,"10.3-9-6.1-5-8.1","CartesianRepFeat3 of Postprocessed version of ReflectFeat1 of CartesianRepFeat1 of LineFeat4","G1 Y150.0 E10.0"]
["Print",70,150,0.70000000000000007,65,150,0.70000000000000007,0.5,0.2,0.5,1000,0,null,10,"10.3-9-6.1-4-8.1","CartesianRepFeat3 of Postprocessed version of ReflectFeat1 of CartesianRepFeat1 of LineFeat3","G1 X65.0 E0.5"]
["Print",65,150,0.70000000000000007,65,50,0.70000000000000007,0.5,0.2,10,1000,0,null,10,"10.3-9-6.1-3-8.1","CartesianRepFeat3 of Postprocessed version of ReflectFeat1 of CartesianRepFeat1 of LineFeat2","G1 Y50.0 E10.0"]
["Print",65,50,0.70000000000000007,60,50,0.70000000000000007,0.5,0.2,0.5,1000,0,null,10,"10.3-9-6.1-2-8.1","CartesianRepFeat3 of Postprocessed version of ReflectFeat1 of CartesianRepFeat1 of LineFeat1","G1 X60.0 E0.5"]
["Print",60,50,0.70000000000000007,60,150,0.70000000000000007,0.5,0.2,10,1000,0,null,10,"10.3-9-5-8.1","CartesianRepFeat3 of Postprocessed version of ReflectFeat1 of LineFeat4","G1 Y150.0 E10.0"]
["Print",60,150,0.70000000000000007,55,150,0.70000000000000007,0.5,0.2,0.5,1000,0,null,10,"10.3-9-4-8.1","CartesianRepFeat3 of Postprocessed version of ReflectFeat1 of LineFeat3","G1 X55.0 E0.5"]
["Print",55,150,0.70000000000000007,55,50,0.70000000000000007,0.5,0.2,10,1000,0,null,10,"10.3-9-3-8.1","CartesianRepFeat3 of Postprocessed version of ReflectFeat1 of LineFeat2","G1 Y50.0 E10.0"]
["Print",55,50,0.70000000000000007,50,50,0.70000000000000007,0.5,0.2,0.5,1000,0,null,10,"10.3-9-2-8.1","CartesianRepFeat3 of Postprocessed version of ReflectFeat1 of LineFeat1","G1 X50.0 E0.5"]
["Travel",50,50,0.70000000000000007,50,50,0.8,0,0,null,9000,null,null,0,0,"Travel automatically added","G0 F9000 Z1.0"]
["Print",50,50,0.8,50,150,0.8,0.5,0.2,10,1000,0,null,10,"10.4-1","CartesianRepFeat3 of RectangleFeat1","G1 F1000 Y150.0 E10.0"]
["Print",50,150,0.8,150,150,0.8,0.5,0.2,10,1000,0,null,10,"10.4-1","CartesianRepFeat3 of RectangleFeat1","G1 X150.0 E10.0"]
["Print",150,150,0.8,150,50,0.8,0.5,0.2,10,1000,0,null,10,"10.4-1","CartesianRepFeat3 of RectangleFeat1","G1 Y50.0 E10.0"]
["Print",150,50,0.8,50,50,0.8,0.5,0.2,10,1000,0,null,10,"10.4-1","CartesianRepFeat3 of RectangleFeat1","G1 X50.0 E10.0"]
["Print",50,50,0.8,50,55,0.8,0.5,0.2,0.5,1000,0,null,10,"10.4-2","CartesianRepFeat3 of LineFeat1","G1 Y55.0 E0.5"]
["Print",50,55,0.8,150,55,0.8,0.5,0.2,10,1000,0,null,10,"10.4-3","CartesianRepFeat3 of LineFeat2","G1 X150.0 E10.0"]
["Print",150,55,0.8,150,60,0.8,0.5,0.2,0.5,1000,0,null,10,"10.4-4","CartesianRepFeat3 of LineFeat3","G1 Y60.0 E0.5"]
["Print",150,60,0.8,50,60,0.8,0.5,0.2,10,1000,0,null,10,"10.4-5","CartesianRepFeat3 of LineFeat4","G1 X50.0 E10.0"]
["Print",50,60,0.8,50,65,0.8,0.5,0.2,0.5,1000,0,null,10,"10.4-6.1-2","CartesianRepFeat3 of CartesianRepFeat1 of LineFeat1","G1 Y65.0 E0.5"]
["Print",50,65,0.8,150,65,0.8,0.5,0.2,10,1000,0,null,10,"10.4-6.1-3","CartesianRepFeat3 of CartesianRepFeat1 of LineFeat2","G1 X150.0 E10.0"]
["Print",150,65,0.8,150,70,0.8,0.5,0.2,0.5,1000,0,null,10,"10.4-6.1-4","CartesianRepFeat3 of CartesianRepFeat1 of LineFeat3","G1 Y70.0 E0.5"]
["Print",150,70,0.8,50,70,0.8,0.5,0.2,10,1000,0,null,10,"10.4-6.1-5","CartesianRepFeat3 of CartesianRepFeat1 of LineFeat4","G1 X50.0 E10.0"]
["Print",50,70,0.8,50,75,0.8,0.5,0.2,0.5,1000,0,null,10,"10.4-6.2-2","CartesianRepFeat3 of CartesianRepFeat1 of LineFeat1","G1 Y75.0 E0.5"]
["Print",50,75,0.8,150,75,0.8,0.5,0.2,10,1000,0,null,10,"10.4-6.2-3","CartesianRepFeat3 of CartesianRepFeat1 of LineFeat2","G1 X150.0 E10.0"]
["Print",150,75,0.8,150,80,0.8,0.5,0.2,0.5,1000,0,null,10,"10.4-6.2-4","CartesianRepFeat3 of CartesianRepFeat1 of LineFeat3","G1 Y80.0 E0.5"]
["Print",150,80,0.8,50,80,0.8,0.5,0.2,10,1000,0,null,10,"10.4-6.2-5","CartesianRepFeat3 of CartesianRepFeat1 of LineFeat4","G1 X50.0 E10.0"]
["Print",50,80,0.8,50,85,0.8,0.5,0.2,0.5,1000,0,null,10,"10.4-6.3-2","CartesianRepFeat3 of CartesianRepFeat1 of LineFeat1","G1 Y85.0 E0.5"]
["Print",50,85,0.8,150,85,0.8,0.5,0.2,10,1000,0,null,10,"10.4-6.3-3","CartesianRepFeat3 of CartesianRepFeat1 of LineFeat2","G1 X150.0 E10.0"]
["Print",150,85,0.8,150,90,0.8,0.5,0.2,0.5,1000,0,null,10,"10.4-6.3-4","CartesianRepFeat3 of CartesianRepFeat1 of LineFeat3","G1 Y90.0 E0.5"]
["Print",150,90,0.8,50,90,0.8,0.5,0.2,10,1000,0,null,10,"10.4-6.3-5","CartesianRepFeat3 of CartesianRepFeat1 of LineFeat4","G1 X50.0 E10.0"]
["Print",50,90,0.8,50,95,0.8,0.5,0.2,0.5,1000,0,null,10,"10.4-6.4-2","CartesianRepFeat3 of CartesianRepFeat1 of LineFeat1","G1 Y95.0 E0.5"]
["Print",50,95,0.8,150,95,0.8,0.5,0.2,10,1000,0,null,10,"10.4-6.4-3","CartesianRepFeat3 of CartesianRepFeat1 of LineFeat2","G1 X150.0 E10.0"]
["Print",150,95,0.8,150,100,0.8,0.5,0.2,0.5,1000,0,null,10,"10.4-6.4-4","CartesianRepFeat3 of CartesianRepFeat1 of LineFeat3","G1 Y100.0 E0.5"]
["Print",150,100,0.8,50,100,0.8,0.5,0.2,10,1000,0,null,10,"10.4-6.4-5","CartesianRepFeat3 of CartesianRepFeat1 of LineFeat4","G1 X50.0 E10.0"]
["Print",50,100,0.8,50,105,0.8,0.5,0.2,0.5,1000,0,null,10,"10.4-6.5-2","CartesianRepFeat3 of CartesianRepFeat1 of LineFeat1","G1 Y105.0 E0.5"]
["Print",50,105,0.8,150,105,0.8,0.5,0.2,10,1000,0,null,10,"10.4-6.5-3","CartesianRepFeat3 of CartesianRepFeat1 of LineFeat2","G1 X150.0 E10.0"]
["Print",150,105,0.8,150,110,0.8,0.5,0.2,0.5,1000,0,null,10,"10.4-6.5-4","CartesianRepFeat3 of CartesianRepFeat1 of LineFeat3","G1 Y110.0 E0.5"]
["Print",150,110,0.8,50,110,0.8,0.5,0.2,10,1000,0,null,10,"10.4-6.5-5","CartesianRepFeat3 of CartesianRepFeat1 of LineFeat4","G1 X50.0 E10.0"]
["Print",50,110,0.8,50,115,0.8,0.5,0.2,0.5,1000,0,null,10,"10.4-6.6-2","CartesianRepFeat3 of CartesianRepFeat1 of LineFeat1","G1 Y115.0 E0.5"]
["Print",50,115,0.8,150,115,0.8,0.5,0.2,10,1000,0,null,10,"10.4-6.6-3","CartesianRepFeat3 of CartesianRepFeat1 of LineFeat2","G1 X150.0 E10.0"]
["Print",150,115,0.8,150,120,0.8,0.5,0.2,0.5,1000,0,null,10,"10.4-6.6-4","CartesianRepFeat3 of CartesianRepFeat1 of LineFeat3","G1 Y120.0 E0.5"]
["Print",150,120,0.8,50,120,0.8,0.5,0.2,10,1000,0,null,10,"10.4-6.6-5","CartesianRepFeat3 of CartesianRepFeat1 of LineFeat4","G1 X50.0 E10.0"]
["Print",50,120,0.8,50,125,0.8,0.5,0.2,0.5,1000,0,null,10,"10.4-6.7-2","CartesianRepFeat3 of CartesianRepFeat1 of LineFeat1","G1 Y125.0 E0.5"]
["Print",50,125,0.8,150,125,0.8,0.5,0.2,10,1000,0,null,10,"10.4-6.7-3","CartesianRepFeat3 of CartesianRepFeat1 of LineFeat2","G1 X150.0 E10.0"]
["Print",150,125,0.8,150,130,0.8,0.5,0.2,0.5,1000,0,null,10,"10.4-6.7-4","CartesianRepFeat3 of CartesianRepFeat1 of LineFeat3","G1 Y130.0 E0.5"]
["Print",150,130,0.8,50,130,0.8,0.5,0.2,10,1000,0,null,10,"10.4-6.7-5","CartesianRepFeat3 of CartesianRepFeat1 of LineFeat4","G1 X50.0 E10.0"]
["Print",50,130,0.8,50,135,0.8,0.5,0.2,0.5,1000,0,null,10,"10.4-6.8-2","CartesianRepFeat3 of CartesianRepFeat1 of LineFeat1","G1 Y135.0 E0.5"]
["Print",50,135,0.8,150,135,0.8,0.5,0.2,10,1000,0,null,10,"10.4-6.8-3","CartesianRepFeat3 of CartesianRepFeat1 of LineFeat2","G1 X150.0 E10.0"]
["Print",150,135,0.8,150,140,0.8,0.5,0.2,0.5,1000,0,null,10,"10.4-6.8-4","CartesianRepFeat3 of CartesianRepFeat1 of LineFeat3","G1 Y140.0 E0.5"]
["Print",150,140,0.8,50,140,0.8,0.5,0.2,10,1000,0,null,10,"10.4-6.8-5","CartesianRepFeat3 of CartesianRepFeat1 of LineFeat4","G1 X50.0 E10.0"]
["Print",50,140,0.8,50,145,0.8,0.5,0.2,0.5,1000,0,null,10,"10.4-7.1-2","CartesianRepFeat3 of CartesianRepFeat2 of LineFeat1","G1 Y145.0 E0.5"]
["Print",50,145,0.8,150,145,0.8,0.5,0.2,10,1000,0,null,10,"10.4-7.1-3","CartesianRepFeat3 of CartesianRepFeat2 of LineFeat2","G1 X150.0 E10.0"]
["Print",150,145,0.8,150,150,0.8,0.5,0.2,0.5,1000,0,null,10,"10.4-7.1-4","CartesianRepFeat3 of CartesianRepFeat2 of LineFeat3","G1 Y150.0 E0.5"]
["Travel",150,150,0.8,150,150,0.9,0,0,null,9000,null,null,0,0,"Travel automatically added","G0 F9000 Z1.1"]
["Print",150,150,0.9,145,150,0.9,0.5,0.2,0.5,1000,0,null,10,"10.4-9-7.1-4-8.1","CartesianRepFeat3 of Postprocessed version of ReflectFeat1 of CartesianRepFeat2 of LineFeat3","G1 F1000 X145.0 E0.5"]
["Print",145,150,0.9,145,50,0.9,0.5,0.2,10,1000,0,null,10,"10.4-9-7.1-3-8.1","CartesianRepFeat3 of Postprocessed version of ReflectFeat1 of CartesianRepFeat2 of LineFeat2","G1 Y50.0 E10.0"]
["Print",145,50,0.9,140,50,0.9,0.5,0.2,0.5,1000,0,null,10,"10.4-9-7.1-2-8.1","CartesianRepFeat3 of Postprocessed version of ReflectFeat1 of CartesianRepFeat2 of LineFeat1","G1 X140.0 E0.5"]
["Print",140,50,0.9,140,150,0.9,0.5,0.2,10,1000,0,null,10,"10.4-9-6.8-5-8.1","CartesianRepFeat3 of Postprocessed version of ReflectFeat1 of CartesianRepFeat1 of LineFeat4","G1 Y150.0 E10.0"]
["Print",140,150,0.9,135,150,0.9,0.5,0.2,0.5,1000,0,null,10,"10.4-9-6.8-4-8.1","CartesianRepFeat3 of Postprocessed version of ReflectFeat1 of CartesianRepFeat1 of LineFeat3","G1 X135.0 E0.5"]
["Print",135,150,0.9,135,50,0.9,0.5,0.2,10,1000,0,null,10,"10.4-9-6.8-3-8.1","CartesianRepFeat3 of Postprocessed version of ReflectFeat1 of CartesianRepFeat1 of LineFeat2","G1 Y50.0 E10.0"]
["Print",135,50,0.9,130,50,0.9,0.5,0.2,0.5,1000,0,null,10,"10.4-9-6.8-2-8.1","CartesianRepFeat3 of Postprocessed version of ReflectFeat1 of CartesianRepFeat1 of LineFeat1","G1 X130.0 E0.5"]
["Print",130,50,0.9,130,150,0.9,0.5,0.2,10,1000,0,null,10,"10.4-9-6.7-5-8.1","CartesianRepFeat3 of Postprocessed version of ReflectFeat1 of CartesianRepFeat1 of LineFeat4","G1 Y150.0 E10.0"]
["Print",130,150,0.9,125,150,0.9,0.5,0.2,0.5,1000,0,null,10,"10.4-9-6.7-4-8.1","CartesianRepFeat3 of Postprocessed version of ReflectFeat1 of CartesianRepFeat1 of LineFeat3","G1 X125.0 E0.5"]
["Print",125,150,0.9,125,50,0.9,0.5,0.2,10,1000,0,null,10,"10.4-9-6.7-3-8.1","CartesianRepFeat3 of Postprocessed version of ReflectFeat1 of CartesianRepFeat1 of LineFeat2","G1 Y50.0 E10.0"]
["Print",125,50,0.9,120,50,0.9,0.5,0.2,0.5,1000,0,null,10,"10.4-9-6.7-2-8.1","CartesianRepFeat3 of Postprocessed version of ReflectFeat1 of CartesianRepFeat1 of LineFeat1","G1 X120.0 E0.5"]
["Print",120,50,0.9,120,150,0.9,0.5,0.2,10,1000,0,null,10,"10.4-9-6.6-5-8.1","CartesianRepFeat3 of Postprocessed version of ReflectFeat1 of CartesianRepFeat1 of LineFeat4","G1 Y150.0 E10.0"]
["Print",120,150,0.9,115,150,0.9,0.5,0.2,0.5,1000,0,null,10,"10.4-9-6.6-4-8.1","CartesianRepFeat3 of Postprocessed version of ReflectFeat1 of CartesianRepFeat1 of LineFeat3","G1 X115.0 E0.5"]
["Print",115,150,0.9,115,50,0.9,0.5,0.2,10,1000,0,null,10,"10.4-9-6.6-3-8.1","CartesianRepFeat3 of Postprocessed version of ReflectFeat1 of CartesianRepFeat1 of LineFeat2","G1 Y50.0 E10.0"]
["Print",115,50,0.9,110,50,0.9,0.5,0.2,0.5,1000,0,null,10,"10.4-9-6.6-2-8.1","CartesianRepFeat3 of Postprocessed version of ReflectFeat1 of CartesianRepFeat1 of LineFeat1","G1 X110.0 E0.5"]
["Print",110,50,0.9,110,150,0.9,0.5,0.2,10,1000,0,null,10,"10.4-9-6.5-5-8.1","CartesianRepFeat3 of Postprocessed version of ReflectFeat1 of CartesianRepFeat1 of LineFeat4","G1 Y150.0 E10.0"]
["Print",110,150,0.9,105,150,0.9,0.5,0.2,0.5,1000,0,null,10,"10.4-9-6.5-4-8.1","CartesianRepFeat3 of Postprocessed version of ReflectFeat1 of CartesianRepFeat1 of LineFeat3","G1 X105.0 E0.5"]
["Print",105,150,0.9,105,50,0.9,0.5,0.2,10,1000,0,null,10,"10.4-9-6.5-3-8.1","CartesianRepFeat3 of Postprocessed version of ReflectFeat1 of CartesianRepFeat1 of LineFeat2","G1 Y50.0 E10.0"]
["Print",105,50,0.9,100,50,0.9,0.5,0.2,0.5,1000,0,null,10,"10.4-9-6.5-2-8.1","CartesianRepFeat3 of Postprocessed version of ReflectFeat1 of CartesianRepFeat1 of LineFeat1","G1 X100.0 E0.5"]
["Print",100,50,0.9,100,150,0.9,0.5,0.2,10,1000,0,null,10,"10.4-9-6.4-5-8.1","CartesianRepFeat3 of Postprocessed version of ReflectFeat1 of CartesianRepFeat1 of LineFeat4","G1 Y150.0 E10.0"]
["Print",100,150,0.9,95,150,0.9,0.5,0.2,0.5,1000,0,null,10,"10.4-9-6.4-4-8.1","CartesianRepFeat3 of Postprocessed version of ReflectFeat1 of CartesianRepFeat1 of LineFeat3","G1 X95.0 E0.5"]
["Print",95,150,0.9,95,50,0.9,0.5,0.2,10,1000,0,null,10,"10.4-9-6.4-3-8.1","CartesianRepFeat3 of Postprocessed version of ReflectFeat1 of CartesianRepFeat1 of LineFeat2","G1 Y50.0 E10.0"]
["Print",95,50,0.9,90,50,0.9,0.5,0.2,0.5,1000,0,null,10,"10.4-9-6.4-2-8.1","CartesianRepFeat3 of Postprocessed version of ReflectFeat1 of CartesianRepFeat1 of LineFeat1","G1 X90.0 E0.5"]
["Print",90,50,0.9,90,150,0.9,0.5,0.2,10,1000,0,null,10,"10.4-9-6.3-5-8.1","CartesianRepFeat3 of Postprocessed version of ReflectFeat1 of CartesianRepFeat1 of LineFeat4","G1 Y150.0 E10.0"]
["Print",90,150,0.9,85,150,0.9,0.5,0.2,0.5,1000,0,null,10,"10.4-9-6.3-4-8.1","CartesianRepFeat3 of Postprocessed version of ReflectFeat1 of CartesianRepFeat1 of LineFeat3","G1 X85.0 E0.5"]
["Print",85,150,0.9,85,50,0.9,0.5,0.2,10,1000,0,null,10,"10.4-9-6.3-3-8.1","CartesianRepFeat3 of Postprocessed version of ReflectFeat1 of CartesianRepFeat1 of LineFeat2","G1 Y50.0 E10.0"]
["Print",85,50,0.9,80,50,0.9,0.5,0.2,0.5,1000,0,null,10,"10.4-9-6.3-2-8.1","CartesianRepFeat3 of Postprocessed version of ReflectFeat1 of CartesianRepFeat1 of LineFeat1","G1 X80.0 E0.5"]
["Print",80,50,0.9,80,150,0.9,0.5,0.2,10,1000,0,null,10,"10.4-9-6.2-5-8.1","CartesianRepFeat3 of Postprocessed version of ReflectFeat1 of CartesianRepFeat1 of LineFeat4","G1 Y150.0 E10.0"]
["Print",80,150,0.9,75,150,0.9,0.5,0.2,0.5,1000,0,null,10,"10.4-9-6.2-4-8.1","CartesianRepFeat3 of Postprocessed version of ReflectFeat1 of CartesianRepFeat1 of LineFeat3","G1 X75.0 E0.5"]
["Print",75,150,0.9,75,50,0.9,0.5,0.2,10,1000,0,null,10,"10.4-9-6.2-3-8.1","CartesianRepFeat3 of Postprocessed version of ReflectFeat1 of CartesianRepFeat1 of LineFeat2","G1 Y50.0 E10.0"]
["Print",75,50,0.9,70,50,0.9,0.5,0.2,0.5,1000,0,null,10,"10.4-9-6.2-2-8.1","CartesianRepFeat3 of Postprocessed version of ReflectFeat1 of CartesianRepFeat1 of LineFeat1","G1 X70.0 E0.5"]
["Print",70,50,0.9,70,150,0.9,0.5,0.2,10,1000,0,null,10,"10.4-9-6.1-5-8.1","CartesianRepFeat3 of Postprocessed version of ReflectFeat1 of CartesianRepFeat1 of LineFeat4","G1 Y150.0 E10.0"]
["Print",70,150,0.9,65,150,0.9,0.5,0.2,0.5,1000,0,null,10,"10.4-9-6.1-4-8.1","CartesianRepFeat3 of Postprocessed version of ReflectFeat1 of CartesianRepFeat1 of LineFeat3","G1 X65.0 E0.5"]
["Print",65,150,0.9,65,50,0.9,0.5,0.2,10,1000,0,null,10,"10.4-9-6.1-3-8.1","CartesianRepFeat3 of Postprocessed version of ReflectFeat1 of CartesianRepFeat1 of LineFeat2","G1 Y50.0 E10.0"]
["Print",65,50,0.9,60,50,0.9,0.5,0.2,0.5,1000,0,null,10,"10.4-9-6.1-2-8.1","CartesianRepFeat3 of Postprocessed version of ReflectFeat1 of CartesianRepFeat1 of LineFeat1","G1 X60.0 E0.5"]
["Print",60,50,0.9,60,150,0.9,0.5,0.2,10,1000,0,null,10,"10.4-9-5-8.1","CartesianRepFeat3 of Postprocessed version of ReflectFeat1 of LineFeat4","G1 Y150.0 E10.0"]
["Print",60,150,0.9,55,150,0.9,0.5,0.2,0.5,1000,0,null,10,"10.4-9-4-8.1","CartesianRepFeat3 of Postprocessed version of ReflectFeat1 of LineFeat3","G1 X55.0 E0.5"]
["Print",55,150,0.9,55,50,0.9,0.5,0.2,10,1000,0,null,10,"10.4-9-3-8.1","CartesianRepFeat3 of Postprocessed version of ReflectFeat1 of LineFeat2","G1 Y50.0 E10.0"]
["Print",55,50,0.9,50,50,0.9,0.5,0.2,0.5,1000,0,null,10,"10.4-9-2-8.1","CartesianRepFeat3 of Postprocessed version of ReflectFeat1 of LineFeat1","G1 X50.0 E0.5"]
["Travel",50,50,0.9,50,50,1,0,0,null,9000,null,null,0,0,"Travel automatically added","G0 F9000 Z1.2"]
["Print",50,50,1,50,150,1,0.5,0.2,10,1000,0,null,10,"10.5-1","CartesianRepFeat3 of RectangleFeat1","G1 F1000 Y150.0 E10.0"]
["Print",50,150,1,150,150,1,0.5,0.2,10,1000,0,null,10,"10.5-1","CartesianRepFeat3 of RectangleFeat1","G1 X150.0 E10.0"]
["Print",150,150,1,150,50,1,0.5,0.2,10,1000,0,null,10,"10.5-1","CartesianRepFeat3 of RectangleFeat1","G1 Y50.0 E10.0"]
["Print",150,50,1,50,50,1,0.5,0.2,10,1000,0,null,10,"10.5-1","CartesianRepFeat3 of RectangleFeat1","G1 X50.0 E10.0"]
["Print",50,50,1,50,55,1,0.5,0.2,0.5,1000,0,null,10,"10.5-2","CartesianRepFeat3 of LineFeat1","G1 Y55.0 E0.5"]
["Print",50,55,1,150,55,1,0.5,0.2,10,1000,0,null,10,"10.5-3","CartesianRepFeat3 of LineFeat2","G1 X150.0 E10.0"]
["Print",150,55,1,150,60,1,0.5,0.2,0.5,1000,0,null,10,"10.5-4","CartesianRepFeat3 of LineFeat3","G1 Y60.0 E0.5"]
["Print",150,60,1,50,60,1,0.5,0.2,10,1000,0,null,10,"10.5-5","CartesianRepFeat3 of LineFeat4","G1 X50.0 E10.0"]
["Print",50,60,1,50,65,1,0.5,0.2,0.5,1000,0,null,10,"10.5-6.1-2","CartesianRepFeat3 of CartesianRepFeat1 of LineFeat1","G1 Y65.0 E0.5"]
["Print",50,65,1,150,65,1,0.5,0.2,10,1000,0,null,10,"10.5-6.1-3","CartesianRepFeat3 of CartesianRepFeat1 of LineFeat2","G1 X150.0 E10.0"]
["Print",150,65,1,150,70,1,0.5,0.2,0.5,1000,0,null,10,"10.5-6.1-4","CartesianRepFeat3 of CartesianRepFeat1 of LineFeat3","G1 Y70.0 E0.5"]
["Print",150,70,1,50,70,1,0.5,0.2,10,1000,0,null,10,"10.5-6.1-5","CartesianRepFeat3 of CartesianRepFeat1 of LineFeat4","G1 X50.0 E10.0"]
["Print",50,70,1,50,75,1,0.5,0.2,0.5,1000,0,null,10,"10.5-6.2-2","CartesianRepFeat3 of CartesianRepFeat1 of LineFeat1","G1 Y75.0 E0.5"]
["Print",50,75,1,150,75,1,0.5,0.2,10,1000,0,null,10,"10.5-6.2-3","CartesianRepFeat3 of CartesianRepFeat1 of LineFeat2","G1 X150.0 E10.0"]
["Print",150,75,1,150,80,1,0.5,0.2,0.5,1000,0,null,10,"10.5-6.2-4","CartesianRepFeat3 of CartesianRepFeat1 of LineFeat3","G1 Y80.0 E0.5"]
["Print",150,80,1,50,80,1,0.5,0.2,10,1000,0,null,10,"10.5-6.2-5","CartesianRepFeat3 of CartesianRepFeat1 of LineFeat4","G1 X50.0 E10.0"]
["Print",50,80,1,50,85,1,0.5,0.2,0.5,1000,0,null,10,"10.5-6.3-2","CartesianRepFeat3 of CartesianRepFeat1 of LineFeat1","G1 Y85.0 E0.5"]
["Print",50,85,1,150,85,1,0.5,0.2,10,1000,0,null,10,"10.5-6.3-3","CartesianRepFeat3 of CartesianRepFeat1 of LineFeat2","G1 X150.0 E10.0"]
["Print",150,85,1,150,90,1,0.5,0.2,0.5,1000,0,null,10,"10.5-6.3-4","CartesianRepFeat3 of CartesianRepFeat1 of LineFeat3","G1 Y90.0 E0.5"]
["Print",150,90,1,50,90,1,0.5,0.2,10,1000,0,null,10,"10.5-6.3-5","CartesianRepFeat3 of CartesianRepFeat1 of LineFeat4","G1 X50.0 E10.0"]
["Print",50,90,1,50,95,1,0.5,0.2,0.5,1000,0,null,10,"10.5-6.4-2","CartesianRepFeat3 of CartesianRepFeat1 of LineFeat1","G1 Y95.0 E0.5"]
["Print",50,95,1,150,95,1,0.5,0.2,10,1000,0,null,10,"10.5-6.4-3","CartesianRepFeat3 of CartesianRepFeat1 of LineFeat2","G1 X150.0 E10.0"]
["Print",150,95,1,150,100,1,0.5,0.2,0.5,1000,0,null,10,"10.5-6.4-4","CartesianRepFeat3 of CartesianRepFeat1 of LineFeat3","G1 Y100.0 E0.5"]
["Print",150,100,1,50,100,1,0.5,0.2,10,1000,0,null,10,"10.5-6.4-5","CartesianRepFeat3 of CartesianRepFeat1 of LineFeat4","G1 X50.0 E10.0"]
["Print",50,100,1,50,105,1,0.5,0.2,0.5,1000,0,null,10,"10.5-6.5-2","CartesianRepFeat3 of CartesianRepFeat1 of LineFeat1","G1 Y105.0 E0.5"]
["Print",50,105,1,150,105,1,0.5,0.2,10,1000,0,null,10,"10.5-6.5-3","CartesianRepFeat3 of CartesianRepFeat1 of LineFeat2","G1 X150.0 E10.0"]
["Print",150,105,1,150,110,1,0.5,0.2,0.5,1000,0,null,10,"10.5-6.5-4","CartesianRepFeat3 of CartesianRepFeat1 of LineFeat3","G1 Y110.0 E0.5"]
["Print",150,110,1,50,110,1,0.5,0.2,10,1000,0,null,10,"10.5-6.5-5","CartesianRepFeat3 of CartesianRepFeat1 of LineFeat4","G1 X50.0 E10.0"]
["Print",50,110,1,50,115,1,0.5,0.2,0.5,1000,0,null,10,"10.5-6.6-2","CartesianRepFeat3 of CartesianRepFeat1 of LineFeat1","G1 Y115.0 E0.5"]
["Print",50,115,1,150,115,1,0.5,0.2,10,1000,0,null,10,"10.5-6.6-3","CartesianRepFeat3 of CartesianRepFeat1 of LineFeat2","G1 X150.0 E10.0"]
["Print",150,115,1,150,120,1,0.5,0.2,0.5,1000,0,null,10,"10.5-6.6-4","CartesianRepFeat3 of CartesianRepFeat1 of LineFeat3","G1 Y120.0 E0.5"]
["Print",150,120,1,50,120,1,0.5,0.2,10,1000,0,null,10,"10.5-6.6-5","CartesianRepFeat3 of CartesianRepFeat1 of LineFeat4","G1 X50.0 E10.0"]
["Print",50,120,1,50,125,1,0.5,0.2,0.5,1000,0,null,10,"10.5-6.7-2","CartesianRepFeat3 of CartesianRepFeat1 of LineFeat1","G1 Y125.0 E0.5"]
["Print",50,125,1,150,125,1,0.5,0.2,10,1000,0,null,10,"10.5-6.7-3","CartesianRepFeat3 of CartesianRepFeat1 of LineFeat2","G1 X150.0 E10.0"]
["Print",150,125,1,150,130,1,0.5,0.2,0.5,1000,0,null,10,"10.5-6.7-4","CartesianRepFeat3 of CartesianRepFeat1 of LineFeat3","G1 Y130.0 E0.5"]
["Print",150,130,1,50,130,1,0.5,0.2,10,1000,0,null,10,"10.5-6.7-5","CartesianRepFeat3 of CartesianRepFeat1 of LineFeat4","G1 X50.0 E10.0"]
["Print",50,130,1,50,135,1,0.5,0.2,0.5,1000,0,null,10,"10.5-6.8-2","CartesianRepFeat3 of CartesianRepFeat1 of LineFeat1","G1 Y135.0 E0.5"]
["Print",50,135,1,150,135,1,0.5,0.2,10,1000,0,null,10,"10.5-6.8-3","CartesianRepFeat3 of CartesianRepFeat1 of LineFeat2","G1 X150.0 E10.0"]
["Print",150,135,1,150,140,1,0.5,0.2,0.5,1000,0,null,10,"10.5-6.8-4","CartesianRepFeat3 of CartesianRepFeat1 of LineFeat3","G1 Y140.0 E0.5"]
["Print",150,140,1,50,140,1,0.5,0.2,10,1000,0,null,10,"10.5-6.8-5","CartesianRepFeat3 of CartesianRepFeat1 of LineFeat4","G1 X50.0 E10.0"]
["Print",50,140,1,50,145,1,0.5,0.2,0.5,1000,0,null,10,"10.5-7.1-2","CartesianRepFeat3 of CartesianRepFeat2 of LineFeat1","G1 Y145.0 E0.5"]
["Print",50,145,1,150,145,1,0.5,0.2,10,1000,0,null,10,"10.5-7.1-3","CartesianRepFeat3 of CartesianRepFeat2 of LineFeat2","G1 X150.0 E10.0"]
["Print",150,145,1,150,150,1,0.5,0.2,0.5,1000,0,null,10,"10.5-7.1-4","CartesianRepFeat3 of CartesianRepFeat2 of LineFeat3","G1 Y150.0 E0.5"]
["Travel",150,150,1,150,150,1.1000000000000001,0,0,null,9000,null,null,0,0,"Travel automatically added","G0 F9000 Z1.3"]
["Print",150,150,1.1000000000000001,145,150,1.1000000000000001,0.5,0.2,0.5,1000,0,null,10,"10.5-9-7.1-4-8.1","CartesianRepFeat3 of Postprocessed version of ReflectFeat1 of CartesianRepFeat2 of LineFeat3","G1 F1000 X145.0 E0.5"]
["Print",145,150,1.1000000000000001,145,50,1.1000000000000001,0.5,0.2,10,1000,0,null,10,"10.5-9-7.1-3-8.1","CartesianRepFeat3 of Postprocessed version of ReflectFeat1 of CartesianRepFeat2 of LineFeat2","G1 Y50.0 E10.0"]
["Print",145,50,1.1000000000000001,140,50,1.1000000000000001,0.5,0.2,0.5,1000,0,null,10,"10.5-9-7.1-2-8.1","CartesianRepFeat3 of Postprocessed version of ReflectFeat1 of CartesianRepFeat2 of LineFeat1","G1 X140.0 E0.5"]
["Print",140,50,1.1000000000000001,140,150,1.1000000000000001,0.5,0.2,10,1000,0,null,10,"10.5-9-6.8-5-8.1","CartesianRepFeat3 of Postprocessed version of ReflectFeat1 of CartesianRepFeat1 of LineFeat4","G1 Y150.0 E10.0"]
["Print",140,150,1.1000000000000001,135,150,1.1000000000000001,0.5,0.2,0.5,1000,0,null,10,"10.5-9-6.8-4-8.1","CartesianRepFeat3 of Postprocessed version of ReflectFeat1 of CartesianRepFeat1 of LineFeat3","G1 X135.0 E0.5"]
["Print",135,150,1.1000000000000001,135,50,1.1000000000000001,0.5,0.2,10,1000,0,null,10,"10.5-9-6.8-3-8.1","CartesianRepFeat3 of Postprocessed version of ReflectFeat1 of CartesianRepFeat1 of LineFeat2","G1 Y50.0 E10.0"]
["Print",135,50,1.1000000000000001,130,50,1.1000000000000001,0.5,0.2,0.5,1000,0,null,10,"10.5-9-6.8-2-8.1","CartesianRepFeat3 of Postprocessed version of ReflectFeat1 of CartesianRepFeat1 of LineFeat1","G1 X130.0 E0.5"]
["Print",130,50,1.1000000000000001,130,150,1.1000000000000001,0.5,0.2,10,1000,0,null,10,"10.5-9-6.7-5-8.1","CartesianRepFeat3 of Postprocessed version of ReflectFeat1 of CartesianRepFeat1 of LineFeat4","G1 Y150.0 E10.0"]
["Print",130,150,1.1000000000000001,125,150,1.1000000000000001,0.5,0.2,0.5,1000,0,null,10,"10.5-9-6.7-4-8.1","CartesianRepFeat3 of Postprocessed version of ReflectFeat1 of CartesianRepFeat1 of LineFeat3","G1 X125.0 E0.5"]
["Print",125,150,1.1000000000000001,125,50,1.1000000000000001,0.5,0.2,10,1000,0,null,10,"10.5-9-6.7-3-8.1","CartesianRepFeat3 of Postprocessed version of ReflectFeat1 of CartesianRepFeat1 of LineFeat2","G1 Y50.0 E10.0"]
["Print",125,50,1.1000000000000001,120,50,1.1000000000000001,0.5,0.2,0.5,1000,0,null,10,"10.5-9-6.7-2-8.1","CartesianRepFeat3 of Postprocessed version of ReflectFeat1 of CartesianRepFeat1 of LineFeat1","G1 X120.0 E0.5"]
["Print",120,50,1.1000000000000001,120,150,1.1000000000000001,0.5,0.2,10,1000,0,null,10,"10.5-9-6.6-5-8.1","CartesianRepFeat3 of Postprocessed version of ReflectFeat1 of CartesianRepFeat1 of LineFeat4","G1 Y150.0 E10.0"]
["Print",120,150,1.1000000000000001,115,150,1.1000000000000001,0.5,0.2,0.5,1000,0,null,10,"10.5-9-6.6-4-8.1","CartesianRepFeat3 of Postprocessed version of ReflectFeat1 of CartesianRepFeat1 of LineFeat3","G1 X115.0 E0.5"]
["Print",115,150,1.1000000000000001,115,50,1.1000000000000001,0.5,0.2,10,1000,0,null,10,"10.5-9-6.6-3-8.1","CartesianRepFeat3 of Postprocessed version of ReflectFeat1 of CartesianRepFeat1 of LineFeat2","G1 Y50.0 E10.0"]
["Print",115,50,1.1000000000000001,110,50,1.1000000000000001,0.5,0.2,0.5,1000,0,null,10,"10.5-9-6.6-2-8.1","CartesianRepFeat3 of Postprocessed version of ReflectFeat1 of CartesianRepFeat1 of LineFeat1","G1 X110.0 E0.5"]
["Print",110,50,1.1000000000000001,110,150,1.1000000000000001,0.5,0.2,10,1000,0,null,10,"10.5-9-6.5-5-8.1","CartesianRepFeat3 of Postprocessed version of ReflectFeat1 of CartesianRepFeat1 of LineFeat4","G1 Y150.0 E10.0"]
["Print",110,150,1.1000000000000001,105,150,1.1000000000000001,0.5,0.2,0.5,1000,0,null,10,"10.5-9-6.5-4-8.1","CartesianRepFeat3 of Postprocessed version of ReflectFeat1 of CartesianRepFeat1 of LineFeat3","G1 X105.0 E0.5"]
["Print",105,150,1.1000000000000001,105,50,1.1000000000000001,0.5,0.2,10,1000,0,null,10,"10.5-9-6.5-3-8.1","CartesianRepFeat3 of Postprocessed version of ReflectFeat1 of CartesianRepFeat1 of LineFeat2","G1 Y50.0 E10.0"]
["Print",105,50,1.1000000000000001,100,50,1.1000000000000001,0.5,0.2,0.5,1000,0,null,10,"10.5-9-6.5-2-8.1","CartesianRepFeat3 of Postprocessed version of ReflectFeat1 of CartesianRepFeat1 of LineFeat1","G1 X100.0 E0.5"]
["Print",100,50,1.1000000000000001,100,150,1.1000000000000001,0.5,0.2,10,1000,0,null,10,"10.5-9-6.4-5-8.1","CartesianRepFeat3 of Postprocessed version of ReflectFeat1 of CartesianRepFeat1 of LineFeat4","G1 Y150.0 E10.0"]
["Print",100,150,1.1000000000000001,95,150,1.1000000000000001,0.5,0.2,0.5,1000,0,null,10,"10.5-9-6.4-4-8.1","CartesianRepFeat3 of Postprocessed version of ReflectFeat1 of CartesianRepFeat1 of LineFeat3","G1 X95.0 E0.5"]
["Print",95,150,1.1000000000000001,95,50,1.1000000000000001,0.5,0.2,10,1000,0,null,10,"10.5-9-6.4-3-8.1","CartesianRepFeat3 of Postprocessed version of ReflectFeat1 of CartesianRepFeat1 of LineFeat2","G1 Y50.0 E10.0"]
["Print",95,50,1.1000000000000001,90,50,1.1000000000000001,0.5,0.2,0.5,1000,0,null,10,"10.5-9-6.4-2-8.1","CartesianRepFeat3 of Postprocessed version of ReflectFeat1 of CartesianRepFeat1 of LineFeat1","G1 X90.0 E0.5"]
["Print",90,50,1.1000000000000001,90,150,1.1000000000000001,0.5,0.2,10,1000,0,null,10,"10.5-9-6.3-5-8.1","CartesianRepFeat3 of Postprocessed version of ReflectFeat1 of CartesianRepFeat1 of LineFeat4","G1 Y150.0 E10.0"]
["Print",90,150,1.1000000000000001,85,150,1.1000000000000001,0.5,0.2,0.5,1000,0,null,10,"10.5-9-6.3-4-8.1","CartesianRepFeat3 of Postprocessed version of ReflectFeat1 of CartesianRepFeat1 of LineFeat3","G1 X85.0 E0.5"]
["Print",85,150,1.1000000000000001,85,50,1.1000000000000001,0.5,0.2,10,1000,0,null,10,"10.5-9-6.3-3-8.1","CartesianRepFeat3 of Postprocessed version of ReflectFeat1 of CartesianRepFeat1 of LineFeat2","G1 Y50.0 E10.0"]
["Print",85,50,1.1000000000000001,80,50,1.1000000000000001,0.5,0.2,0.5,1000,0,null,10,"10.5-9-6.3-2-8.1","CartesianRepFeat3 of Postprocessed version of ReflectFeat1 of CartesianRepFeat1 of LineFeat1","G1 X80.0 E0.5"]
["Print",80,50,1.1000000000000001,80,150,1.1000000000000001,0.5,0.2,10,1000,0,null,10,"10.5-9-6.2-5-8.1","CartesianRepFeat3 of Postprocessed version of ReflectFeat1 of CartesianRepFeat1 of LineFeat4","G1 Y150.0 E10.0"]
["Print",80,150,1.1000000000000001,75,150,1.1000000000000001,0.5,0.2,0.5,1000,0,null,10,"10.5-9-6.2-4-8.1","CartesianRepFeat3 of Postprocessed version of ReflectFeat1 of CartesianRepFeat1 of LineFeat3","G1 X75.0 E0.5"]
["Print",75,150,1.1000000000000001,75,50,1.1000000000000001,0.5,0.2,10,1000,0,null,10,"10.5-9-6.2-3-8.1","CartesianRepFeat3 of Postprocessed version of ReflectFeat1 of CartesianRepFeat1 of LineFeat2","G1 Y50.0 E10.0"]
["Print",75,50,1.1000000000000001,70,50,1.1000000000000001,0.5,0.2,0.5,1000,0,null,10,"10.5-9-6.2-2-8.1","CartesianRepFeat3 of Postprocessed version of ReflectFeat1 of CartesianRepFeat1 of LineFeat1","G1 X70.0 E0.5"]
["Print",70,50,1.1000000000000001,70,150,1.1000000000000001,0.5,0.2,10,1000,0,null,10,"10.5-9-6.1-5-8.1","CartesianRepFeat3 of Postprocessed version of ReflectFeat1 of CartesianRepFeat1 of LineFeat4","G1 Y150.0 E10.0"]
["Print",70,150,1.1000000000000001,65,150,1.1000000000000001,0.5,0.2,0.5,1000,0,null,10,"10.5-9-6.1-4-8.1","CartesianRepFeat3 of Postprocessed version of ReflectFeat1 of CartesianRepFeat1 of LineFeat3","G1 X65.0 E0.5"]
["Print",65,150,1.1000000000000001,65,50,1.1000000000000001,0.5,0.2,10,1000,0,null,10,"10.5-9-6.1-3-8.1","CartesianRepFeat3 of Postprocessed version of ReflectFeat1 of CartesianRepFeat1 of LineFeat2","G1 Y50.0 E10.0"]
["Print",65,50,1.1000000000000001,60,50,1.1000000000000001,0.5,0.2,0.5,1000,0,null,10,"10.5-9-6.1-2-8.1","CartesianRepFeat3 of Postprocessed version of ReflectFeat1 of CartesianRepFeat1 of LineFeat1","G1 X60.0 E0.5"]
["Print",60,50,1.1000000000000001,60,150,1.1000000000000001,0.5,0.2,10,1000,0,null,10,"10.5-9-5-8.1","CartesianRepFeat3 of Postprocessed version of ReflectFeat1 of LineFeat4","G1 Y150.0 E10.0"]
["Print",60,150,1.1000000000000001,55,150,1.1000000000000001,0.5,0.2,0.5,1000,0,null,10,"10.5-9-4-8.1","CartesianRepFeat3 of Postprocessed version of ReflectFeat1 of LineFeat3","G1 X55.0 E0.5"]
["Print",55,150,1.1000000000000001,55,50,1.1000000000000001,0.5,0.2,10,1000,0,null,10,"10.5-9-3-8.1","CartesianRepFeat3 of Postprocessed version of ReflectFeat1 of LineFeat2","G1 Y50.0 E10.0"]
["Print",55,50,1.1000000000000001,50,50,1.1000000000000001,0.5,0.2,0.5,1000,0,null,10,"10.5-9-2-8.1","CartesianRepFeat3 of Postprocessed version of ReflectFeat1 of LineFeat1","G1 X50.0 E0.5"]
["Travel",50,50,1.1000000000000001,50,50,1.2000000000000002,0,0,null,9000,null,null,0,0,"Travel automatically added","G0 F9000 Z1.4"]
["Print",50,50,1.2000000000000002,50,150,1.2000000000000002,0.5,0.2,10,1000,0,null,10,"10.6-1","CartesianRepFeat3 of RectangleFeat1","G1 F1000 Y150.0 E10.0"]
["Print",50,150,1.2000000000000002,150,150,1.2000000000000002,0.5,0.2,10,1000,0,null,10,"10.6-1","CartesianRepFeat3 of RectangleFeat1","G1 X150.0 E10.0"]
["Print",150,150,1.2000000000000002,150,50,1.2000000000000002,0.5,0.2,10,1000,0,null,10,"10.6-1","CartesianRepFeat3 of RectangleFeat1","G1 Y50.0 E10.0"]
["Print",150,50,1.2000000000000002,50,50,1.2000000000000002,0.5,0.2,10,1000,0,null,10,"10.6-1","CartesianRepFeat3 of RectangleFeat1","G1 X50.0 E10.0"]
["Print",50,50,1.2000000000000002,50,55,1.2000000000000002,0.5,0.2,0.5,1000,0,null,10,"10.6-2","CartesianRepFeat3 of LineFeat1","G1 Y55.0 E0.5"]
["Print",50,55,1.2000000000000002,150,55,1.2000000000000002,0.5,0.2,10,1000,0,null,10,"10.6-3","CartesianRepFeat3 of LineFeat2","G1 X150.0 E10.0"]
["Print",150,55,1.2000000000000002,150,60,1.2000000000000002,0.5,0.2,0.5,1000,0,null,10,"10.6-4","CartesianRepFeat3 of LineFeat3","G1 Y60.0 E0.5"]
["Print",150,60,1.2000000000000002,50,60,1.2000000000000002,0.5,0.2,10,1000,0,null,10,"10.6-5","CartesianRepFeat3 of LineFeat4","G1 X50.0 E10.0"]
["Print",50,60,1.2000000000000002,50,65,1.2000000000000002,0.5,0.2,0.5,1000,0,null,10,"10.6-6.1-2","CartesianRepFeat3 of CartesianRepFeat1 of LineFeat1","G1 Y65.0 E0.5"]
["Print",50,65,1.2000000000000002,150,65,1.2000000000000002,0.5,0.2,10,1000,0,null,10,"10.6-6.1-3","CartesianRepFeat3 of CartesianRepFeat1 of LineFeat2","G1 X150.0 E10.0"]
["Print",150,65,1.2000000000000002,150,70,1.2000000000000002,0.5,0.2,0.5,1000,0,null,10,"10.6-6.1-4","CartesianRepFeat3 of CartesianRepFeat1 of LineFeat3","G1 Y70.0 E0.5"]
["Print",150,70,1.2000000000000002,50,70,1.2000000000000002,0.5,0.2,10,1000,0,null,10,"10.6-6.1-5","CartesianRepFeat3 of CartesianRepFeat1 of LineFeat4","G1 X50.0 E10.0"]
["Print",50,70,1.2000000000000002,50,75,1.2000000000000002,0.5,0.2,0.5,1000,0,null,10,"10.6-6.2-2","CartesianRepFeat3 of CartesianRepFeat1 of LineFeat1","G1 Y75.0 E0.5"]
["Print",50,75,1.2000000000000002,150,75,1.2000000000000002,0.5,0.2,10,1000,0,null,10,"10.6-6.2-3","CartesianRepFeat3 of CartesianRepFeat1 of LineFeat2","G1 X150.0 E10.0"]
["Print",150,75,1.2000000000000002,150,80,1.2000000000000002,0.5,0.2,0.5,1000,0,null,10,"10.6-6.2-4","CartesianRepFeat3 of CartesianRepFeat1 of LineFeat3","G1 Y80.0 E0.5"]
["Print",150,80,1.2000000000000002,50,80,1.2000000000000002,0.5,0.2,10,1000,0,null,10,"10.6-6.2-5","CartesianRepFeat3 of CartesianRepFeat1 of LineFeat4","G1 X50.0 E10.0"]
["Print",50,80,1.2000000000000002,50,85,1.2000000000000002,0.5,0.2,0.5,1000,0,null,10,"10.6-6.3-2","CartesianRepFeat3 of CartesianRepFeat1 of LineFeat1","G1 Y85.0 E0.5"]
["Print",50,85,1.2000000000000002,150,85,1.2000000000000002,0.5,0.2,10,1000,0,null,10,"10.6-6.3-3","CartesianRepFeat3 of CartesianRepFeat1 of LineFeat2","G1 X150.0 E10.0"]
["Print",150,85,1.2000000000000002,150,90,1.2000000000000002,0.5,0.2,0.5,1000,0,null,10,"10.6-6.3-4","CartesianRepFeat3 of CartesianRepFeat1 of LineFeat3","G1 Y90.0 E0.5"]
["Print",150,90,1.2000000000000002,50,90,1.2000000000000002,0.5,0.2,10,1000,0,null,10,"10.6-6.3-5","CartesianRepFeat3 of CartesianRepFeat1 of LineFeat4","G1 X50.0 E10.0"]
["Print",50,90,1.2000000000000002,50,95,1.2000000000000002,0.5,0.2,0.5,1000,0,null,10,"10.6-6.4-2","CartesianRepFeat3 of CartesianRepFeat1 of LineFeat1","G1 Y95.0 E0.5"]
["Print",50,95,1.2000000000000002,150,95,1.2000000000000002,0.5,0.2,10,1000,0,null,10,"10.6-6.4-3","CartesianRepFeat3 of CartesianRepFeat1 of LineFeat2","G1 X150.0 E10.0"]
["Print",150,95,1.2000000000000002,150,100,1.2000000000000002,0.5,0.2,0.5,1000,0,null,10,"10.6-6.4-4","CartesianRepFeat3 of CartesianRepFeat1 of LineFeat3","G1 Y100.0 E0.5"]
["Print",150,100,1.2000000000000002,50,100,1.2000000000000002,0.5,0.2,10,1000,0,null,10,"10.6-6.4-5","CartesianRepFeat3 of CartesianRepFeat1 of LineFeat4","G1 X50.0 E10.0"]
["Print",50,100,1.2000000000000002,50,105,1.2000000000000002,0.5,0.2,0.5,1000,0,null,10,"10.6-6.5-2","CartesianRepFeat3 of CartesianRepFeat1 of LineFeat1","G1 Y105.0 E0.5"]
["Print",50,105,1.2000000000000002,150,105,1.2000000000000002,0.5,0.2,10,1000,0,null,10,"10.6-6.5-3","CartesianRepFeat3 of CartesianRepFeat1 of LineFeat2","G1 X150.0 E10.0"]
["Print",150,105,1.2000000000000002,150,110,1.2000000000000002,0.5,0.2,0.5,1000,0,null,10,"10.6-6.5-4","CartesianRepFeat3 of CartesianRepFeat1 of LineFeat3","G1 Y110.0 E0.5"]
["Print",150,110,1.2000000000000002,50,110,1.2000000000000002,0.5,0.2,10,1000,0,null,10,"10.6-6.5-5","CartesianRepFeat3 of CartesianRepFeat1 of LineFeat4","G1 X50.0 E10.0"]
["Print",50,110,1.2000000000000002,50,115,1.2000000000000002,0.5,0.2,0.5,1000,0,null,10,"10.6-6.6-2","CartesianRepFeat3 of CartesianRepFeat1 of LineFeat1","G1 Y115.0 E0.5"]
["Print",50,115,1.2000000000000002,150,115,1.2000000000000002,0.5,0.2,10,1000,0,null,10,"10.6-6.6-3","CartesianRepFeat3 of CartesianRepFeat1 of LineFeat2","G1 X150.0 E10.0"]
["Print",150,115,1.2000000000000002,150,120,1.2000000000000002,0.5,0.2,0.5,1000,0,null,10,"10.6-6.6-4","CartesianRepFeat3 of CartesianRepFeat1 of LineFeat3","G1 Y120.0 E0.5"]
["Print",150,120,1.2000000000000002,50,120,1.2000000000000002,0.5,0.2,10,1000,0,null,10,"10.6-6.6-5","CartesianRepFeat3 of CartesianRepFeat1 of LineFeat4","G1 X50.0 E10.0"]
["Print",50,120,1.2000000000000002,50,125,1.2000000000000002,0.5,0.2,0.5,1000,0,null,10,"10.6-6.7-2","CartesianRepFeat3 of CartesianRepFeat1 of LineFeat1","G1 Y125.0 E0.5"]
["Print",50,125,1.2000000000000002,150,125,1.2000000000000002,0.5,0.2,10,1000,0,null,10,"10.6-6.7-3","CartesianRepFeat3 of CartesianRepFeat1 of LineFeat2","G1 X150.0 E10.0"]
["Print",150,125,1.2000000000000002,150,130,1.2000000000000002,0.5,0.2,0.5,1000,0,null,10,"10.6-6.7-4","CartesianRepFeat3 of CartesianRepFeat1 of LineFeat3","G1 Y130.0 E0.5"]
["Print",150,130,1.2000000000000002,50,130,1.2000000000000002,0.5,0.2,10,1000,0,null,10,"10.6-6.7-5","CartesianRepFeat3 of CartesianRepFeat1 of LineFeat4","G1 X50.0 E10.0"]
["Print",50,130,1.2000000000000002,50,135,1.2000000000000002,0.5,0.2,0.5,1000,0,null,10,"10.6-6.8-2","CartesianRepFeat3 of CartesianRepFeat1 of LineFeat1","G1 Y135.0 E0.5"]
["Print",50,135,1.2000000000000002,150,135,1.2000000000000002,0.5,0.2,10,1000,0,null,10,"10.6-6.8-3","CartesianRepFeat3 of CartesianRepFeat1 of LineFeat2","G1 X150.0 E10.0"]
["Print",150,135,1.2000000000000002,150,140,1.2000000000000002,0.5,0.2,0.5,1000,0,null,10,"10.6-6.8-4","CartesianRepFeat3 of CartesianRepFeat1 of LineFeat3","G1 Y140.0 E0.5"]
["Print",150,140,1.2000000000000002,50,140,1.2000000000000002,0.5,0.2,10,1000,0,null,10,"10.6-6.8-5","CartesianRepFeat3 of CartesianRepFeat1 of LineFeat4","G1 X50.0 E10.0"]
["Print",50,140,1.2000000000000002,50,145,1.2000000000000002,0.5,0.2,0.5,1000,0,null,10,"10.6-7.1-2","CartesianRepFeat3 of CartesianRepFeat2 of LineFeat1","G1 Y145.0 E0.5"]
["Print",50,145,1.2000000000000002,150,145,1.2000000000000002,0.5,0.2,10,1000,0,null,10,"10.6-7.1-3","CartesianRepFeat3 of CartesianRepFeat2 of LineFeat2","G1 X150.0 E10.0"]
["Print",150,145,1.2000000000000002,150,150,1.2000000000000002,0.5,0.2,0.5,1000,0,null,10,"10.6-7.1-4","CartesianRepFeat3 of CartesianRepFeat2 of LineFeat3","G1 Y150.0 E0.5"]
["Travel",150,150,1.2000000000000002,150,150,1.3,0,0,null,9000,null,null,0,0,"Travel automatically added","G0 F9000 Z1.5"]
["Print",150,150,1.3,145,150,1.3,0.5,0.2,0.5,1000,0,null,10,"10.6-9-7.1-4-8.1","CartesianRepFeat3 of Postprocessed version of ReflectFeat1 of CartesianRepFeat2 of LineFeat3","G1 F1000 X145.0 E0.5"]
["Print",145,150,1.3,145,50,1.3,0.5,0.2,10,1000,0,null,10,"10.6-9-7.1-3-8.1","CartesianRepFeat3 of Postprocessed version of ReflectFeat1 of CartesianRepFeat2 of LineFeat2","G1 Y50.0 E10.0"]
["Print",145,50,1.3,140,50,1.3,0.5,0.2,0.5,1000,0,null,10,"10.6-9-7.1-2-8.1","CartesianRepFeat3 of Postprocessed version of ReflectFeat1 of CartesianRepFeat2 of LineFeat1","G1 X140.0 E0.5"]
["Print",140,50,1.3,140,150,1.3,0.5,0.2,10,1000,0,null,10,"10.6-9-6.8-5-8.1","CartesianRepFeat3 of Postprocessed version of ReflectFeat1 of CartesianRepFeat1 of LineFeat4","G1 Y150.0 E10.0"]
["Print",140,150,1.3,135,150,1.3,0.5,0.2,0.5,1000,0,null,10,"10.6-9-6.8-4-8.1","CartesianRepFeat3 of Postprocessed version of ReflectFeat1 of CartesianRepFeat1 of LineFeat3","G1 X135.0 E0.5"]
["Print",135,150,1.3,135,50,1.3,0.5,0.2,10,1000,0,null,10,"10.6-9-6.8-3-8.1","CartesianRepFeat3 of Postprocessed version of ReflectFeat1 of CartesianRepFeat1 of LineFeat2","G1 Y50.0 E10.0"]
["Print",135,50,1.3,130,50,1.3,0.5,0.2,0.5,1000,0,null,10,"10.6-9-6.8-2-8.1","CartesianRepFeat3 of Postprocessed version of ReflectFeat1 of CartesianRepFeat1 of LineFeat1","G1 X130.0 E0.5"]
["Print",130,50,1.3,130,150,1.3,0.5,0.2,10,1000,0,null,10,"10.6-9-6.7-5-8.1","CartesianRepFeat3 of Postprocessed version of ReflectFeat1 of CartesianRepFeat1 of LineFeat4","G1 Y150.0 E10.0"]
["Print",130,150,1.3,125,150,1.3,0.5,0.2,0.5,1000,0,null,10,"10.6-9-6.7-4-8.1","CartesianRepFeat3 of Postprocessed version of ReflectFeat1 of CartesianRepFeat1 of LineFeat3","G1 X125.0 E0.5"]
["Print",125,150,1.3,125,50,1.3,0.5,0.2,10,1000,0,null,10,"10.6-9-6.7-3-8.1","CartesianRepFeat3 of Postprocessed version of ReflectFeat1 of CartesianRepFeat1 of LineFeat2","G1 Y50.0 E10.0"]
["Print",125,50,1.3,120,50,1.3,0.5,0.2,0.5,1000,0,null,10,"10.6-9-6.7-2-8.1","CartesianRepFeat3 of Postprocessed version of ReflectFeat1 of CartesianRepFeat1 of LineFeat1","G1 X120.0 E0.5"]
["Print",120,50,1.3,120,150,1.3,0.5,0.2,10,1000,0,null,10,"10.6-9-6.6-5-8.1","CartesianRepFeat3 of Postprocessed version of ReflectFeat1 of CartesianRepFeat1 of LineFeat4","G1 Y150.0 E10.0"]
["Print",120,150,1.3,115,150,1.3,0.5,0.2,0.5,1000,0,null,10,"10.6-9-6.6-4-8.1","CartesianRepFeat3 of Postprocessed version of ReflectFeat1 of CartesianRepFeat1 of LineFeat3","G1 X115.0 E0.5"]
["Print",115,150,1.3,115,50,1.3,0.5,0.2,10,1000,0,null,10,"10.6-9-6.6-3-8.1","CartesianRepFeat3 of Postprocessed version of ReflectFeat1 of CartesianRepFeat1 of LineFeat2","G1 Y50.0 E10.0"]
["Print",115,50,1.3,110,50,1.3,0.5,0.2,0.5,1000,0,null,10,"10.6-9-6.6-2-8.1","CartesianRepFeat3 of Postprocessed version of ReflectFeat1 of CartesianRepFeat1 of LineFeat1","G1 X110.0 E0.5"]
["Print",110,50,1.3,110,150,1.3,0.5,0.2,10,1000,0,null,10,"10.6-9-6.5-5-8.1","CartesianRepFeat3 of Postprocessed version of ReflectFeat1 of CartesianRepFeat1 of LineFeat4","G1 Y150.0 E10.0"]
["Print",110,150,1.3,105,150,1.3,0.5,0.2,0.5,1000,0,null,10,"10.6-9-6.5-4-8.1","CartesianRepFeat3 of Postprocessed version of ReflectFeat1 of CartesianRepFeat1 of LineFeat3","G1 X105.0 E0.5"]
["Print",105,150,1.3,105,50,1.3,0.5,0.2,10,1000,0,null,10,"10.6-9-6.5-3-8.1","CartesianRepFeat3 of Postprocessed version of ReflectFeat1 of CartesianRepFeat1 of LineFeat2","G1 Y50.0 E10.0"]
["Print",105,50,1.3,100,50,1.3,0.5,0.2,0.5,1000,0,null,10,"10.6-9-6.5-2-8.1","CartesianRepFeat3 of Postprocessed version of ReflectFeat1 of CartesianRepFeat1 of LineFeat1","G1 X100.0 E0.5"]
["Print",100,50,1.3,100,150,1.3,0.5,0.2,10,1000,0,null,10,"10.6-9-6.4-5-8.1","CartesianRepFeat3 of Postprocessed version of ReflectFeat1 of CartesianRepFeat1 of LineFeat4","G1 Y150.0 E10.0"]
["Print",100,150,1.3,95,150,1.3,0.5,0.2,0.5,1000,0,null,10,"10.6-9-6.4-4-8.1","CartesianRepFeat3 of Postprocessed version of ReflectFeat1 of CartesianRepFeat1 of LineFeat3","G1 X95.0 E0.5"]
["Print",95,150,1.3,95,50,1.3,0.5,0.2,10,1000,0,null,10,"10.6-9-6.4-3-8.1","CartesianRepFeat3 of Postprocessed version of ReflectFeat1 of CartesianRepFeat1 of LineFeat2","G1 Y50.0 E10.0"]
["Print",95,50,1.3,90,50,1.3,0.5,0.2,0.5,1000,0,null,10,"10.6-9-6.4-2-8.1","CartesianRepFeat3 of Postprocessed version of ReflectFeat1 of CartesianRepFeat1 of LineFeat1","G1 X90.0 E0.5"]
["Print",90,50,1.3,90,150,1.3,0.5,0.2,10,1000,0,null,10,"10.6-9-6.3-5-8.1","CartesianRepFeat3 of Postprocessed version of ReflectFeat1 of CartesianRepFeat1 of LineFeat4","G1 Y150.0 E10.0"]
["Print",90,150,1.3,85,150,1.3,0.5,0.2,0.5,1000,0,null,10,"10.6-9-6.3-4-8.1","CartesianRepFeat3 of Postprocessed version of ReflectFeat1 of CartesianRepFeat1 of LineFeat3","G1 X85.0 E0.5"]
["Print",85,150,1.3,85,50,1.3,0.5,0.2,10,1000,0,null,10,"10.6-9-6.3-3-8.1","CartesianRepFeat3 of Postprocessed version of ReflectFeat1 of CartesianRepFeat1 of LineFeat2","G1 Y50.0 E10.0"]
["Print",85,50,1.3,80,50,1.3,0.5,0.2,0.5,1000,0,null,10,"10.6-9-6.3-2-8.1","CartesianRepFeat3 of Postprocessed version of ReflectFeat1 of CartesianRepFeat1 of LineFeat1","G1 X80.0 E0.5"]
["Print",80,50,1.3,80,150,1.3,0.5,0.2,10,1000,0,null,10,"10.6-9-6.2-5-8.1","CartesianRepFeat3 of Postprocessed version of ReflectFeat1 of CartesianRepFeat1 of LineFeat4","G1 Y150.0 E10.0"]
["Print",80,150,1.3,75,150,1.3,0.5,0.2,0.5,1000,0,null,10,"10.6-9-6.2-4-8.1","CartesianRepFeat3 of Postprocessed version of ReflectFeat1 of CartesianRepFeat1 of LineFeat3","G1 X75.0 E0.5"]
["Print",75,150,1.3,75,50,1.3,0.5,0.2,10,1000,0,null,10,"10.6-9-6.2-3-8.1","CartesianRepFeat3 of Postprocessed version of ReflectFeat1 of CartesianRepFeat1 of LineFeat2","G1 Y50.0 E10.0"]
["Print",75,50,1.3,70,50,1.3,0.5,0.2,0.5,1000,0,null,10,"10.6-9-6.2-2-8.1","CartesianRepFeat3 of Postprocessed version of ReflectFeat1 of CartesianRepFeat1 of LineFeat1","G1 X70.0 E0.5"]
["Print",70,50,1.3,70,150,1.3,0.5,0.2,10,1000,0,null,10,"10.6-9-6.1-5-8.1","CartesianRepFeat3 of Postprocessed version of ReflectFeat1 of CartesianRepFeat1 of LineFeat4","G1 Y150.0 E10.0"]
["Print",70,150,1.3,65,150,1.3,0.5,0.2,0.5,1000,0,null,10,"10.6-9-6.1-4-8.1","CartesianRepFeat3 of Postprocessed version of ReflectFeat1 of CartesianRepFeat1 of LineFeat3","G1 X65.0 E0.5"]
["Print",65,150,1.3,65,50,1.3,0.5,0.2,10,1000,0,null,10,"10.6-9-6.1-3-8.1","CartesianRepFeat3 of Postprocessed version of ReflectFeat1 of CartesianRepFeat1 of LineFeat2","G1 Y50.0 E10.0"]
["Print",65,50,1.3,60,50,1.3,0.5,0.2,0.5,1000,0,null,10,"10.6-9-6.1-2-8.1","CartesianRepFeat3 of Postprocessed version of ReflectFeat1 of CartesianRepFeat1 of LineFeat1","G1 X60.0 E0.5"]
["Print",60,50,1.3,60,150,1.3,0.5,0.2,10,1000,0,null,10,"10.6-9-5-8.1","CartesianRepFeat3 of Postprocessed version of ReflectFeat1 of LineFeat4","G1 Y150.0 E10.0"]
["Print",60,150,1.3,55,150,1.3,0.5,0.2,0.5,1000,0,null,10,"10.6-9-4-8.1","CartesianRepFeat3 of Postprocessed version of ReflectFeat1 of LineFeat3","G1 X55.0 E0.5"]
["Print",55,150,1.3,55,50,1.3,0.5,0.2,10,1000,0,null,10,"10.6-9-3-8.1","CartesianRepFeat3 of Postprocessed version of ReflectFeat1 of LineFeat2","G1 Y50.0 E10.0"]
["Print",55,50,1.3,50,50,1.3,0.5,0.2,0.5,1000,0,null,10,"10.6-9-2-8.1","CartesianRepFeat3 of Postprocessed version of ReflectFeat1 of LineFeat1","G1 X50.0 E0.5"]
["Travel",50,50,1.3,50,50,1.4000000000000001,0,0,null,9000,null,null,0,0,"Travel automatically added","G0 F9000 Z1.6"]
["Print",50,50,1.4000000000000001,50,150,1.4000000000000001,0.5,0.2,10,1000,0,null,10,"10.7-1","CartesianRepFeat3 of RectangleFeat1","G1 F1000 Y150.0 E10.0"]
["Print",50,150,1.4000000000000001,150,150,1.4000000000000001,0.5,0.2,10,1000,0,null,10,"10.7-1","CartesianRepFeat3 of RectangleFeat1","G1 X150.0 E10.0"]
["Print",150,150,1.4000000000000001,150,50,1.4000000000000001,0.5,0.2,10,1000,0,null,10,"10.7-1","CartesianRepFeat3 of RectangleFeat1","G1 Y50.0 E10.0"]
["Print",150,50,1.4000000000000001,50,50,1.4000000000000001,0.5,0.2,10,1000,0,null,10,"10.7-1","CartesianRepFeat3 of RectangleFeat1","G1 X50.0 E10.0"]
["Print",50,50,1.4000000000000001,50,55,1.4000000000000001,0.5,0.2,0.5,1000,0,null,10,"10.7-2","CartesianRepFeat3 of LineFeat1","G1 Y55.0 E0.5"]
["Print",50,55,1.4000000000000001,150,55,1.4000000000000001,0.5,0.2,10,1000,0,null,10,"10.7-3","CartesianRepFeat3 of LineFeat2","G1 X150.0 E10.0"]
["Print",150,55,1.4000000000000001,150,60,1.4000000000000001,0.5,0.2,0.5,1000,0,null,10,"10.7-4","CartesianRepFeat3 of LineFeat3","G1 Y60.0 E0.5"]
["Print",150,60,1.4000000000000001,50,60,1.4000000000000001,0.5,0.2,10,1000,0,null,10,"10.7-5","CartesianRepFeat3 of LineFeat4","G1 X50.0 E10.0"]
["Print",50,60,1.4000000000000001,50,65,1.4000000000000001,0.5,0.2,0.5,1000,0,null,10,"10.7-6.1-2","CartesianRepFeat3 of CartesianRepFeat1 of LineFeat1","G1 Y65.0 E0.5"]
["Print",50,65,1.4000000000000001,150,65,1.4000000000000001,0.5,0.2,10,1000,0,null,10,"10.7-6.1-3","CartesianRepFeat3 of CartesianRepFeat1 of LineFeat2","G1 X150.0 E10.0"]
["Print",150,65,1.4000000000000001,150,70,1.4000000000000001,0.5,0.2,0.5,1000,0,null,10,"10.7-6.1-4","CartesianRepFeat3 of CartesianRepFeat1 of LineFeat3","G1 Y70.0 E0.5"]
["Print",150,70,1.4000000000000001,50,70,1.4000000000000001,0.5,0.2,10,1000,0,null,10,"10.7-6.1-5","CartesianRepFeat3 of CartesianRepFeat1 of LineFeat4","G1 X50.0 E10.0"]
["Print",50,70,1.4000000000000001,50,75,1.4000000000000001,0.5,0.2,0.5,1000,0,null,10,"10.7-6.2-2","CartesianRepFeat3 of CartesianRepFeat1 of LineFeat1","G1 Y75.0 E0.5"]
["Print",50,75,1.4000000000000001,150,75,1.4000000000000001,0.5,0.2,10,1000,0,null,10,"10.7-6.2-3","CartesianRepFeat3 of CartesianRepFeat1 of LineFeat2","G1 X150.0 E10.0"]
["Print",150,75,1.4000000000000001,150,80,1.4000000000000001,0.5,0.2,0.5,1000,0,null,10,"10.7-6.2-4","CartesianRepFeat3 of CartesianRepFeat1 of LineFeat3","G1 Y80.0 E0.5"]
["Print",150,80,1.4000000000000001,50,80,1.4000000000000001,0.5,0.2,10,1000,0,null,10,"10.7-6.2-5","CartesianRepFeat3 of CartesianRepFeat1 of LineFeat4","G1 X50.0 E10.0"]
["Print",50,80,1.4000000000000001,50,85,1.4000000000000001,0.5,0.2,0.5,1000,0,null,10,"10.7-6.3-2","CartesianRepFeat3 of CartesianRepFeat1 of LineFeat1","G1 Y85.0 E0.5"]
["Print",50,85,1.4000000000000001,150,85,1.4000000000000001,0.5,0.2,10,1000,0,null,10,"10.7-6.3-3","CartesianRepFeat3 of CartesianRepFeat1 of LineFeat2","G1 X150.0 E10.0"]
["Print",150,85,1.4000000000000001,150,90,1.4000000000000001,0.5,0.2,0.5,1000,0,null,10,"10.7-6.3-4","CartesianRepFeat3 of CartesianRepFeat1 of LineFeat3","G1 Y90.0 E0.5"]
["Print",150,90,1.4000000000000001,50,90,1.4000000000000001,0.5,0.2,10,1000,0,null,10,"10.7-6.3-5","CartesianRepFeat3 of CartesianRepFeat1 of LineFeat4","G1 X50.0 E10.0"]
["Print",50,90,1.4000000000000001,50,95,1.4000000000000001,0.5,0.2,0.5,1000,0,null,10,"10.7-6.4-2","CartesianRepFeat3 of CartesianRepFeat1 of LineFeat1","G1 Y95.0 E0.5"]
["Print",50,95,1.4000000000000001,150,95,1.4000000000000001,0.5,0.2,10,1000,0,null,10,"10.7-6.4-3","CartesianRepFeat3 of CartesianRepFeat1 of LineFeat2","G1 X150.0 E10.0"]
["Print",150,95,1.4000000000000001,150,100,1.4000000000000001,0.5,0.2,0.5,1000,0,null,10,"10.7-6.4-4","CartesianRepFeat3 of CartesianRepFeat1 of LineFeat3","G1 Y100.0 E0.5"]
["Print",150,100,1.4000000000000001,50,100,1.4000000000000001,0.5,0.2,10,1000,0,null,10,"10.7-6.4-5","CartesianRepFeat3 of CartesianRepFeat1 of LineFeat4","G1 X50.0 E10.0"]
["Print",50,100,1.4000000000000001,50,105,1.4000000000000001,0.5,0.2,0.5,1000,0,null,10,"10.7-6.5-2","CartesianRepFeat3 of CartesianRepFeat1 of LineFeat1","G1 Y105.0 E0.5"]
["Print",50,105,1.4000000000000001,150,105,1.4000000000000001,0.5,0.2,10,1000,0,null,10,"10.7-6.5-3","CartesianRepFeat3 of CartesianRepFeat1 of LineFeat2","G1 X150.0 E10.0"]
["Print",150,105,1.4000000000000001,150,110,1.4000000000000001,0.5,0.2,0.5,1000,0,null,10,"10.7-6.5-4","CartesianRepFeat3 of CartesianRepFeat1 of LineFeat3","G1 Y110.0 E0.5"]
["Print",150,110,1.4000000000000001,50,110,1.4000000000000001,0.5,0.2,10,1000,0,null,10,"10.7-6.5-5","CartesianRepFeat3 of CartesianRepFeat1 of LineFeat4","G1 X50.0 E10.0"]
["Print",50,110,1.4000000000000001,50,115,1.4000000000000001,0.5,0.2,0.5,1000,0,null,10,"10.7-6.6-2","CartesianRepFeat3 of CartesianRepFeat1 of LineFeat1","G1 Y115.0 E0.5"]
["Print",50,115,1.4000000000000001,150,115,1.4000000000000001,0.5,0.2,10,1000,0,null,10,"10.7-6.6-3","CartesianRepFeat3 of CartesianRepFeat1 of LineFeat2","G1 X150.0 E10.0"]
["Print",150,115,1.4000000000000001,150,120,1.4000000000000001,0.5,0.2,0.5,1000,0,null,10,"10.7-6.6-4","CartesianRepFeat3 of CartesianRepFeat1 of LineFeat3","G1 Y120.0 E0.5"]
["Print",150,120,1.4000000000000001,50,120,1.4000000000000001,0.5,0.2,10,1000,0,null,10,"10.7-6.6-5","CartesianRepFeat3 of CartesianRepFeat1 of LineFeat4","G1 X50.0 E10.0"]
["Print",50,120,1.4000000000000001,50,125,1.4000000000000001,0.5,0.2,0.5,1000,0,null,10,"10.7-6.7-2","CartesianRepFeat3 of CartesianRepFeat1 of LineFeat1","G1 Y125.0 E0.5"]
["Print",50,125,1.4000000000000001,150,125,1.4000000000000001,0.5,0.2,10,1000,0,null,10,"10.7-6.7-3","CartesianRepFeat3 of CartesianRepFeat1 of LineFeat2","G1 X150.0 E10.0"]
["Print",150,125,1.4000000000000001,150,130,1.4000000000000001,0.5,0.2,0.5,1000,0,null,10,"10.7-6.7-4","CartesianRepFeat3 of CartesianRepFeat1 of LineFeat3","G1 Y130.0 E0.5"]
["Print",150,130,1.4000000000000001,50,130,1.4000000000000001,0.5,0.2,10,1000,0,null,10,"10.7-6.7-5","CartesianRepFeat3 of CartesianRepFeat1 of LineFeat4","G1 X50.0 E10.0"]
["Print",50,130,1.4000000000000001,50,135,1.4000000000000001,0.5,0.2,0.5,1000,0,null,10,"10.7-6.8-2","CartesianRepFeat3 of CartesianRepFeat1 of LineFeat1","G1 Y135.0 E0.5"]
["Print",50,135,1.4000000000000001,150,135,1.4000000000000001,0.5,0.2,10,1000,0,null,10,"10.7-6.8-3","CartesianRepFeat3 of CartesianRepFeat1 of LineFeat2","G1 X150.0 E10.0"]
["Print",150,135,1.4000000000000001,150,140,1.4000000000000001,0.5,0.2,0.5,1000,0,null,10,"10.7-6.8-4","CartesianRepFeat3 of CartesianRepFeat1 of LineFeat3","G1 Y140.0 E0.5"]
["Print",150,140,1.4000000000000001,50,140,1.4000000000000001,0.5,0.2,10,1000,0,null,10,"10.7-6.8-5","CartesianRepFeat3 of CartesianRepFeat1 of LineFeat4","G1 X50.0 E10.0"]
["Print",50,140,1.4000000000000001,50,145,1.4000000000000001,0.5,0.2,0.5,1000,0,null,10,"10.7-7.1-2","CartesianRepFeat3 of CartesianRepFeat2 of LineFeat1","G1 Y145.0 E0.5"]
["Print",50,145,1.4000000000000001,150,145,1.4000000000000001,0.5,0.2,10,1000,0,null,10,"10.7-7.1-3","CartesianRepFeat3 of CartesianRepFeat2 of LineFeat2","G1 X150.0 E10.0"]
["Print",150,145,1.4000000000000001,150,150,1.4000000000000001,0.5,0.2,0.5,1000,0,null,10,"10.7-7.1-4","CartesianRepFeat3 of CartesianRepFeat2 of LineFeat3","G1 Y150.0 E0.5"]
["Travel",150,150,1.4000000000000001,150,150,1.5,0,0,null,9000,null,null,0,0,"Travel automatically added","G0 F9000 Z1.7"]
["Print",150,150,1.5,145,150,1.5,0.5,0.2,0.5,1000,0,null,10,"10.7-9-7.1-4-8.1","CartesianRepFeat3 of Postprocessed version of ReflectFeat1 of CartesianRepFeat2 of LineFeat3","G1 F1000 X145.0 E0.5"]
["Print",145,150,1.5,145,50,1.5,0.5,0.2,10,1000,0,null,10,"10.7-9-7.1-3-8.1","CartesianRepFeat3 of Postprocessed version of ReflectFeat1 of CartesianRepFeat2 of LineFeat2","G1 Y50.0 E10.0"]
["Print",145,50,1.5,140,50,1.5,0.5,0.2,0.5,1000,0,null,10,"10.7-9-7.1-2-8.1","CartesianRepFeat3 of Postprocessed version of ReflectFeat1 of CartesianRepFeat2 of LineFeat1","G1 X140.0 E0.5"]
["Print",140,50,1.5,140,150,1.5,0.5,0.2,10,1000,0,null,10,"10.7-9-6.8-5-8.1","CartesianRepFeat3 of Postprocessed version of ReflectFeat1 of CartesianRepFeat1 of LineFeat4","G1 Y150.0 E10.0"]
["Print",140,150,1.5,135,150,1.5,0.5,0.2,0.5,1000,0,null,10,"10.7-9-6.8-4-8.1","CartesianRepFeat3 of Postprocessed version of ReflectFeat1 of CartesianRepFeat1 of LineFeat3","G1 X135.0 E0.5"]
["Print",135,150,1.5,135,50,1.5,0.5,0.2,10,1000,0,null,10,"10.7-9-6.8-3-8.1","CartesianRepFeat3 of Postprocessed version of ReflectFeat1 of CartesianRepFeat1 of LineFeat2","G1 Y50.0 E10.0"]
["Print",135,50,1.5,130,50,1.5,0.5,0.2,0.5,1000,0,null,10,"10.7-9-6.8-2-8.1","CartesianRepFeat3 of Postprocessed version of ReflectFeat1 of CartesianRepFeat1 of LineFeat1","G1 X130.0 E0.5"]
["Print",130,50,1.5,130,150,1.5,0.5,0.2,10,1000,0,null,10,"10.7-9-6.7-5-8.1","CartesianRepFeat3 of Postprocessed version of ReflectFeat1 of CartesianRepFeat1 of LineFeat4","G1 Y150.0 E10.0"]
["Print",130,150,1.5,125,150,1.5,0.5,0.2,0.5,1000,0,null,10,"10.7-9-6.7-4-8.1","CartesianRepFeat3 of Postprocessed version of ReflectFeat1 of CartesianRepFeat1 of LineFeat3","G1 X125.0 E0.5"]
["Print",125,150,1.5,125,50,1.5,0.5,0.2,10,1000,0,null,10,"10.7-9-6.7-3-8.1","CartesianRepFeat3 of Postprocessed version of ReflectFeat1 of CartesianRepFeat1 of LineFeat2","G1 Y50.0 E10.0"]
["Print",125,50,1.5,120,50,1.5,0.5,0.2,0.5,1000,0,null,10,"10.7-9-6.7-2-8.1","CartesianRepFeat3 of Postprocessed version of ReflectFeat1 of CartesianRepFeat1 of LineFeat1","G1 X120.0 E0.5"]
["Print",120,50,1.5,120,150,1.5,0.5,0.2,10,1000,0,null,10,"10.7-9-6.6-5-8.1","CartesianRepFeat3 of Postprocessed version of ReflectFeat1 of CartesianRepFeat1 of LineFeat4","G1 Y150.0 E10.0"]
["Print",120,150,1.5,115,150,1.5,0.5,0.2,0.5,1000,0,null,10,"10.7-9-6.6-4-8.1","CartesianRepFeat3 of Postprocessed version of ReflectFeat1 of CartesianRepFeat1 of LineFeat3","G1 X115.0 E0.5"]
["Print",115,150,1.5,115,50,1.5,0.5,0.2,10,1000,0,null,10,"10.7-9-6.6-3-8.1","CartesianRepFeat3 of Postprocessed version of ReflectFeat1 of CartesianRepFeat1 of LineFeat2","G1 Y50.0 E10.0"]
["Print",115,50,1.5,110,50,1.5,0.5,0.2,0.5,1000,0,null,10,"10.7-9-6.6-2-8.1","CartesianRepFeat3 of Postprocessed version of ReflectFeat1 of CartesianRepFeat1 of LineFeat1","G1 X110.0 E0.5"]
["Print",110,50,1.5,110,150,1.5,0.5,0.2,10,1000,0,null,10,"10.7-9-6.5-5-8.1","CartesianRepFeat3 of Postprocessed version of ReflectFeat1 of CartesianRepFeat1 of LineFeat4","G1 Y150.0 E10.0"]
["Print",110,150,1.5,105,150,1.5,0.5,0.2,0.5,1000,0,null,10,"10.7-9-6.5-4-8.1","CartesianRepFeat3 of Postprocessed version of ReflectFeat1 of CartesianRepFeat1 of LineFeat3","G1 X105.0 E0.5"]
["Print",105,150,1.5,105,50,1.5,0.5,0.2,10,1000,0,null,10,"10.7-9-6.5-3-8.1","CartesianRepFeat3 of Postprocessed version of ReflectFeat1 of CartesianRepFeat1 of LineFeat2","G1 Y50.0 E10.0"]
["Print",105,50,1.5,100,50,1.5,0.5,0.2,0.5,1000,0,null,10,"10.7-9-6.5-2-8.1","CartesianRepFeat3 of Postprocessed version of ReflectFeat1 of CartesianRepFeat1 of LineFeat1","G1 X100.0 E0.5"]
["Print",100,50,1.5,100,150,1.5,0.5,0.2,10,1000,0,null,10,"10.7-9-6.4-5-8.1","CartesianRepFeat3 of Postprocessed version of ReflectFeat1 of CartesianRepFeat1 of LineFeat4","G1 Y150.0 E10.0"]
["Print",100,150,1.5,95,150,1.5,0.5,0.2,0.5,1000,0,null,10,"10.7-9-6.4-4-8.1","CartesianRepFeat3 of Postprocessed version of ReflectFeat1 of CartesianRepFeat1 of LineFeat3","G1 X95.0 E0.5"]
["Print",95,150,1.5,95,50,1.5,0.5,0.2,10,1000,0,null,10,"10.7-9-6.4-3-8.1","CartesianRepFeat3 of Postprocessed version of ReflectFeat1 of CartesianRepFeat1 of LineFeat2","G1 Y50.0 E10.0"]
["Print",95,50,1.5,90,50,1.5,0.5,0.2,0.5,1000,0,null,10,"10.7-9-6.4-2-8.1","CartesianRepFeat3 of Postprocessed version of ReflectFeat1 of CartesianRepFeat1 of LineFeat1","G1 X90.0 E0.5"]
["Print",90,50,1.5,90,150,1.5,0.5,0.2,10,1000,0,null,10,"10.7-9-6.3-5-8.1","CartesianRepFeat3 of Postprocessed version of ReflectFeat1 of CartesianRepFeat1 of LineFeat4","G1 Y150.0 E10.0"]
["Print",90,150,1.5,85,150,1.5,0.5,0.2,0.5,1000,0,null,10,"10.7-9-6.3-4-8.1","CartesianRepFeat3 of Postprocessed version of ReflectFeat1 of CartesianRepFeat1 of LineFeat3","G1 X85.0 E0.5"]
["Print",85,150,1.5,85,50,1.5,0.5,0.2,10,1000,0,null,10,"10.7-9-6.3-3-8.1","CartesianRepFeat3 of Postprocessed version of ReflectFeat1 of CartesianRepFeat1 of LineFeat2","G1 Y50.0 E10.0"]
["Print",85,50,1.5,80,50,1.5,0.5,0.2,0.5,1000,0,null,10,"10.7-9-6.3-2-8.1","CartesianRepFeat3 of Postprocessed version of ReflectFeat1 of CartesianRepFeat1 of LineFeat1","G1 X80.0 E0.5"]
["Print",80,50,1.5,80,150,1.5,0.5,0.2,10,1000,0,null,10,"10.7-9-6.2-5-8.1","CartesianRepFeat3 of Postprocessed version of ReflectFeat1 of CartesianRepFeat1 of LineFeat4","G1 Y150.0 E10.0"]
["Print",80,150,1.5,75,150,1.5,0.5,0.2,0.5,1000,0,null,10,"10.7-9-6.2-4-8.1","CartesianRepFeat3 of Postprocessed version of ReflectFeat1 of CartesianRepFeat1 of LineFeat3","G1 X75.0 E0.5"]
["Print",75,150,1.5,75,50,1.5,0.5,0.2,10,1000,0,null,10,"10.7-9-6.2-3-8.1","CartesianRepFeat3 of Postprocessed version of ReflectFeat1 of CartesianRepFeat1 of LineFeat2","G1 Y50.0 E10.0"]
["Print",75,50,1.5,70,50,1.5,0.5,0.2,0.5,1000,0,null,10,"10.7-9-6.2-2-8.1","CartesianRepFeat3 of Postprocessed version of ReflectFeat1 of CartesianRepFeat1 of LineFeat1","G1 X70.0 E0.5"]
["Print",70,50,1.5,70,150,1.5,0.5,0.2,10,1000,0,null,10,"10.7-9-6.1-5-8.1","CartesianRepFeat3 of Postprocessed version of ReflectFeat1 of CartesianRepFeat1 of LineFeat4","G1 Y150.0 E10.0"]
["Print",70,150,1.5,65,150,1.5,0.5,0.2,0.5,1000,0,null,10,"10.7-9-6.1-4-8.1","CartesianRepFeat3 of Postprocessed version of ReflectFeat1 of CartesianRepFeat1 of LineFeat3","G1 X65.0 E0.5"]
["Print",65,150,1.5,65,50,1.5,0.5,0.2,10,1000,0,null,10,"10.7-9-6.1-3-8.1","CartesianRepFeat3 of Postprocessed version of ReflectFeat1 of CartesianRepFeat1 of LineFeat2","G1 Y50.0 E10.0"]
["Print",65,50,1.5,60,50,1.5,0.5,0.2,0.5,1000,0,null,10,"10.7-9-6.1-2-8.1","CartesianRepFeat3 of Postprocessed version of ReflectFeat1 of CartesianRepFeat1 of LineFeat1","G1 X60.0 E0.5"]
["Print",60,50,1.5,60,150,1.5,0.5,0.2,10,1000,0,null,10,"10.7-9-5-8.1","CartesianRepFeat3 of Postprocessed version of ReflectFeat1 of LineFeat4","G1 Y150.0 E10.0"]
["Print",60,150,1.5,55,150,1.5,0.5,0.2,0.5,1000,0,null,10,"10.7-9-4-8.1","CartesianRepFeat3 of Postprocessed version of ReflectFeat1 of LineFeat3","G1 X55.0 E0.5"]
["Print",55,150,1.5,55,50,1.5,0.5,0.2,10,1000,0,null,10,"10.7-9-3-8.1","CartesianRepFeat3 of Postprocessed version of ReflectFeat1 of LineFeat2","G1 Y50.0 E10.0"]
["Print",55,50,1.5,50,50,1.5,0.5,0.2,0.5,1000,0,null,10,"10.7-9-2-8.1","CartesianRepFeat3 of Postprocessed version of ReflectFeat1 of LineFeat1","G1 X50.0 E0.5"]
["Travel",50,50,1.5,50,50,1.6,0,0,null,9000,null,null,0,0,"Travel automatically added","G0 F9000 Z1.8"]
["Print",50,50,1.6,50,150,1.6,0.5,0.2,10,1000,0,null,10,"10.8-1","CartesianRepFeat3 of RectangleFeat1","G1 F1000 Y150.0 E10.0"]
["Print",50,150,1.6,150,150,1.6,0.5,0.2,10,1000,0,null,10,"10.8-1","CartesianRepFeat3 of RectangleFeat1","G1 X150.0 E10.0"]
["Print",150,150,1.6,150,50,1.6,0.5,0.2,10,1000,0,null,10,"10.8-1","CartesianRepFeat3 of RectangleFeat1","G1 Y50.0 E10.0"]
["Print",150,50,1.6,50,50,1.6,0.5,0.2,10,1000,0,null,10,"10.8-1","CartesianRepFeat3 of RectangleFeat1","G1 X50.0 E10.0"]
["Print",50,50,1.6,50,55,1.6,0.5,0.2,0.5,1000,0,null,10,"10.8-2","CartesianRepFeat3 of LineFeat1","G1 Y55.0 E0.5"]
["Print",50,55,1.6,150,55,1.6,0.5,0.2,10,1000,0,null,10,"10.8-3","CartesianRepFeat3 of LineFeat2","G1 X150.0 E10.0"]
["Print",150,55,1.6,150,60,1.6,0.5,0.2,0.5,1000,0,null,10,"10.8-4","CartesianRepFeat3 of LineFeat3","G1 Y60.0 E0.5"]
["Print",150,60,1.6,50,60,1.6,0.5,0.2,10,1000,0,null,10,"10.8-5","CartesianRepFeat3 of LineFeat4","G1 X50.0 E10.0"]
["Print",50,60,1.6,50,65,1.6,0.5,0.2,0.5,1000,0,null,10,"10.8-6.1-2","CartesianRepFeat3 of CartesianRepFeat1 of LineFeat1","G1 Y65.0 E0.5"]
["Print",50,65,1.6,150,65,1.6,0.5,0.2,10,1000,0,null,10,"10.8-6.1-3","CartesianRepFeat3 of CartesianRepFeat1 of LineFeat2","G1 X150.0 E10.0"]
["Print",150,65,1.6,150,70,1.6,0.5,0.2,0.5,1000,0,null,10,"10.8-6.1-4","CartesianRepFeat3 of CartesianRepFeat1 of LineFeat3","G1 Y70.0 E0.5"]
["Print",150,70,1.6,50,70,1.6,0.5,0.2,10,1000,0,null,10,"10.8-6.1-5","CartesianRepFeat3 of CartesianRepFeat1 of LineFeat4","G1 X50.0 E10.0"]
["Print",50,70,1.6,50,75,1.6,0.5,0.2,0.5,1000,0,null,10,"10.8-6.2-2","CartesianRepFeat3 of CartesianRepFeat1 of LineFeat1","G1 Y75.0 E0.5"]
["Print",50,75,1.6,150,75,1.6,0.5,0.2,10,1000,0,null,10,"10.8-6.2-3","CartesianRepFeat3 of CartesianRepFeat1 of LineFeat2","G1 X150.0 E10.0"]
["Print",150,75,1.6,150,80,1.6,0.5,0.2,0.5,1000,0,null,10,"10.8-6.2-4","CartesianRepFeat3 of CartesianRepFeat1 of LineFeat3","G1 Y80.0 E0.5"]
["Print",150,80,1.6,50,80,1.6,0.5,0.2,10,1000,0,null,10,"10.8-6.2-5","CartesianRepFeat3 of CartesianRepFeat1 of LineFeat4","G1 X50.0 E10.0"]
["Print",50,80,1.6,50,85,1.6,0.5,0.2,0.5,1000,0,null,10,"10.8-6.3-2","CartesianRepFeat3 of CartesianRepFeat1 of LineFeat1","G1 Y85.0 E0.5"]
["Print",50,85,1.6,150,85,1.6,0.5,0.2,10,1000,0,null,10,"10.8-6.3-3","CartesianRepFeat3 of CartesianRepFeat1 of LineFeat2","G1 X150.0 E10.0"]
["Print",150,85,1.6,150,90,1.6,0.5,0.2,0.5,1000,0,null,10,"10.8-6.3-4","CartesianRepFeat3 of CartesianRepFeat1 of LineFeat3","G1 Y90.0 E0.5"]
["Print",150,90,1.6,50,90,1.6,0.5,0.2,10,1000,0,null,10,"10.8-6.3-5","CartesianRepFeat3 of CartesianRepFeat1 of LineFeat4","G1 X50.0 E10.0"]
["Print",50,90,1.6,50,95,1.6,0.5,0.2,0.5,1000,0,null,10,"10.8-6.4-2","CartesianRepFeat3 of CartesianRepFeat1 of LineFeat1","G1 Y95.0 E0.5"]
["Print",50,95,1.6,150,95,1.6,0.5,0.2,10,1000,0,null,10,"10.8-6.4-3","CartesianRepFeat3 of CartesianRepFeat1 of LineFeat2","G1 X150.0 E10.0"]
["Print",150,95,1.6,150,100,1.6,0.5,0.2,0.5,1000,0,null,10,"10.8-6.4-4","CartesianRepFeat3 of CartesianRepFeat1 of LineFeat3","G1 Y100.0 E0.5"]
["Print",150,100,1.6,50,100,1.6,0.5,0.2,10,1000,0,null,10,"10.8-6.4-5","CartesianRepFeat3 of CartesianRepFeat1 of LineFeat4","G1 X50.0 E10.0"]
["Print",50,100,1.6,50,105,1.6,0.5,0.2,0.5,1000,0,null,10,"10.8-6.5-2","CartesianRepFeat3 of CartesianRepFeat1 of LineFeat1","G1 Y105.0 E0.5"]
["Print",50,105,1.6,150,105,1.6,0.5,0.2,10,1000,0,null,10,"10.8-6.5-3","CartesianRepFeat3 of CartesianRepFeat1 of LineFeat2","G1 X150.0 E10.0"]
["Print",150,105,1.6,150,110,1.6,0.5,0.2,0.5,1000,0,null,10,"10.8-6.5-4","CartesianRepFeat3 of CartesianRepFeat1 of LineFeat3","G1 Y110.0 E0.5"]
["Print",150,110,1.6,50,110,1.6,0.5,0.2,10,1000,0,null,10,"10.8-6.5-5","CartesianRepFeat3 of CartesianRepFeat1 of LineFeat4","G1 X50.0 E10.0"]
["Print",50,110,1.6,50,115,1.6,0.5,0.2,0.5,1000,0,null,10,"10.8-6.6-2","CartesianRepFeat3 of CartesianRepFeat1 of LineFeat1","G1 Y115.0 E0.5"]
["Print",50,115,1.6,150,115,1.6,0.5,0.2,10,1000,0,null,10,"10.8-6.6-3","CartesianRepFeat3 of CartesianRepFeat1 of LineFeat2","G1 X150.0 E10.0"]
["Print",150,115,1.6,150,120,1.6,0.5,0.2,0.5,1000,0,null,10,"10.8-6.6-4","CartesianRepFeat3 of CartesianRepFeat1 of LineFeat3","G1 Y120.0 E0.5"]
["Print",150,120,1.6,50,120,1.6,0.5,0.2,10,1000,0,null,10,"10.8-6.6-5","CartesianRepFeat3 of CartesianRepFeat1 of LineFeat4","G1 X50.0 E10.0"]
["Print",50,120,1.6,50,125,1.6,0.5,0.2,0.5,1000,0,null,10,"10.8-6.7-2","CartesianRepFeat3 of CartesianRepFeat1 of LineFeat1","G1 Y125.0 E0.5"]
["Print",50,125,1.6,150,125,1.6,0.5,0.2,10,1000,0,null,10,"10.8-6.7-3","CartesianRepFeat3 of CartesianRepFeat1 of LineFeat2","G1 X150.0 E10.0"]
["Print",150,125,1.6,150,130,1.6,0.5,0.2,0.5,1000,0,null,10,"10.8-6.7-4","CartesianRepFeat3 of CartesianRepFeat1 of LineFeat3","G1 Y130.0 E0.5"]
["Print",150,130,1.6,50,130,1.6,0.5,0.2,10,1000,0,null,10,"10.8-6.7-5","CartesianRepFeat3 of CartesianRepFeat1 of LineFeat4","G1 X50.0 E10.0"]
["Print",50,130,1.6,50,135,1.6,0.5,0.2,0.5,1000,0,null,10,"10.8-6.8-2","CartesianRepFeat3 of CartesianRepFeat1 of LineFeat1","G1 Y135.0 E0.5"]
["Print",50,135,1.6,150,135,1.6,0.5,0.2,10,1000,0,null,10,"10.8-6.8-3","CartesianRepFeat3 of CartesianRepFeat1 of LineFeat2","G1 X150.0 E10.0"]
["Print",150,135,1.6,150,140,1.6,0.5,0.2,0.5,1000,0,null,10,"10.8-6.8-4","CartesianRepFeat3 of CartesianRepFeat1 of LineFeat3","G1 Y140.0 E0.5"]
["Print",150,140,1.6,50,140,1.6,0.5,0.2,10,1000,0,null,10,"10.8-6.8-5","CartesianRepFeat3 of CartesianRepFeat1 of LineFeat4","G1 X50.0 E10.0"]
["Print",50,140,1.6,50,145,1.6,0.5,0.2,0.5,1000,0,null,10,"10.8-7.1-2","CartesianRepFeat3 of CartesianRepFeat2 of LineFeat1","G1 Y145.0 E0.5"]
["Print",50,145,1.6,150,145,1.6,0.5,0.2,10,1000,0,null,10,"10.8-7.1-3","CartesianRepFeat3 of CartesianRepFeat2 of LineFeat2","G1 X150.0 E10.0"]
["Print",150,145,1.6,150,150,1.6,0.5,0.2,0.5,1000,0,null,10,"10.8-7.1-4","CartesianRepFeat3 of CartesianRepFeat2 of LineFeat3","G1 Y150.0 E0.5"]
["Travel",150,150,1.6,150,150,1.7000000000000002,0,0,null,9000,null,null,0,0,"Travel automatically added","G0 F9000 Z1.9"]
["Print",150,150,1.7000000000000002,145,150,1.7000000000000002,0.5,0.2,0.5,1000,0,null,10,"10.8-9-7.1-4-8.1","CartesianRepFeat3 of Postprocessed version of ReflectFeat1 of CartesianRepFeat2 of LineFeat3","G1 F1000 X145.0 E0.5"]
["Print",145,150,1.7000000000000002,145,50,1.7000000000000002,0.5,0.2,10,1000,0,null,10,"10.8-9-7.1-3-8.1","CartesianRepFeat3 of Postprocessed version of ReflectFeat1 of CartesianRepFeat2 of LineFeat2","G1 Y50.0 E10.0"]
["Print",145,50,1.7000000000000002,140,50,1.7000000000000002,0.5,0.2,0.5,1000,0,null,10,"10.8-9-7.1-2-8.1","CartesianRepFeat3 of Postprocessed version of ReflectFeat1 of CartesianRepFeat2 of LineFeat1","G1 X140.0 E0.5"]
["Print",140,50,1.7000000000000002,140,150,1.7000000000000002,0.5,0.2,10,1000,0,null,10,"10.8-9-6.8-5-8.1","CartesianRepFeat3 of Postprocessed version of ReflectFeat1 of CartesianRepFeat1 of LineFeat4","G1 Y150.0 E10.0"]
["Print",140,150,1.7000000000000002,135,150,1.7000000000000002,0.5,0.2,0.5,1000,0,null,10,"10.8-9-6.8-4-8.1","CartesianRepFeat3 of Postprocessed version of ReflectFeat1 of CartesianRepFeat1 of LineFeat3","G1 X135.0 E0.5"]
["Print",135,150,1.7000000000000002,135,50,1.7000000000000002,0.5,0.2,10,1000,0,null,10,"10.8-9-6.8-3-8.1","CartesianRepFeat3 of Postprocessed version of ReflectFeat1 of CartesianRepFeat1 of LineFeat2","G1 Y50.0 E10.0"]
["Print",135,50,1.7000000000000002,130,50,1.7000000000000002,0.5,0.2,0.5,1000,0,null,10,"10.8-9-6.8-2-8.1","CartesianRepFeat3 of Postprocessed version of ReflectFeat1 of CartesianRepFeat1 of LineFeat1","G1 X130.0 E0.5"]
["Print",130,50,1.7000000000000002,130,150,1.7000000000000002,0.5,0.2,10,1000,0,null,10,"10.8-9-6.7-5-8.1","CartesianRepFeat3 of Postprocessed version of ReflectFeat1 of CartesianRepFeat1 of LineFeat4","G1 Y150.0 E10.0"]
["Print",130,150,1.7000000000000002,125,150,1.7000000000000002,0.5,0.2,0.5,1000,0,null,10,"10.8-9-6.7-4-8.1","CartesianRepFeat3 of Postprocessed version of ReflectFeat1 of CartesianRepFeat1 of LineFeat3","G1 X125.0 E0.5"]
["Print",125,150,1.7000000000000002,125,50,1.7000000000000002,0.5,0.2,10,1000,0,null,10,"10.8-9-6.7-3-8.1","CartesianRepFeat3 of Postprocessed version of ReflectFeat1 of CartesianRepFeat1 of LineFeat2","G1 Y50.0 E10.0"]
["Print",125,50,1.7000000000000002,120,50,1.7000000000000002,0.5,0.2,0.5,1000,0,null,10,"10.8-9-6.7-2-8.1","CartesianRepFeat3 of Postprocessed version of ReflectFeat1 of CartesianRepFeat1 of LineFeat1","G1 X120.0 E0.5"]
["Print",120,50,1.7000000000000002,120,150,1.7000000000000002,0.5,0.2,10,1000,0,null,10,"10.8-9-6.6-5-8.1","CartesianRepFeat3 of Postprocessed version of ReflectFeat1 of CartesianRepFeat1 of LineFeat4","G1 Y150.0 E10.0"]
["Print",120,150,1.7000000000000002,115,150,1.7000000000000002,0.5,0.2,0.5,1000,0,null,10,"10.8-9-6.6-4-8.1","CartesianRepFeat3 of Postprocessed version of ReflectFeat1 of CartesianRepFeat1 of LineFeat3","G1 X115.0 E0.5"]
["Print",115,150,1.7000000000000002,115,50,1.7000000000000002,0.5,0.2,10,1000,0,null,10,"10.8-9-6.6-3-8.1","CartesianRepFeat3 of Postprocessed version of ReflectFeat1 of CartesianRepFeat1 of LineFeat2","G1 Y50.0 E10.0"]
["Print",115,50,1.7000000000000002,110,50,1.7000000000000002,0.5,0.2,0.5,1000,0,null,10,"10.8-9-6.6-2-8.1","CartesianRepFeat3 of Postprocessed version of ReflectFeat1 of CartesianRepFeat1 of LineFeat1","G1 X110.0 E0.5"]
["Print",110,50,1.7000000000000002,110,150,1.7000000000000002,0.5,0.2,10,1000,0,null,10,"10.8-9-6.5-5-8.1","CartesianRepFeat3 of Postprocessed version of ReflectFeat1 of CartesianRepFeat1 of LineFeat4","G1 Y150.0 E10.0"]
["Print",110,150,1.7000000000000002,105,150,1.7000000000000002,0.5,0.2,0.5,1000,0,null,10,"10.8-9-6.5-4-8.1","CartesianRepFeat3 of Postprocessed version of ReflectFeat1 of CartesianRepFeat1 of LineFeat3","G1 X105.0 E0.5"]
["Print",105,150,1.7000000000000002,105,50,1.7000000000000002,0.5,0.2,10,1000,0,null,10,"10.8-9-6.5-3-8.1","CartesianRepFeat3 of Postprocessed version of ReflectFeat1 of CartesianRepFeat1 of LineFeat2","G1 Y50.0 E10.0"]
["Print",105,50,1.7000000000000002,100,50,1.7000000000000002,0.5,0.2,0.5,1000,0,null,10,"10.8-9-6.5-2-8.1","CartesianRepFeat3 of Postprocessed version of ReflectFeat1 of CartesianRepFeat1 of LineFeat1","G1 X100.0 E0.5"]
["Print",100,50,1.7000000000000002,100,150,1.7000000000000002,0.5,0.2,10,1000,0,null,10,"10.8-9-6.4-5-8.1","CartesianRepFeat3 of Postprocessed version of ReflectFeat1 of CartesianRepFeat1 of LineFeat4","G1 Y150.0 E10.0"]
["Print",100,150,1.7000000000000002,95,150,1.7000000000000002,0.5,0.2,0.5,1000,0,null,10,"10.8-9-6.4-4-8.1","CartesianRepFeat3 of Postprocessed version of ReflectFeat1 of CartesianRepFeat1 of LineFeat3","G1 X95.0 E0.5"]
["Print",95,150,1.7000000000000002,95,50,1.7000000000000002,0.5,0.2,10,1000,0,null,10,"10.8-9-6.4-3-8.1","CartesianRepFeat3 of Postprocessed version of ReflectFeat1 of CartesianRepFeat1 of LineFeat2","G1 Y50.0 E10.0"]
["Print",95,50,1.7000000000000002,90,50,1.7000000000000002,0.5,0.2,0.5,1000,0,null,10,"10.8-9-6.4-2-8.1","CartesianRepFeat3 of Postprocessed version of ReflectFeat1 of CartesianRepFeat1 of LineFeat1","G1 X90.0 E0.5"]
["Print",90,50,1.7000000000000002,90,150,1.7000000000000002,0.5,0.2,10,1000,0,null,10,"10.8-9-6.3-5-8.1","CartesianRepFeat3 of Postprocessed version of ReflectFeat1 of CartesianRepFeat1 of LineFeat4","G1 Y150.0 E10.0"]
["Print",90,150,1.7000000000000002,85,150,1.7000000000000002,0.5,0.2,0.5,1000,0,null,10,"10.8-9-6.3-4-8.1","CartesianRepFeat3 of Postprocessed version of ReflectFeat1 of CartesianRepFeat1 of LineFeat3","G1 X85.0 E0.5"]
["Print",85,150,1.7000000000000002,85,50,1.7000000000000002,0.5,0.2,10,1000,0,null,10,"10.8-9-6.3-3-8.1","CartesianRepFeat3 of Postprocessed version of ReflectFeat1 of CartesianRepFeat1 of LineFeat2","G1 Y50.0 E10.0"]
["Print",85,50,1.7000000000000002,80,50,1.7000000000000002,0.5,0.2,0.5,1000,0,null,10,"10.8-9-6.3-2-8.1","CartesianRepFeat3 of Postprocessed version of ReflectFeat1 of CartesianRepFeat1 of LineFeat1","G1 X80.0 E0.5"]
["Print",80,50,1.7000000000000002,80,150,1.7000000000000002,0.5,0.2,10,1000,0,null,10,"10.8-9-6.2-5-8.1","CartesianRepFeat3 of Postprocessed version of ReflectFeat1 of CartesianRepFeat1 of LineFeat4","G1 Y150.0 E10.0"]
["Print",80,150,1.7000000000000002,75,150,1.7000000000000002,0.5,0.2,0.5,1000,0,null,10,"10.8-9-6.2-4-8.1","CartesianRepFeat3 of Postprocessed version of ReflectFeat1 of CartesianRepFeat1 of LineFeat3","G1 X75.0 E0.5"]
["Print",75,150,1.7000000000000002,75,50,1.7000000000000002,0.5,0.2,10,1000,0,null,10,"10.8-9-6.2-3-8.1","CartesianRepFeat3 of Postprocessed version of ReflectFeat1 of CartesianRepFeat1 of LineFeat2","G1 Y50.0 E10.0"]
["Print",75,50,1.7000000000000002,70,50,1.7000000000000002,0.5,0.2,0.5,1000,0,null,10,"10.8-9-6.2-2-8.1","CartesianRepFeat3 of Postprocessed version of ReflectFeat1 of CartesianRepFeat1 of LineFeat1","G1 X70.0 E0.5"]
["Print",70,50,1.7000000000000002,70,150,1.7000000000000002,0.5,0.2,10,1000,0,null,10,"10.8-9-6.1-5-8.1","CartesianRepFeat3 of Postprocessed version of ReflectFeat1 of CartesianRepFeat1 of LineFeat4","G1 Y150.0 E10.0"]
["Print",70,150,1.7000000000000002,65,150,1.7000000000000002,0.5,0.2,0.5,1000,0,null,10,"10.8-9-6.1-4-8.1","CartesianRepFeat3 of Postprocessed version of ReflectFeat1 of CartesianRepFeat1 of LineFeat3","G1 X65.0 E0.5"]
["Print",65,150,1.7000000000000002,65,50,1.7000000000000002,0.5,0.2,10,1000,0,null,10,"10.8-9-6.1-3-8.1","CartesianRepFeat3 of Postprocessed version of ReflectFeat1 of CartesianRepFeat1 of LineFeat2","G1 Y50.0 E10.0"]
["Print",65,50,1.7000000000000002,60,50,1.7000000000000002,0.5,0.2,0.5,1000,0,null,10,"10.8-9-6.1-2-8.1","CartesianRepFeat3 of Postprocessed version of ReflectFeat1 of CartesianRepFeat1 of LineFeat1","G1 X60.0 E0.5"]
["Print",60,50,1.7000000000000002,60,150,1.7000000000000002,0.5,0.2,10,1000,0,null,10,"10.8-9-5-8.1","CartesianRepFeat3 of Postprocessed version of ReflectFeat1 of LineFeat4","G1 Y150.0 E10.0"]
["Print",60,150,1.7000000000000002,55,150,1.7000000000000002,0.5,0.2,0.5,1000,0,null,10,"10.8-9-4-8.1","CartesianRepFeat3 of Postprocessed version of ReflectFeat1 of LineFeat3","G1 X55.0 E0.5"]
["Print",55,150,1.7000000000000002,55,50,1.7000000000000002,0.5,0.2,10,1000,0,null,10,"10.8-9-3-8.1","CartesianRepFeat3 of Postprocessed version of ReflectFeat1 of LineFeat2","G1 Y50.0 E10.0"]
["Print",55,50,1.7000000000000002,50,50,1.7000000000000002,0.5,0.2,0.5,1000,0,null,10,"10.8-9-2-8.1","CartesianRepFeat3 of Postprocessed version of ReflectFeat1 of LineFeat1","G1 X50.0 E0.5"]
["Travel",50,50,1.7000000000000002,50,50,1.8,0,0,null,9000,null,null,0,0,"Travel automatically added","G0 F9000 Z2.0"]
["Print",50,50,1.8,50,150,1.8,0.5,0.2,10,1000,0,null,10,"10.9-1","CartesianRepFeat3 of RectangleFeat1","G1 F1000 Y150.0 E10.0"]
["Print",50,150,1.8,150,150,1.8,0.5,0.2,10,1000,0,null,10,"10.9-1","CartesianRepFeat3 of RectangleFeat1","G1 X150.0 E10.0"]
["Print",150,150,1.8,150,50,1.8,0.5,0.2,10,1000,0,null,10,"10.9-1","CartesianRepFeat3 of RectangleFeat1","G1 Y50.0 E10.0"]
["Print",150,50,1.8,50,50,1.8,0.5,0.2,10,1000,0,null,10,"10.9-1","CartesianRepFeat3 of RectangleFeat1","G1 X50.0 E10.0"]
["Print",50,50,1.8,50,55,1.8,0.5,0.2,0.5,1000,0,null,10,"10.9-2","CartesianRepFeat3 of LineFeat1","G1 Y55.0 E0.5"]
["Print",50,55,1.8,150,55,1.8,0.5,0.2,10,1000,0,null,10,"10.9-3","CartesianRepFeat3 of LineFeat2","G1 X150.0 E10.0"]
["Print",150,55,1.8,150,60,1.8,0.5,0.2,0.5,1000,0,null,10,"10.9-4","CartesianRepFeat3 of LineFeat3","G1 Y60.0 E0.5"]
["Print",150,60,1.8,50,60,1.8,0.5,0.2,10,1000,0,null,10,"10.9-5","CartesianRepFeat3 of LineFeat4","G1 X50.0 E10.0"]
["Print",50,60,1.8,50,65,1.8,0.5,0.2,0.5,1000,0,null,10,"10.9-6.1-2","CartesianRepFeat3 of CartesianRepFeat1 of LineFeat1","G1 Y65.0 E0.5"]
["Print",50,65,1.8,150,65,1.8,0.5,0.2,10,1000,0,null,10,"10.9-6.1-3","CartesianRepFeat3 of CartesianRepFeat1 of LineFeat2","G1 X150.0 E10.0"]
["Print",150,65,1.8,150,70,1.8,0.5,0.2,0.5,1000,0,null,10,"10.9-6.1-4","CartesianRepFeat3 of CartesianRepFeat1 of LineFeat3","G1 Y70.0 E0.5"]
["Print",150,70,1.8,50,70,1.8,0.5,0.2,10,1000,0,null,10,"10.9-6.1-5","CartesianRepFeat3 of CartesianRepFeat1 of LineFeat4","G1 X50.0 E10.0"]
["Print",50,70,1.8,50,75,1.8,0.5,0.2,0.5,1000,0,null,10,"10.9-6.2-2","CartesianRepFeat3 of CartesianRepFeat1 of LineFeat1","G1 Y75.0 E0.5"]
["Print",50,75,1.8,150,75,1.8,0.5,0.2,10,1000,0,null,10,"10.9-6.2-3","CartesianRepFeat3 of CartesianRepFeat1 of LineFeat2","G1 X150.0 E10.0"]
["Print",150,75,1.8,150,80,1.8,0.5,0.2,0.5,1000,0,null,10,"10.9-6.2-4","CartesianRepFeat3 of CartesianRepFeat1 of LineFeat3","G1 Y80.0 E0.5"]
["Print",150,80,1.8,50,80,1.8,0.5,0.2,10,1000,0,null,10,"10.9-6.2-5","CartesianRepFeat3 of CartesianRepFeat1 of LineFeat4","G1 X50.0 E10.0"]
["Print",50,80,1.8,50,85,1.8,0.5,0.2,0.5,1000,0,null,10,"10.9-6.3-2","CartesianRepFeat3 of CartesianRepFeat1 of LineFeat1","G1 Y85.0 E0.5"]
["Print",50,85,1.8,150,85,1.8,0.5,0.2,10,1000,0,null,10,"10.9-6.3-3","CartesianRepFeat3 of CartesianRepFeat1 of LineFeat2","G1 X150.0 E10.0"]
["Print",150,85,1.8,150,90,1.8,0.5,0.2,0.5,1000,0,null,10,"10.9-6.3-4","CartesianRepFeat3 of CartesianRepFeat1 of LineFeat3","G1 Y90.0 E0.5"]
["Print",150,90,1.8,50,90,1.8,0.5,0.2,10,1000,0,null,10,"10.9-6.3-5","CartesianRepFeat3 of CartesianRepFeat1 of LineFeat4","G1 X50.0 E10.0"]
["Print",50,90,1.8,50,95,1.8,0.5,0.2,0.5,1000,0,null,10,"10.9-6.4-2","CartesianRepFeat3 of CartesianRepFeat1 of LineFeat1","G1 Y95.0 E0.5"]
["Print",50,95,1.8,150,95,1.8,0.5,0.2,10,1000,0,null,10,"10.9-6.4-3","CartesianRepFeat3 of CartesianRepFeat1 of LineFeat2","G1 X150.0 E10.0"]
["Print",150,95,1.8,150,100,1.8,0.5,0.2,0.5,1000,0,null,10,"10.9-6.4-4","CartesianRepFeat3 of CartesianRepFeat1 of LineFeat3","G1 Y100.0 E0.5"]
["Print",150,100,1.8,50,100,1.8,0.5,0.2,10,1000,0,null,10,"10.9-6.4-5","CartesianRepFeat3 of CartesianRepFeat1 of LineFeat4","G1 X50.0 E10.0"]
["Print",50,100,1.8,50,105,1.8,0.5,0.2,0.5,1000,0,null,10,"10.9-6.5-2","CartesianRepFeat3 of CartesianRepFeat1 of LineFeat1","G1 Y105.0 E0.5"]
["Print",50,105,1.8,150,105,1.8,0.5,0.2,10,1000,0,null,10,"10.9-6.5-3","CartesianRepFeat3 of CartesianRepFeat1 of LineFeat2","G1 X150.0 E10.0"]
["Print",150,105,1.8,150,110,1.8,0.5,0.2,0.5,1000,0,null,10,"10.9-6.5-4","CartesianRepFeat3 of CartesianRepFeat1 of LineFeat3","G1 Y110.0 E0.5"]
["Print",150,110,1.8,50,110,1.8,0.5,0.2,10,1000,0,null,10,"10.9-6.5-5","CartesianRepFeat3 of CartesianRepFeat1 of LineFeat4","G1 X50.0 E10.0"]
["Print",50,110,1.8,50,115,1.8,0.5,0.2,0.5,1000,0,null,10,"10.9-6.6-2","CartesianRepFeat3 of CartesianRepFeat1 of LineFeat1","G1 Y115.0 E0.5"]
["Print",50,115,1.8,150,115,1.8,0.5,0.2,10,1000,0,null,10,"10.9-6.6-3","CartesianRepFeat3 of CartesianRepFeat1 of LineFeat2","G1 X150.0 E10.0"]
["Print",150,115,1.8,150,120,1.8,0.5,0.2,0.5,1000,0,null,10,"10.9-6.6-4","CartesianRepFeat3 of CartesianRepFeat1 of LineFeat3","G1 Y120.0 E0.5"]
["Print",150,120,1.8,50,120,1.8,0.5,0.2,10,1000,0,null,10,"10.9-6.6-5","CartesianRepFeat3 of CartesianRepFeat1 of LineFeat4","G1 X50.0 E10.0"]
["Print",50,120,1.8,50,125,1.8,0.5,0.2,0.5,1000,0,null,10,"10.9-6.7-2","CartesianRepFeat3 of CartesianRepFeat1 of LineFeat1","G1 Y125.0 E0.5"]
["Print",50,125,1.8,150,125,1.8,0.5,0.2,10,1000,0,null,10,"10.9-6.7-3","CartesianRepFeat3 of CartesianRepFeat1 of LineFeat2","G1 X150.0 E10.0"]
["Print",150,125,1.8,150,130,1.8,0.5,0.2,0.5,1000,0,null,10,"10.9-6.7-4","CartesianRepFeat3 of CartesianRepFeat1 of LineFeat3","G1 Y130.0 E0.5"]
["Print",150,130,1.8,50,130,1.8,0.5,0.2,10,1000,0,null,10,"10.9-6.7-5","CartesianRepFeat3 of CartesianRepFeat1 of LineFeat4","G1 X50.0 E10.0"]
["Print",50,130,1.8,50,135,1.8,0.5,0.2,0.5,1000,0,null,10,"10.9-6.8-2","CartesianRepFeat3 of CartesianRepFeat1 of LineFeat1","G1 Y135.0 E0.5"]
["Print",50,135,1.8,150,135,1.8,0.5,0.2,10,1000,0,null,10,"10.9-6.8-3","CartesianRepFeat3 of CartesianRepFeat1 of LineFeat2","G1 X150.0 E10.0"]
["Print",150,135,1.8,150,140,1.8,0.5,0.2,0.5,1000,0,null,10,"10.9-6.8-4","CartesianRepFeat3 of CartesianRepFeat1 of LineFeat3","G1 Y140.0 E0.5"]
["Print",150,140,1.8,50,140,1.8,0.5,0.2,10,1000,0,null,10,"10.9-6.8-5","CartesianRepFeat3 of CartesianRepFeat1 of LineFeat4","G1 X50.0 E10.0"]
["Print",50,140,1.8,50,145,1.8,0.5,0.2,0.5,1000,0,null,10,"10.9-7.1-2","CartesianRepFeat3 of CartesianRepFeat2 of LineFeat1","G1 Y145.0 E0.5"]
["Print",50,145,1.8,150,145,1.8,0.5,0.2,10,1000,0,null,10,"10.9-7.1-3","CartesianRepFeat3 of CartesianRepFeat2 of LineFeat2","G1 X150.0 E10.0"]
["Print",150,145,1.8,150,150,1.8,0.5,0.2,0.5,1000,0,null,10,"10.9-7.1-4","CartesianRepFeat3 of CartesianRepFeat2 of LineFeat3","G1 Y150.0 E0.5"]
["Travel",150,150,1.8,150,150,1.9000000000000001,0,0,null,9000,null,null,0,0,"Travel automatically added","G0 F9000 Z2.1"]
["Print",150,150,1.9000000000000001,145,150,1.9000000000000001,0.5,0.2,0.5,1000,0,null,10,"10.9-9-7.1-4-8.1","CartesianRepFeat3 of Postprocessed version of ReflectFeat1 of CartesianRepFeat2 of LineFeat3","G1 F1000 X145.0 E0.5"]
["Print",145,150,1.9000000000000001,145,50,1.9000000000000001,0.5,0.2,10,1000,0,null,10,"10.9-9-7.1-3-8.1","CartesianRepFeat3 of Postprocessed version of ReflectFeat1 of CartesianRepFeat2 of LineFeat2","G1 Y50.0 E10.0"]
["Print",145,50,1.9000000000000001,140,50,1.9000000000000001,0.5,0.2,0.5,1000,0,null,10,"10.9-9-7.1-2-8.1","CartesianRepFeat3 of Postprocessed version of ReflectFeat1 of CartesianRepFeat2 of LineFeat1","G1 X140.0 E0.5"]
["Print",140,50,1.9000000000000001,140,150,1.9000000000000001,0.5,0.2,10,1000,0,null,10,"10.9-9-6.8-5-8.1","CartesianRepFeat3 of Postprocessed version of ReflectFeat1 of CartesianRepFeat1 of LineFeat4","G1 Y150.0 E10.0"]
["Print",140,150,1.9000000000000001,135,150,1.9000000000000001,0.5,0.2,0.5,1000,0,null,10,"10.9-9-6.8-4-8.1","CartesianRepFeat3 of Postprocessed version of ReflectFeat1 of CartesianRepFeat1 of LineFeat3","G1 X135.0 E0.5"]
["Print",135,150,1.9000000000000001,135,50,1.9000000000000001,0.5,0.2,10,1000,0,null,10,"10.9-9-6.8-3-8.1","CartesianRepFeat3 of Postprocessed version of ReflectFeat1 of CartesianRepFeat1 of LineFeat2","G1 Y50.0 E10.0"]
["Print",135,50,1.9000000000000001,130,50,1.9000000000000001,0.5,0.2,0.5,1000,0,null,10,"10.9-9-6.8-2-8.1","CartesianRepFeat3 of Postprocessed version of ReflectFeat1 of CartesianRepFeat1 of LineFeat1","G1 X130.0 E0.5"]
["Print",130,50,1.9000000000000001,130,150,1.9000000000000001,0.5,0.2,10,1000,0,null,10,"10.9-9-6.7-5-8.1","CartesianRepFeat3 of Postprocessed version of ReflectFeat1 of CartesianRepFeat1 of LineFeat4","G1 Y150.0 E10.0"]
["Print",130,150,1.9000000000000001,125,150,1.9000000000000001,0.5,0.2,0.5,1000,0,null,10,"10.9-9-6.7-4-8.1","CartesianRepFeat3 of Postprocessed version of ReflectFeat1 of CartesianRepFeat1 of LineFeat3","G1 X125.0 E0.5"]
["Print",125,150,1.9000000000000001,125,50,1.9000000000000001,0.5,0.2,10,1000,0,null,10,"10.9-9-6.7-3-8.1","CartesianRepFeat3 of Postprocessed version of ReflectFeat1 of CartesianRepFeat1 of LineFeat2","G1 Y50.0 E10.0"]
["Print",125,50,1.9000000000000001,120,50,1.9000000000000001,0.5,0.2,0.5,1000,0,null,10,"10.9-9-6.7-2-8.1","CartesianRepFeat3 of Postprocessed version of ReflectFeat1 of CartesianRepFeat1 of LineFeat1","G1 X120.0 E0.5"]
["Print",120,50,1.9000000000000001,120,150,1.9000000000000001,0.5,0.2,10,1000,0,null,10,"10.9-9-6.6-5-8.1","CartesianRepFeat3 of Postprocessed version of ReflectFeat1 of CartesianRepFeat1 of LineFeat4","G1 Y150.0 E10.0"]
["Print",120,150,1.9000000000000001,115,150,1.9000000000000001,0.5,0.2,0.5,1000,0,null,10,"10.9-9-6.6-4-8.1","CartesianRepFeat3 of Postprocessed version of ReflectFeat1 of CartesianRepFeat1 of LineFeat3","G1 X115.0 E0.5"]
["Print",115,150,1.9000000000000001,115,50,1.9000000000000001,0.5,0.2,10,1000,0,null,10,"10.9-9-6.6-3-8.1","CartesianRepFeat3 of Postprocessed version of ReflectFeat1 of CartesianRepFeat1 of LineFeat2","G1 Y50.0 E10.0"]
["Print",115,50,1.9000000000000001,110,50,1.9000000000000001,0.5,0.2,0.5,1000,0,null,10,"10.9-9-6.6-2-8.1","CartesianRepFeat3 of Postprocessed version of ReflectFeat1 of CartesianRepFeat1 of LineFeat1","G1 X110.0 E0.5"]
["Print",110,50,1.9000000000000001,110,150,1.9000000000000001,0.5,0.2,10,1000,0,null,10,"10.9-9-6.5-5-8.1","CartesianRepFeat3 of Postprocessed version of ReflectFeat1 of CartesianRepFeat1 of LineFeat4","G1 Y150.0 E10.0"]
["Print",110,150,1.9000000000000001,105,150,1.9000000000000001,0.5,0.2,0.5,1000,0,null,10,"10.9-9-6.5-4-8.1","CartesianRepFeat3 of Postprocessed version of ReflectFeat1 of CartesianRepFeat1 of LineFeat3","G1 X105.0 E0.5"]
["Print",105,150,1.9000000000000001,105,50,1.9000000000000001,0.5,0.2,10,1000,0,null,10,"10.9-9-6.5-3-8.1","CartesianRepFeat3 of Postprocessed version of ReflectFeat1 of CartesianRepFeat1 of LineFeat2","G1 Y50.0 E10.0"]
["Print",105,50,1.9000000000000001,100,50,1.9000000000000001,0.5,0.2,0.5,1000,0,null,10,"10.9-9-6.5-2-8.1","CartesianRepFeat3 of Postprocessed version of ReflectFeat1 of CartesianRepFeat1 of LineFeat1","G1 X100.0 E0.5"]
["Print",100,50,1.9000000000000001,100,150,1.9000000000000001,0.5,0.2,10,1000,0,null,10,"10.9-9-6.4-5-8.1","CartesianRepFeat3 of Postprocessed version of ReflectFeat1 of CartesianRepFeat1 of LineFeat4","G1 Y150.0 E10.0"]
["Print",100,150,1.9000000000000001,95,150,1.9000000000000001,0.5,0.2,0.5,1000,0,null,10,"10.9-9-6.4-4-8.1","CartesianRepFeat3 of Postprocessed version of ReflectFeat1 of CartesianRepFeat1 of LineFeat3","G1 X95.0 E0.5"]
["Print",95,150,1.9000000000000001,95,50,1.9000000000000001,0.5,0.2,10,1000,0,null,10,"10.9-9-6.4-3-8.1","CartesianRepFeat3 of Postprocessed version of ReflectFeat1 of CartesianRepFeat1 of LineFeat2","G1 Y50.0 E10.0"]
["Print",95,50,1.9000000000000001,90,50,1.9000000000000001,0.5,0.2,0.5,1000,0,null,10,"10.9-9-6.4-2-8.1","CartesianRepFeat3 of Postprocessed version of ReflectFeat1 of CartesianRepFeat1 of LineFeat1","G1 X90.0 E0.5"]
["Print",90,50,1.9000000000000001,90,150,1.9000000000000001,0.5,0.2,10,1000,0,null,10,"10.9-9-6.3-5-8.1","CartesianRepFeat3 of Postprocessed version of ReflectFeat1 of CartesianRepFeat1 of LineFeat4","G1 Y150.0 E10.0"]
["Print",90,150,1.9000000000000001,85,150,1.9000000000000001,0.5,0.2,0.5,1000,0,null,10,"10.9-9-6.3-4-8.1","CartesianRepFeat3 of Postprocessed version of ReflectFeat1 of CartesianRepFeat1 of LineFeat3","G1 X85.0 E0.5"]
["Print",85,150,1.9000000000000001,85,50,1.9000000000000001,0.5,0.2,10,1000,0,null,10,"10.9-9-6.3-3-8.1","CartesianRepFeat3 of Postprocessed version of ReflectFeat1 of CartesianRepFeat1 of LineFeat2","G1 Y50.0 E10.0"]
["Print",85,50,1.9000000000000001,80,50,1.9000000000000001,0.5,0.2,0.5,1000,0,null,10,"10.9-9-6.3-2-8.1","CartesianRepFeat3 of Postprocessed version of ReflectFeat1 of CartesianRepFeat1 of LineFeat1","G1 X80.0 E0.5"]
["Print",80,50,1.9000000000000001,80,150,1.9000000000000001,0.5,0.2,10,1000,0,null,10,"10.9-9-6.2-5-8.1","CartesianRepFeat3 of Postprocessed version of ReflectFeat1 of CartesianRepFeat1 of LineFeat4","G1 Y150.0 E10.0"]
["Print",80,150,1.9000000000000001,75,150,1.9000000000000001,0.5,0.2,0.5,1000,0,null,10,"10.9-9-6.2-4-8.1","CartesianRepFeat3 of Postprocessed version of ReflectFeat1 of CartesianRepFeat1 of LineFeat3","G1 X75.0 E0.5"]
["Print",75,150,1.9000000000000001,75,50,1.9000000000000001,0.5,0.2,10,1000,0,null,10,"10.9-9-6.2-3-8.1","CartesianRepFeat3 of Postprocessed version of ReflectFeat1 of CartesianRepFeat1 of LineFeat2","G1 Y50.0 E10.0"]
["Print",75,50,1.9000000000000001,70,50,1.9000000000000001,0.5,0.2,0.5,1000,0,null,10,"10.9-9-6.2-2-8.1","CartesianRepFeat3 of Postprocessed version of ReflectFeat1 of CartesianRepFeat1 of LineFeat1","G1 X70.0 E0.5"]
["Print",70,50,1.9000000000000001,70,150,1.9000000000000001,0.5,0.2,10,1000,0,null,10,"10.9-9-6.1-5-8.1","CartesianRepFeat3 of Postprocessed version of ReflectFeat1 of CartesianRepFeat1 of LineFeat4","G1 Y150.0 E10.0"]
["Print",70,150,1.9000000000000001,65,150,1.9000000000000001,0.5,0.2,0.5,1000,0,null,10,"10.9-9-6.1-4-8.1","CartesianRepFeat3 of Postprocessed version of ReflectFeat1 of CartesianRepFeat1 of LineFeat3","G1 X65.0 E0.5"]
["Print",65,150,1.9000000000000001,65,50,1.9000000000000001,0.5,0.2,10,1000,0,null,10,"10.9-9-6.1-3-8.1","CartesianRepFeat3 of Postprocessed version of ReflectFeat1 of CartesianRepFeat1 of LineFeat2","G1 Y50.0 E10.0"]
["Print",65,50,1.9000000000000001,60,50,1.9000000000000001,0.5,0.2,0.5,1000,0,null,10,"10.9-9-6.1-2-8.1","CartesianRepFeat3 of Postprocessed version of ReflectFeat1 of CartesianRepFeat1 of LineFeat1","G1 X60.0 E0.5"]
["Print",60,50,1.9000000000000001,60,150,1.9000000000000001,0.5,0.2,10,1000,0,null,10,"10.9-9-5-8.1","CartesianRepFeat3 of Postprocessed version of ReflectFeat1 of LineFeat4","G1 Y150.0 E10.0"]
["Print",60,150,1.9000000000000001,55,150,1.9000000000000001,0.5,0.2,0.5,1000,0,null,10,"10.9-9-4-8.1","CartesianRepFeat3 of Postprocessed version of ReflectFeat1 of LineFeat3","G1 X55.0 E0.5"]
["Print",55,150,1.9000000000000001,55,50,1.9000000000000001,0.5,0.2,10,1000,0,null,10,"10.9-9-3-8.1","CartesianRepFeat3 of Postprocessed version of ReflectFeat1 of LineFeat2","G1 Y50.0 E10.0"]
["Print",55,50,1.9000000000000001,50,50,1.9000000000000001,0.5,0.2,0.5,1000,0,null,10,"10.9-9-2-8.1","CartesianRepFeat3 of Postprocessed version of ReflectFeat1 of LineFeat1","G1 X50.0 E0.5"]

{"sheet":"StartGCODE","index":8,"n_rows":62,"n_cols":14,"rows_kept":62,"cut":false,"hidden":false,"merged":[]}
["ID:","ULTI2+_Temps&Fan","CR-10","Ender 3","AnycubicMegaS","PrusaMini","Raise3D_1nozzle","Raise3D_2nozzle","ToolChanger_T0T2","Snapmaker 2_A350","REPRAP X400","Voxel8","Ultimaker3","Artillery Genius"]
[null,null,null,null,null,null,null,null,null,null,null,null,null,"; GCODE generated with FullControl GCODE Designer software - contact Andy Gleadall (a.gleadall@lboro.ac.uk) for more information"]
[null,";FLAVOR:UltiGCode",";FLAVOR:Marlin",";FLAVOR:Marlin",";FLAVOR:Marlin",";GCode generated with FullControl GCode Designer software - contact Andy Gleadall (a.gleadall@lboro.ac.uk) for more information",";GCODE generated with FullControl GCODE Designer software - contact Andy Gleadall (a.gleadall@lboro.ac.uk) for more information",";GCode generated with FullControl GCode Designer software - contact Andy Gleadall (a.gleadall@lboro.ac.uk) for more information",";GCODE generated with FullControl GCODE Designer software - contact Andy Gleadall (a.gleadall@lboro.ac.uk) for more information",";Header Start",";GCODE generated with FullControl GCODE Designer software - contact Andy Gleadall (a.gleadall@lboro.ac.uk) for more information","; begin gcode",";GCODE generated with FullControl GCODE Designer software - contact Andy Gleadall (a.gleadall@lboro.ac.uk) for more information"]
[null,";TIME:5381",";TIME:0",";TIME:0",";TIME:0",null,null,null,null,null,";FLAVOR:",";GCODE generated with FullControl GCODE Designer software - contact Andy Gleadall (a.gleadall@lboro.ac.uk) for more information",";START_OF_HEADER","M73 P0 R1"]
[null,";MATERIAL:3241",";Filament used: 0m",";Filament used: 0m",";Filament used: 0m","M201 X1250 Y1250 Z400 E5000 ; sets maximum accelerations, mm/sec^2",";Dimension: 305.000 305.000 300.000 0.400 0.400",";Dimension: 305.000 305.000 300.000 0.400 0.400",null,";FLAVOR:Marlin",";TIME:","G90",";HEADER_VERSION:0.1","M201 X9000 Y9000 Z500 E10000 ; sets maximum accelerations, mm/sec^2"]
[null,";MATERIAL2:0",";Layer height: 0",";Layer height: 0",";Layer height: 0","M203 X180 Y180 Z12 E80 ; sets maximum feedrates, mm/sec",";Plate Shape: 0",";Plate Shape: 0","G28",";TIME:0",";MATERIAL:","T0",";FLAVOR:Griffin","M203 X500 Y500 Z12 E120 ; sets maximum feedrates, mm/sec"]
[null,";NOZZLE_DIAMETER:0.4",";MINX:0",";MINX:0",";MINX:0","M204 P1250 R1250 T1250 ; sets acceleration (P, T) and retract acceleration (R), mm/sec^2",";Extruder Offset #1: 0.000 0.000",";Origin Center: 0",null,";Filament used: 0m",";MATERIAL2:","M83",";GENERATOR.NAME:FullControl-GCODE-Designer","M204 P1500 R1500 T1500 ; sets acceleration (P, T) and retract acceleration (R), mm/sec^2"]
[null,";GCode generated with FullControl GCode Designer software - contact Andy Gleadall (a.gleadall@lboro.ac.uk) for more information",";MINY:0",";MINY:0",";MINY:0","M205 X8.00 Y8.00 Z2.00 E10.00 ; sets the jerk limits, mm/sec",";Filament Diameter #1: 1.750",";Extruder Offset #1: 0.000 0.000",";G10 P0 X-2.5 Y37 Z-4.85 ; T0",";Layer height: 0",";NOZZLE_DIAMETER:","; set bed temperature",";GENERATOR.VERSION:0.0.0","M205 X10.00 Y10.00 Z0.20 E2.50 ; sets the jerk limits, mm/sec"]
[null,"M82 ;absolute extrusion mode",";MINZ:0",";MINZ:0",";MINZ:0","M205 S0 T0 ; sets the minimum extruding and travel feed rate, mm/sec",";Filament Diameter #2: 1.750",";Filament Diameter #1: 1.750",";G10 P1 X5 Y30.5 Z-12 ; T1",null,null,{"$f":"CONCATENATE(\"M140 S\",BedTemp)","v":"M140 S60"},";GENERATOR.BUILD_DATE:2000-00-00","M205 S0 T0 ; sets the minimum extruding and travel feed rate, mm/sec"]
[null,"G28 ;Home",";MAXX:300",";MAXX:220",";MAXX:210",null,";Filament Compensation #1: 100.00",";Filament Diameter #2: 1.750",";G10 P2 X25.9 Y40.95 Z-5.7 ; T2",";file_total_lines: 0","G21 ;Metric values",null,";TARGET_MACHINE.NAME:Ultimaker 3 Extended","M107"]
[null,"G1 Z15.0 F6000 ;Move the platform down 15mm",";MAXY:300",";MAXY:220",";MAXY:210",null,";Filament Compensation #2: 100.00",";Filament Compensation #1: 100",";G10 P3 X-9 Y39 Z-5 ; T3",";estimated_time(s): 0","G90 ;absolute positioning",null,";EXTRUDER_TRAIN.0.INITIAL_TEMPERATURE:260","M83"]
[null,";Prime the extruder",";MAXZ:400",";MAXZ:250",";MAXZ:205","G90 ; use absolute coordinates",";Filament Density #1: 1240.00",";Filament Compensation #2: 100","G10 P0 X-2.5 Y37 Z-4.85 ; T0",";nozzle_temperature(°C): 0","M83 ;relative extrusion mode","; set NOZZZLE TEMPERATURE S200=210°C",";EXTRUDER_TRAIN.0.MATERIAL.VOLUME_USED:155","G28 "]
[null,"G92 E0",";GCode generated with FullControl GCode Designer software - contact Andy Gleadall (a.gleadall@lboro.ac.uk) for more information",";GCode generated with FullControl GCode Designer software - contact Andy Gleadall (a.gleadall@lboro.ac.uk) for more information",";GCode generated with FullControl GCode Designer software - contact Andy Gleadall (a.gleadall@lboro.ac.uk) for more information","M83 ; extruder relative mode",";Filament Density #2: 1240.00",";Filament Density #1: 1240.00","G10 P1 X6 Y30.5 Z-12 ; T1 - changed X to move the microscope left by 1mm",";build_plate_temperature(°C): 0","M106 ;Fan on",{"$f":"CONCATENATE(\"M109 S\",NozzleTemp)","v":"M109 S210"},";EXTRUDER_TRAIN.0.MATERIAL.GUID:c64c2dbe-5691-4363-a7d9-66b2dc12837f",{"$f":"CONCATENATE(\"M104 S\",NozzleTemp)","v":"M104 S210"}]
[null,"G1 F200 E3",null,null,null,"M104 S170 ; set extruder temp for bed leveling",";Model Gap: 0",";Filament Density #2: 1240.00","G10 P2 X26.0 Y40.86 Z-5.75 ; T2 - changed Z to be 0.05 higher, left (-X) and +Y",";max_x(mm): 320",{"$f":"CONCATENATE(\"M140 S\",BedTemp,\" ;set print bed temp\")","v":"M140 S60 ;set print bed temp"},null,";EXTRUDER_TRAIN.0.NOZZLE.DIAMETER:0.4",{"$f":"CONCATENATE(\"M140 S\",BedTemp)","v":"M140 S60"}]
[null,"G92 E0",null,null,null,{"$f":"CONCATENATE(\"M140 S\",BedTemp)","v":"M140 S60"},";M221 T0 S90.00",";Bounding Box: 0 0 0 0 0 0",";G10 P2 X26.0 Y40.86 Z-5.7 ; T2 - changed to be left (-X) and +Y",";max_y(mm): 350",{"$f":"CONCATENATE(\"M104 S\",NozzleTemp,\" ;set extruder target temp\")","v":"M104 S210 ;set extruder target temp"},"T1",";EXTRUDER_TRAIN.0.NOZZLE.NAME:AA 0.4",{"$f":"CONCATENATE(\"M190 S\",BedTemp)","v":"M190 S60"}]
[null,"M83 ;relative extrusion mode",{"$f":"CONCATENATE(\"M140 S\",BedTemp)","v":"M140 S60"},{"$f":"CONCATENATE(\"M140 S\",BedTemp)","v":"M140 S60"},{"$f":"CONCATENATE(\"M140 S\",BedTemp)","v":"M140 S60"},"M109 R170 ; wait for bed leveling temp",{"$f":"CONCATENATE(\"M140 S\",BedTemp)","v":"M140 S60"},";Model Gap: 0.000","G10 P3 X-9 Y39 Z-5 ; T3",";max_z(mm): 330",{"$f":"CONCATENATE(\"M190 S\",BedTemp,\" ;wait till bed temp reaches target temp\")","v":"M190 S60 ;wait till bed temp reaches target temp"},"M109 S0.0",";BUILD_PLATE.TYPE:glass",{"$f":"CONCATENATE(\"M109 S\",NozzleTemp)","v":"M109 S210"}]
[null,"G10","M105","M105","M105",{"$f":"CONCATENATE(\"M190 S\",BedTemp)","v":"M190 S60"},{"$f":"CONCATENATE(\"M104 T0 S\",NozzleTemp)","v":"M104 T0 S210"},null,null,";min_x(mm): 0",{"$f":"CONCATENATE(\"M109 S\",NozzleTemp,\" ;wait till extruder reaches target temp\")","v":"M109 S210 ;wait till extruder reaches target temp"},"T0",";BUILD_PLATE.INITIAL_TEMPERATURE:60","M117 Purge extruder"]
[null,";LAYER_COUNT:330",{"$f":"CONCATENATE(\"M190 S\",BedTemp)","v":"M190 S60"},{"$f":"CONCATENATE(\"M190 S\",BedTemp)","v":"M190 S60"},{"$f":"CONCATENATE(\"M190 S\",BedTemp)","v":"M190 S60"},"G28 ; home all without mesh bed level",{"$f":"CONCATENATE(\"M109 T0 S\",NozzleTemp)","v":"M109 T0 S210"},"M221 T0 S90.00","T0",";min_y(mm): 0","G28 X0 Y0 ;move X/Y to minimum endstops","; check bed temperature",";PRINT.TIME:1000","G92 E0 ; reset extruder"]
[null,";LAYER:0",{"$f":"CONCATENATE(\"M104 S\",NozzleTemp)","v":"M104 S210"},{"$f":"CONCATENATE(\"M104 S\",NozzleTemp)","v":"M104 S210"},{"$f":"CONCATENATE(\"M104 S\",NozzleTemp)","v":"M104 S210"},"G29 ; mesh bed leveling ","T0","M221 T1 S90.00",null,";min_z(mm): 0",null,{"$f":"CONCATENATE(\"M190 S\",BedTemp)","v":"M190 S60"},";PRINT.SIZE.MIN.X:0","G1 Z1.0 F3000 ; move z up little to prevent scratching of surface"]
[null,null,"M105","M105","M105",{"$f":"CONCATENATE(\"M104 S\",NozzleTemp)","v":"M104 S210"},{"$f":"CONCATENATE(\"M190 S\",BedTemp)","v":"M190 S60"},{"$f":"CONCATENATE(\"M140 S\",BedTemp)","v":"M140 S60"},{"$f":"CONCATENATE(\"M140 S\",BedTemp)","v":"M140 S60"},null,"G28 Z0 ;move Z to minimum endstop","; preamble",";PRINT.SIZE.MIN.Y:0","G1 X0.1 Y20 Z0.3 F5000.0 ; move to start-line position"]
[null,"M106",{"$f":"CONCATENATE(\"M109 S\",NozzleTemp)","v":"M109 S210"},{"$f":"CONCATENATE(\"M109 S\",NozzleTemp)","v":"M109 S210"},{"$f":"CONCATENATE(\"M109 S\",NozzleTemp)","v":"M109 S210"},"G92 E0.0","G21",{"$f":"CONCATENATE(\"M104 T0 S\",NozzleTemp)","v":"M104 T0 S210"},{"$f":"CONCATENATE(\"M104 S\",NozzleTemp, \" T0\")","v":"M104 S210 T0"},";Header End","G1 F2000 ;set controlled movement speed to 1000mm per min (25mm/s)",{"$f":"CONCATENATE(\"M106 S\",FanSpeed, \" ; set fan speed\")","v":"M106 S0 ; set fan speed"},";PRINT.SIZE.MIN.Z:0","G1 X0.1 Y200.0 Z0.3 F1500.0 E15 ; draw 1st line"]
[null,null,"M82 ;absolute extrusion mode","M82 ;absolute extrusion mode","M82 ;absolute extrusion mode","G1 Y-2.0 X179 F2400","G90",{"$f":"CONCATENATE(\"M104 T1 S\",NozzleTemp)","v":"M104 T1 S210"},{"$f":"CONCATENATE(\"M104 S\",NozzleTemp, \" T2\")","v":"M104 S210 T2"},null,null,"M125 S40",";PRINT.SIZE.MAX.X:210"]
[null,{"$f":"CONCATENATE(\"M140 S\",BedTemp)","v":"M140 S60"},null,null,null,"G1 Z3 F720","M82",{"$f":"CONCATENATE(\"M109 T0 S\",NozzleTemp)","v":"M109 T0 S210"},{"$f":"CONCATENATE(\"M190 S\",BedTemp)","v":"M190 S60"},";GCODE generated with FullControl GCODE Designer software - contact Andy Gleadall (a.gleadall@lboro.ac.uk) for more information","G1 X20 Y10 Z0.3","G28",";PRINT.SIZE.MAX.Y:210","G1 X0.4 Y200.0 Z0.3 F5000.0 ; move to side a little"]
[null,{"$f":"CONCATENATE(\"M104 S\",NozzleTemp)","v":"M104 S210"},null,"G92 E0 ;Reset Extruder","G21 ;metric values",{"$f":"CONCATENATE(\"M109 S\",NozzleTemp)","v":"M109 S210"},"M107",{"$f":"CONCATENATE(\"M109 T1 S\",NozzleTemp)","v":"M109 T1 S210"},{"$f":"CONCATENATE(\"M109 S\",NozzleTemp,\" T0\")","v":"M109 S210 T0"},null,null,"G29",";PRINT.SIZE.MAX.Z:205","G1 X0.4 Y20 Z0.3 F1500.0 E30 ; draw 2nd line"]
[null,{"$f":"CONCATENATE(\"M109 S\",NozzleTemp)","v":"M109 S210"},"M201 X500.00 Y500.00 Z100.00 E5000.00 ;Setup machine max acceleration","G28 ;Home","G90 ;absolute positioning",null,"G28 X0 Y0","T0",{"$f":"CONCATENATE(\"M109 S\",NozzleTemp,\" T2\")","v":"M109 S210 T2"},"M82 ;absolute extrusion mode",null,null,";END_OF_HEADER","; G1 E27 F3000 ; retract filament 3mm"]
[null,{"$f":"CONCATENATE(\"M190 S\",BedTemp)","v":"M190 S60"},"M203 X500.00 Y500.00 Z10.00 E50.00 ;Setup machine max feedrate",null,"M82 ;set extruder to absolute mode","; intro line","G28 Z0",{"$f":"CONCATENATE(\"M190 S\",BedTemp)","v":"M190 S60"},null,{"$f":"CONCATENATE(\"M140 S\",BedTemp)","v":"M140 S60"},null,null,null,"G92 E0 ; reset extruder"]
[null,null,"M204 P500.00 R1000.00 T500.00 ;Setup Print/Retract/Travel acceleration",null,"M107 ;start with the fan off","G1 X170 F1000","G1 Z15.0 F300",null,"G90 ;Absolute coordinates",{"$f":"CONCATENATE(\"M104 S\",NozzleTemp)","v":"M104 S210"},null,null,";THIS START GCode HAS NOT BEEN TESTED","; done purging extruder"]
[null,{"$f":"CONCATENATE(\"M106 S\",FanSpeed, \" ; set fan speed\")","v":"M106 S0 ; set fan speed"},"M205 X8.00 Y8.00 Z0.40 E5.00 ;Setup Jerk","M201 X500.00 Y500.00 Z100.00 E5000.00 ;Setup machine max acceleration","G28 X0 Y0 ;move X/Y to min endstops","G1 Z0.2 F720","G92 E0",null,"M83 ;Relative extrusion","G28 ;home",null,";END OF THE START GCODE",null,"G1 Z1.0 F3000 ; move z up little to prevent scratching of surface"]
[null,null,"M220 S100 ;Reset Feedrate","M203 X500.00 Y500.00 Z10.00 E50.00 ;Setup machine max feedrate","G28 Z0 ;move Z to min endstops","G1 X110.0 E8.0 F900","G1 F140 E29",null,{"$f":"CONCATENATE(\"M106 S\",FanSpeed, \" ; set fan speed\")","v":"M106 S0 ; set fan speed"},"G90 ;absolute positioning",null,null,"T0"]
[null,"G0 F4320 X20.0 Y10.0 Z0.3","M221 S100 ;Reset Flowrate","M204 P500.00 R1000.00 T500.00 ;Setup Print/Retract/Travel acceleration","G1 Z15.0 F100 ;move the platform down 15mm","M73 P0 R91","G1 X20 Y0 F140 E30","G21 ;Metric units",null,"G1 X-10 Y-10 F3000 ; Move X & Y just off the bed"," ",null,"M82 ;absolute extrusion mode","G21 ; set units to millimeters"]
[null,null,null,"M205 X8.00 Y8.00 Z0.40 E5.00 ;Setup Jerk","G92 E0 ;zero the extruded length","G1 X40.0 E10.0 F700","G92 E0","G90 ;Absolute coordinates",";G29 S1 ; load bed-levelling height map","G1 Z0 F1800 ; Put Z at bed level",";FAN SPEED IS NOT SET IN THIS START GCODE DUE TO A POTENTIAL ISSUE OF CONTROLLER BOARD FANS BEING TURNED OFF"," ",null,"G90 ; use absolute coordinates"]
[null,"G11","G28 ;Home","M220 S100 ;Reset Feedrate","G1 F200 E3 ;extrude 3mm of feed stock","G92 E0.0","G1 F6000.0","M82 ;Absolute extrusion",null,{"$f":"CONCATENATE(\"M109 S\",NozzleTemp)","v":"M109 S210"}," ",null,null,"M82 ; use absolute distances for extrusion"]
[null," ",null,"M221 S100 ;Reset Flowrate","G92 E0 ;zero the extruded length again",null,"M117 Printing custom GCODE...","M107 ;Fan off","G0 F6000 X-10 Y10.0 Z10",{"$f":"CONCATENATE(\"M190 S\",BedTemp)","v":"M190 S60"}," ",null,"G92 E0","G92 E0"]
[null,";END OF THE START GCODE","G92 E0 ;Reset Extruder",null,"G1 F100","M221 S100 ; set flow","M1001","G28 X0 Y0 ;Home XY","G1 E40 F250","G92 E0 ;Reset the extruder's origin/length ; Reset extruder",null,null,{"$f":"CONCATENATE(\"M140 S\",BedTemp)","v":"M140 S60"}]
[null," ","G1 Z2.0 F3000 ;Move Z Axis up",null,"G0 Y20 F100","G21 ; set units to millimeters",{"$f":"CONCATENATE(\"M106 S\",FanSpeed, \" ; set fan speed\")","v":"M106 S0 ; set fan speed"},"G28 Z0 ;Home Z",null,"G1 E20 F200",";END OF THE START GCODE",null,{"$f":"CONCATENATE(\"M109 S\",NozzleTemp)","v":"M109 S210"},{"$f":"CONCATENATE(\"M106 S\",FanSpeed, \" ; set fan speed\")","v":"M106 S0 ; set fan speed"}]
[null,null,"G1 X10.1 Y20 Z0.28 F5000.0 ;Move to start position","G1 Z2.0 F3000 ; Move Z Axis up little to prevent scratching of Heat Bed","M117 Printing...","G90 ; use absolute coordinates",null,"G1 Z15.0 F300","G0 F6000 X20 Y10 Z0.3","G92 E0 ;Reset the extruder's origin/length ; Reset extruder",null,null,"G0 F12000 X9 Y6 Z2","G1 Z0.200 F12000.000"]
[null,null,"G1 X10.1 Y200.0 Z0.28 F1500.0 E15 ;Draw the first line","G1 X0.1 Y20 Z0.3 F5000.0 ; Move to start position","G5","M83 ; use relative distances for extrusion",null,"T1",null,"G92 E0 ;Reset the extruder's origin/length",null,null,"G280 S1","G1 E-2.30000 F3600.00000"]
[null,null,"G1 X10.4 Y200.0 Z0.28 F5000.0 ;Move to side a little","G1 X0.1 Y200.0 Z0.3 F1500.0 E15 ; Draw the first line","G92 E0","M900 K0 ; No linear advance",null,"G92 E0",null,"G92 E0 ;Reset the extruder's origin/length",null,null,"G1 F1500 E-8","G92 E0"]
[null,null,"G1 X10.4 Y20 Z0.28 F1500.0 E30 ;Draw the second line","G1 X0.4 Y200.0 Z0.3 F5000.0 ; Move to side a little","G92 E0",null,"G0 F6000 X20 Y10","G1 F200 E10",";END OF THE START GCODE",null,null,null,null,"G1 Z0.600 F12000.000"]
[null,null,"G92 E0 ;Reset Extruder","G1 X0.4 Y20 Z0.3 F1500.0 E30 ; Draw the second line",null,null,"G0 F300 Z0.3","G92 E0",null,null,null,null,{"$f":"CONCATENATE(\"M106 S\",FanSpeed, \" ; set fan speed\")","v":"M106 S0 ; set fan speed"}]
[null,null,"G1 Z2.0 F3000 ;Move Z Axis up","G92 E0 ; Reset Extruder",{"$f":"CONCATENATE(\"M106 S\",FanSpeed, \" ; set fan speed\")","v":"M106 S0 ; set fan speed"},"G92 E0.0","M83","G1 F200 E-10.00",null,"M83 ;Relative extrusion",null,null,null,"G1 X20 Y10 F1500.00"]
[null,null,null,"G1 Z2.0 F3000 ; Move Z Axis up little to prevent scratching of Heat Bed","M204 S3000",null,null,"T0",null,null,null,null,"G0 F12000 X20.0 Y10.0 Z0.3","G1 Z0.300"]
[null,null,"G92 E0","G1 X5 Y20 Z0.3 F5000.0 ; Move over to prevent blob squish","M205 X10 Y10","G1 Z0.200 F9000.000",";END OF THE START GCODE","G92 E0",null,{"$f":"CONCATENATE(\"M106 S\",FanSpeed, \" ; set fan speed\")","v":"M106 S0 ; set fan speed"},null,null,"G1 F1500 E0","G1 E2.30000 F3600.00000"]
[null,null,null,"G92 E0","G1 F600 Z0.275",null,null,"G1 F200 E10",null,null,null,null,null,"G1 F1200.000"]
[null,null,null,null,null,null,null,"G92 E0",null,null,null,null,null,"G92 E0"]
[null,null,null,{"$f":"CONCATENATE(\"M106 S\",FanSpeed, \" ; set fan speed\")","v":"M106 S0 ; set fan speed"},"G0 F6000 X20.0 Y10.0 Z0.3","G1 E-3.20000 F4200.00000",null,"G1 F6000.0",null,"G0 F6000 X20.0 Y10.0 Z0.3",null,null,"M83"]
[null,null,{"$f":"CONCATENATE(\"M106 S\",FanSpeed, \" ; set fan speed\")","v":"M106 S0 ; set fan speed"},null,null,"G1 Z0.400 F9000.000",null,"M117 Printing...",null,null,null,null,null,"M83"]
[null,null,null,"M83 ;relative extrusion mode","M83 ;relative extrusion mode","G1 X20.0 Y10.0",null,null,null,";END OF THE START GCODE",null,null,";END OF THE START GCODE"]
[null,null,"M83 ;relative extrusion mode","G0 F6000 X20.0 Y10.0 Z0.3",null,"G1 Z0.300",null,{"$f":"CONCATENATE(\"M106 S\",FanSpeed, \" ; set fan speed\")","v":"M106 S0 ; set fan speed"},null,null,null,null,null,";End of StartGCODE"]
[null,null,"G0 F6000 X20.0 Y10.0 Z0.3",null,"M204 S1800","G1 E3.20000 F2400.00000"]
[null,null,null,";END OF THE START GCODE","M205 X8 Y8",null,null,"G0 F6000 X20.0 Y10.0 Z0.3"]
[null,null,null,null,null,null,null,"M83 ;Relative extrusion"]
[null,null,null,null,";END OF THE START GCODE",{"$f":"CONCATENATE(\"M106 S\",FanSpeed, \" ; set fan speed\")","v":"M106 S0 ; set fan speed"},null,null,null," ",null,null,null," "]
[null,null,";END OF THE START GCODE",null,null,null,null,"M1001"]
[null,null,null,null,null,";END OF THE START GCODE",null,";END OF THE START GCODE"]
[]
[null,null,null,null," "]
[null,null," ",null,null," ",null," "]
[]
[]
[]
[null,null," "," "]

{"sheet":"EndGCODE","index":9,"n_rows":48,"n_cols":14,"rows_kept":48,"cut":false,"hidden":false,"merged":[]}
["ID","ULTI2+_1","CR-10","Ender 3","AnycubicMegaS","PrusaMini","Raise3D_1nozzle","Raise3D_2nozzle","ToolChanger_T0T2","Snapmaker 2_A350","REPRAP X400","Voxel8","Ultimaker3","Artillery Genius"]
[null,null,null,null,null,null,null,null,null,null,null,null,null," "]
[null,";START OF THE END GCODE",";START OF THE END GCODE",";START OF THE END GCODE",";START OF THE END GCODE",";START OF THE END GCODE",";START OF THE END GCODE",";START OF THE END GCODE",";START OF THE END GCODE",";START OF THE END GCODE",";START OF THE END GCODE",";START OF THE END GCODE",";START OF THE END GCODE"]
[null,null,null,null,null,null," "]
[null,";G10",null,null,"G1 F2400 E-6",null,null,"M106 S0"]
[null,"M107","G1 F2700 E-5","G1 F2700 E-5","M140 S0","G1 E-5.0 F4200.00000","M106 S0","G1 F2400 E-0.5",null,null,null,null,null,";Start of EndGCODE"]
[null,null,"M140 S0","M140 S0","M204 S4000",null,"G92 E0",null,";Drop Bed","G1 F1500 E-1","M104 S0 ;extruder heater off","; end gcode","G0 F12000 X10 Y10","G1 E-2.500 F3600.00000"]
[null,"M84","M107","M107","M205 X20 Y20",null,"G91",null,"G91",null,"G90 ;absolute positioning","; shut off heaters",null,"G1 X0 Y220 F1000 ; prepare for part removal"]
[null,"M82 ;absolute extrusion mode","G91 ;Relative positioning","G91 ;Relative positioning","M107","G91 ;Relative positioning","G1 Z+10 E-5 X-20 Y-20 F9000.00","M221 T0 S100","G1 Z2 F1000","M140 S0","G28 X0 Y0 ;move X/Y to min endstops, so the head is out of the way","T0","G1 F1500 E-6.5","M107"]
[null,";End of Gcode","G1 E-2 F2700 ;Retract a bit","G1 E-2 F2700 ;Retract a bit","M104 S0 ; turn off extruder","G1 Z0.5 F2400 ;Raise Z","G90","M221 T1 S100","G90","M107","M84 ;steppers off","M104 S0.0",null,"M104 S0; turn off extruder"]
[null," ","G1 E-2 Z0.2 F2400 ;Retract and raise Z","G1 E-2 Z0.2 F2400 ;Retract and raise Z","M140 S0 ; turn off bed","G90 ;Absolute positionning","M221 T0 S100","G92 E0","; Drop off the tool","M104 S0 ;extruder heater off","M104 S0 ;extruder heater off","T1",null,"M140 S0 ; turn off bed"]
[null," ","G1 X5 Y5 F3000 ;Wipe out","G1 X5 Y5 F3000 ;Wipe out","M84 ; disable motors",null,"G92 E0","M1002","T-1","M140 S0 ;heated bed heater off (if you have it)","M140 S0 ;print bed off","; set fan","M140 S0","M84 ; disable motors"]
[null," ","G1 Z10 ;Raise Z more","G1 Z10 ;Raise Z more","M107","G1 X178 Y178 F4200 ; park print head","M1002","M221 T0 S100",null,"G90 ;absolute positioning","M107 ;fan off","M106 S0","M204 S3000","M82 ; absolute extrusion"]
[null,null,"G90 ;Absolute positionning","G90 ;Absolute positionning","G91 ;relative positioning",null,"M104 T0 S0","M221 T1 S100",null,"G92 E0 ;Reset the extruder's origin/length ; Reset extruder","M82 ;absolute extrusion mode",null,"M205 X20 Y20","M106 S0 ; turn off fan"]
[null,";Version _2.6 of the firmware can abort the print too early if the file ends",null,null,"G1 E-1 F300 ;retract the filament a bit before lifting the nozzle, to release some of the pressure","M104 S0 ; turn off temperature","M221 T0 S100","M104 T0 S0","; Park","G1 E-1 F300 ;retract the filament a bit before lifting the nozzle, to release some of the pressure",";End of Gcode","T0","M107"]
[null,";too soon. However if the file hasn't ended yet because there are comments at","G1 X0 Y300 ;Present print","G1 X0 Y235 ;Present print","G1 Z+0.5 E-5 ;move Z up a bit and retract filament even more","M140 S0 ; turn off heatbed","M104 S0","M104 T1 S0","G1 X-30 Y200 F50000","G0 Z330 ;move Z axis up to max height",null,"G91","G91 ;Relative movement","M300 S294 P200 ;D4: 294"]
[null,";the end of the file, it won't abort yet. Therefore we have to put at least 512","M106 S0 ;Turn-off fan","M106 S0 ;Turn-off fan","G28 X0 ;Y0 ;move X/Y to min endstops, so the head is out of the way","M107 ; turn off fan","M140 S0","M140 S0","M0","G28 X0 Y0 ;home the print head",null,"G1 E-5.0 F200.0","G0 F15000 X8.0 Z0.5 E-4.5 ;Wiping+material retraction","M300 S588 P200 ;D5: 588"]
[null,";bytes at the end of the g-code so that the file is not yet finished by the","M104 S0 ;Turn-off hotend","M104 S0 ;Turn-off hotend","G1 Y180 F2000","M221 S100 ; reset flow","M107","M107",null,"M82 ;absolute extrusion mode",null,"G1 Z4.0 F1500.0","G0 F10000 Z1.5 E4.5 ;Compensation for the retraction","M300 S440 P200 ;A4: 440"]
[null,";time that the motion planner gets flushed. With firmware version _3.3 this","M140 S0 ;Turn-off bed","M140 S0 ;Turn-off bed","M84 ;steppers off","M900 K0 ; reset LA","G91","G91 ;Relative positioning",null,"M104 S0",null,"G90","G90 ;Disable relative movement","M300 S392 P200 ;G4: 392"]
[null,";should be fixed, so this comment wouldn't be necessary any more. Now we have",null,null,"G90","M84 ; disable motors","G28 X0 Y0","G1 E-1 F300",null,";End of Gcode",null,"G28 Y","M82 ;absolute extrusion mode","M300 S784 P200 ;G5: 784"]
[null,";to pad this text to make precisely 512 bytes.","M84 X Y E ;Disable all steppers but Z","M84 X Y E ;Disable all steppers but Z","M300 P300 S4000","M73 P100 R0","M84","G1 Z+0.5 E-5",null,null,null,"G28 X","M104 S0","M300 S440 P200 ;A4: 440"]
[null,null,null,null,"M82 ;absolute extrusion mode",null,"G90","G90 ;Absolute positionning",null,";SETTING_1 {\"extruder_quality\": [\"[general]\\\\nversion = 4\\\\nname = Snapmaker 2.0",null,null,"M104 T1 S0","M300 S740 P200 ;F#5: 740"]
[null,";End of Gcode","M82 ;absolute extrusion mode","M82 ;absolute extrusion mode","M104 S0",null,null,"G1 X10 Y10 F6000.0",null,";SETTING_1  A350 (Normal)\\\\ndefinition = custom\\\\n\\\\n[metadata]\\\\nquality_type =",null,null,";End of Gcode","M300 S440 P200 ;A4: 440"]
[null,";SETTING_3 {\"global_quality\": \"[general]\\\\nversion = 3\\\\nname = Fine #2\\\\ndefini","M104 S0","M104 S0",";End of Gcode",null,null,"G28 X0 Y0",null,";SETTING_1  normal\\\\ntype = quality_changes\\\\nsetting_version = 16\\\\nintent_cate",null,null,";SETTING_3 {\"global_quality\": \"[general]\\\\nversion = 4\\\\nname = Fine #2\\\\ndefini"]
[null,";SETTING_3 tion = ultimaker2_plus\\\\n\\\\n[metadata]\\\\nsetting_version = 4\\\\nqualit",";End of Gcode",";End of Gcode",";SETTING_3 {\"extruder_quality\": [\"[general]\\\\nversion = 4\\\\nname = Normal 1.0 no",null,null,null,null,";SETTING_1 gory = default\\\\nposition = 0\\\\n\\\\n[values]\\\\nbottom_thickness = =top",null,null,";SETTING_3 tion = ultimaker3\\\\n\\\\n[metadata]\\\\nsetting_version = 5\\\\nquality_typ"]
[null,";SETTING_3 y_type = normal\\\\ntype = quality_changes\\\\n\\\\n[values]\\\\nadhesion_typ",";SETTING_3 {\"extruder_quality\": [\"[general]\\\\nversion = 4\\\\nname = Standard Qual",";SETTING_3 {\"global_quality\": \"[general]\\\\nversion = 4\\\\nname = Standard Quality",";SETTING_3 zzle vase mode\\\\ndefinition = anycubic_i3_mega\\\\n\\\\n[metadata]\\\\ninte",null,null,null,null,";SETTING_1 _bottom_thickness\\\\nbrim_width = 10\\\\ninfill_before_walls = False\\\\ni",null,null,";SETTING_3 e = normal\\\\ntype = quality_changes\\\\n\\\\n[values]\\\\nadhesion_type = b"]
[null,";SETTING_3 e = none\\\\nlayer_height = 0.2\\\\nlayer_height_0 = 0.3\\\\n\\\\n\", \"extrude",";SETTING_3 ity #2\\\\ndefinition = creality_cr10\\\\n\\\\n[metadata]\\\\nquality_type = ",";SETTING_3  #2\\\\ndefinition = creality_ender3\\\\n\\\\n[metadata]\\\\nquality_type = s",";SETTING_3 nt_category = default\\\\nquality_type = normal\\\\nposition = 0\\\\nsettin",null,null,"M82 ;absolute extrusion mode",null,";SETTING_1 nfill_pattern = gyroid\\\\ninfill_sparse_density = 15\\\\nmaterial_flow =",null,null,";SETTING_3 rim\\\\nlayer_height_0 = 0.1\\\\nprime_tower_circular = False\\\\n\\\\n\", \"ex"]
[null,";SETTING_3 r_quality\": [\"[general]\\\\nversion = 3\\\\nname = Fine #2\\\\ndefinition =",";SETTING_3 standard\\\\ntype = quality_changes\\\\nposition = 0\\\\nsetting_version = ",";SETTING_3 tandard\\\\ntype = quality_changes\\\\nsetting_version = 16\\\\n\\\\n[values]",";SETTING_3 g_version = 14\\\\ntype = quality_changes\\\\n\\\\n[values]\\\\ninfill_sparse",null,null,null,null,";SETTING_1  100\\\\nmaterial_flow_layer_0 = =material_flow\\\\nmaterial_print_temper",null,null,";SETTING_3 truder_quality\": [\"[general]\\\\nversion = 4\\\\nname = Fine #2\\\\ndefinit"]
[null,";SETTING_3  ultimaker2_plus\\\\n\\\\n[metadata]\\\\nsetting_version = 4\\\\nquality_type",";SETTING_3 15\\\\n\\\\n[values]\\\\nmaterial_print_temperature = 210\\\\n\\\\n\"], \"global_",";SETTING_3 \\\\nadhesion_type = brim\\\\nlayer_height = 0.25\\\\nmaterial_bed_temperat",";SETTING_3 _density = 5\\\\nline_width = 1.0\\\\nmaterial_print_temperature = 220\\\\n",null,null,null,null,";SETTING_1 ature = 200\\\\nmaterial_print_temperature_layer_0 = =material_print_te",null,null,";SETTING_3 ion = ultimaker3\\\\n\\\\n[metadata]\\\\nsetting_version = 5\\\\nposition = 0"]
[null,";SETTING_3  = normal\\\\nposition = 0\\\\ntype = quality_changes\\\\n\\\\n[values]\\\\nlin",";SETTING_3 quality\": \"[general]\\\\nversion = 4\\\\nname = Standard Quality #2\\\\ndef",";SETTING_3 ure = 60\\\\n\\\\n\", \"extruder_quality\": [\"[general]\\\\nversion = 4\\\\nname",";SETTING_3 skirt_brim_speed = 20\\\\nspeed_layer_0 = 10\\\\nspeed_print = 20\\\\nspeed",null,null,"M84 ;steppers off",null,";SETTING_1 mperature\\\\noptimize_wall_printing_order = True\\\\nretraction_amount =",null,null,";SETTING_3 \\\\nquality_type = normal\\\\ntype = quality_changes\\\\n\\\\n[values]\\\\ndef"]
[null,";SETTING_3 e_width = 0.4\\\\nspeed_print = 25\\\\n\\\\n\"]}",";SETTING_3 inition = creality_cr10\\\\n\\\\n[metadata]\\\\nquality_type = standard\\\\nt",";SETTING_3  = Standard Quality #2\\\\ndefinition = creality_ender3\\\\n\\\\n[metadata]",";SETTING_3 _topbottom = 60\\\\nspeed_wall_0 = 30\\\\nspeed_wall_x = 30\\\\ntop_bottom_",null,null,"G90 ;Absolute coordinates",null,";SETTING_1  0.5\\\\nretraction_combing_max_distance = 30\\\\nretraction_hop_enabled ",null,null,";SETTING_3 ault_material_print_temperature = 190\\\\ninfill_line_width = 0.13\\\\nin"]
[null,null,";SETTING_3 ype = quality_changes\\\\nsetting_version = 15\\\\n\\\\n[values]\\\\nmaterial",";SETTING_3 \\\\nposition = 0\\\\nquality_type = standard\\\\ntype = quality_changes\\\\n",";SETTING_3 pattern = lines\\\\ntop_bottom_thickness = 0.8\\\\nwall_thickness = 0.8\\\\",null,null,null,null,";SETTING_1 = True\\\\nretraction_speed = 25\\\\nskirt_gap = 5\\\\nskirt_line_count = 4",null,null,";SETTING_3 fill_sparse_density = 100\\\\ninitial_layer_line_width_factor = 100\\\\nl"]
[null,"; END OF END CODE",";SETTING_3 _bed_temperature = 65\\\\n\\\\n\"}",";SETTING_3 setting_version = 16\\\\n\\\\n[values]\\\\ninfill_pattern = grid\\\\n\\\\n\"]}",";SETTING_3 n\\\\n\"], \"global_quality\": \"[general]\\\\nversion = 4\\\\nname = Normal 1.",null,null,null,null,";SETTING_1 \\\\nspeed_layer_0 = 10\\\\nspeed_print = 60\\\\nspeed_support = 30\\\\nspeed",null,null,";SETTING_3 ine_width = 0.13\\\\nmaterial_final_print_temperature = 190\\\\nmaterial_"]
[null,null,null,null,";SETTING_3 0 nozzle vase mode\\\\ndefinition = anycubic_i3_mega\\\\n\\\\n[metadata]\\\\n",null,null,null,null,";SETTING_1 _topbottom = 50\\\\nspeed_travel = 100\\\\nspeed_travel_layer_0 = 40\\\\nsp",null,null,";SETTING_3 initial_print_temperature = 190\\\\nmaterial_print_temperature_layer_0 "]
[null,null,null,null,";SETTING_3 quality_type = normal\\\\nsetting_version = 14\\\\ntype = quality_changes",null,null,null,null,";SETTING_1 eed_wall = 50\\\\nspeed_wall_0 = 30\\\\nspeed_wall_x = 60\\\\nsupport_angle",null,null,";SETTING_3 = 190\\\\nskirt_brim_speed = 35\\\\nspeed_print = 6.5\\\\nspeed_topbottom ="]
[null,null,null,null,";SETTING_3 \\\\n\\\\n[values]\\\\nmagic_spiralize = True\\\\nmaterial_bed_temperature = ",null,null,null,null,";SETTING_1  = 60\\\\nsupport_bottom_enable = False\\\\nsupport_brim_enable = True\\\\n",null,null,";SETTING_3  6.5\\\\nspeed_travel = 200\\\\nspeed_travel_layer_0 = 200\\\\nspeed_wall ="]
[null,null,null,null,";SETTING_3 65\\\\nsupport_enable = False\\\\n\\\\n\"}",null,null,null,null,";SETTING_1 support_infill_rate = 20\\\\nsupport_interface_enable = True\\\\nsupport_",null,null,";SETTING_3  6.5\\\\nspeed_wall_0 = 6.5\\\\nwall_line_width_x = 0.13\\\\nwall_thickness"]
[null,null,null,null,null,null,null,null,null,";SETTING_1 tree_branch_distance = 2\\\\nsupport_xy_distance = 0.7\\\\nsupport_z_dist",null,null,";SETTING_3  = 0.1\\\\n\\\\n\", \"[general]\\\\nversion = 4\\\\nname = Fine #2\\\\ndefinition"]
[null,null,null,null,null,null,null,null,null,";SETTING_1 ance = 0.4\\\\ntop_bottom_thickness = 0.8\\\\ntop_thickness = 1\\\\ntravel_",null,null,";SETTING_3  = ultimaker3\\\\n\\\\n[metadata]\\\\nsetting_version = 5\\\\nposition = 1\\\\n"]
[null,null,null,null,null,null,null,null,null,";SETTING_1 avoid_supports = True\\\\nwall_thickness = 1\\\\nxy_offset = 0\\\\nz_seam_t",null,null,";SETTING_3 quality_type = normal\\\\ntype = quality_changes\\\\n\\\\n[values]\\\\ninfill"]
[null,null,null,null,null,null,null,null,null,";SETTING_1 ype = sharpest_corner\\\\nz_seam_x = =machine_width / 2\\\\nz_seam_y = =m",null,null,";SETTING_3 _sparse_density = 100\\\\n\\\\n\"]}"]
[null,null,null,null,null,null,null,null,null,";SETTING_1 achine_depth * 3\\\\n\\\\n\"], \"global_quality\": \"[general]\\\\nversion = 4\\"]
[null,null,null,null,null,null,null,null,null,";SETTING_1 \\nname = Snapmaker 2.0 A350 (Normal)\\\\ndefinition = custom\\\\n\\\\n[meta"]
[null,null,null,null,null,null,null,null,null,";SETTING_1 data]\\\\nquality_type = normal\\\\ntype = quality_changes\\\\nsetting_vers"]
[null,null,null,null,null,null,null,null,null,";SETTING_1 ion = 16\\\\nintent_category = default\\\\n\\\\n[values]\\\\nadhesion_type = "]
[null,null,null,null,null,null,null,null,null,";SETTING_1 skirt\\\\nlayer_height = 0.16\\\\nmaterial_bed_temperature = 60\\\\nretract"]
[null,null,null,null,null,null,null,null,null,";SETTING_1 ion_combing = infill\\\\nsupport_enable = True\\\\nsupport_type = everywh"]
[null,null,null,null,null,null,null,null,null,";SETTING_1 ere\\\\n\\\\n\"}"]

{"sheet":"ToolGCODE","index":10,"n_rows":85,"n_cols":16,"rows_kept":85,"cut":false,"hidden":false,"merged":[]}
["ID","Default","Raise3D_2nozzle","Tool changer"]
[]
["Tool0 activate","Tool0 activate","Tool0 activate","Tool0 activate","Tool0 activate","Tool0 activate","Tool0 activate","Tool0 activate","Tool0 activate","Tool0 activate","Tool0 activate","Tool0 activate","Tool0 activate","Tool0 activate","Tool0 activate","Tool0 activate"]
[null,";T0A1","T0","T0"]
[null,";T0A2","G1 F1200 E10.0000","G0 F6000 X-10 Y10.0 Z10"]
[null,";T0A3",null,"G1 E10 F250"]
[null,";T0A4"]
[null,";T0A5"]
[]
[]
[]
[]
[]
["Tool0 deactivate","Tool0 deactivate","Tool0 deactivate","Tool0 deactivate","Tool0 deactivate","Tool0 deactivate","Tool0 deactivate","Tool0 deactivate","Tool0 deactivate","Tool0 deactivate","Tool0 deactivate","Tool0 deactivate","Tool0 deactivate","Tool0 deactivate","Tool0 deactivate","Tool0 deactivate"]
[null,";T0D1","G92 E0"]
[null,";T0D2","G1 F1200 E-10.0000"]
[null,";T0D3"]
[null,";T0D4"]
[null,";T0D5"]
[]
[]
[]
[]
[]
["Tool1 activate","Tool1 activate","Tool1 activate","Tool1 activate","Tool1 activate","Tool1 activate","Tool1 activate","Tool1 activate","Tool1 activate","Tool1 activate","Tool1 activate","Tool1 activate","Tool1 activate","Tool1 activate","Tool1 activate","Tool1 activate"]
[null,";T1A1","T1","T1"]
[null,";T1A2","G1 F1200 E10.0000","G0 F6000 X10 Y10.0 Z10"]
[null,";T1A3"]
[null,";T1A4"]
[null,";T1A5"]
[]
[]
[]
[]
[]
["Tool1 deactivate","Tool1 deactivate","Tool1 deactivate","Tool1 deactivate","Tool1 deactivate","Tool1 deactivate","Tool1 deactivate","Tool1 deactivate","Tool1 deactivate","Tool1 deactivate","Tool1 deactivate","Tool1 deactivate","Tool1 deactivate","Tool1 deactivate","Tool1 deactivate","Tool1 deactivate"]
[null,";T1D1","G92 E0"]
[null,";T1D2","G1 F1200 E-10.0000"]
[null,";T1D3"]
[null,";T1D4"]
[null,";T1D5"]
[]
[]
[]
[]
[]
["Tool2 activate","Tool2 activate","Tool2 activate","Tool2 activate","Tool2 activate","Tool2 activate","Tool2 activate","Tool2 activate","Tool2 activate","Tool2 activate","Tool2 activate","Tool2 activate","Tool2 activate","Tool2 activate","Tool2 activate","Tool2 activate"]
[null,";T2A1",null,"T2"]
[null,";T2A2",null,"G0 F6000 X320 Y10.0 Z10"]
[null,";T2A3",null,"G1 E10 F250"]
[null,";T2A4"]
[null,";T2A5"]
[]
[]
[]
[]
[]
["Tool2 deactivate","Tool2 deactivate","Tool2 deactivate","Tool2 deactivate","Tool2 deactivate","Tool2 deactivate","Tool2 deactivate","Tool2 deactivate","Tool2 deactivate","Tool2 deactivate","Tool2 deactivate","Tool2 deactivate","Tool2 deactivate","Tool2 deactivate","Tool2 deactivate","Tool2 deactivate"]
[null,";T2D1"]
[null,";T2D2"]
[null,";T2D3"]
[null,";T2D4"]
[null,";T2D5"]
[]
[]
[]
[]
[]
["Tool3 activate","Tool3 activate","Tool3 activate","Tool3 activate","Tool3 activate","Tool3 activate","Tool3 activate","Tool3 activate","Tool3 activate","Tool3 activate","Tool3 activate","Tool3 activate","Tool3 activate","Tool3 activate","Tool3 activate","Tool3 activate"]
[null,";T3A1"]
[null,";T3A2"]
[null,";T3A3"]
[null,";T3A4"]
[null,";T3A5"]
[]
[]
[]
[]
[]
["Tool3 deactivate","Tool3 deactivate","Tool3 deactivate","Tool3 deactivate","Tool3 deactivate","Tool3 deactivate","Tool3 deactivate","Tool3 deactivate","Tool3 deactivate","Tool3 deactivate","Tool3 deactivate","Tool3 deactivate","Tool3 deactivate","Tool3 deactivate","Tool3 deactivate","Tool3 deactivate"]
[null,";T3D1"]
[null,";T3D2"]
[null,";T3D3"]
[null,";T3D4"]
[null,";T3D5"]

{"sheet":"GCODE","index":11,"n_rows":906,"n_cols":1,"rows_kept":906,"cut":false,"hidden":false,"merged":[]}
[]
[";FLAVOR:UltiGCode"]
[";TIME:5381"]
[";MATERIAL:3241"]
[";MATERIAL2:0"]
[";NOZZLE_DIAMETER:0.4"]
[";GCode generated with FullControl GCode Designer software - contact Andy Gleadall (a.gleadall@lboro.ac.uk) for more information"]
["M82 ;absolute extrusion mode"]
["G28 ;Home"]
["G1 Z15.0 F6000 ;Move the platform down 15mm"]
[";Prime the extruder"]
["G92 E0"]
["G1 F200 E3"]
["G92 E0"]
["M83 ;relative extrusion mode"]
["G10"]
[";LAYER_COUNT:330"]
[";LAYER:0"]
[]
["M106"]
[]
["M140 S60"]
["M104 S210"]
["M109 S210"]
["M190 S60"]
[]
["M106 S0 ; set fan speed"]
[]
["G0 F4320 X20.0 Y10.0 Z0.3"]
[]
["G11"]
[" "]
[";END OF THE START GCODE"]
[" "]
["G0 F9000 X50.0 Y50.0 Z0.2"]
["G1 F1000 Y150.0 E10.0"]
["G1 X150.0 E10.0"]
["G1 Y50.0 E10.0"]
["G1 X50.0 E10.0"]
["G1 Y55.0 E0.5"]
["G1 X150.0 E10.0"]
["G1 Y60.0 E0.5"]
["G1 X50.0 E10.0"]
["G1 Y65.0 E0.5"]
["G1 X150.0 E10.0"]
["G1 Y70.0 E0.5"]
["G1 X50.0 E10.0"]
["G1 Y75.0 E0.5"]
["G1 X150.0 E10.0"]
["G1 Y80.0 E0.5"]
["G1 X50.0 E10.0"]
["G1 Y85.0 E0.5"]
["G1 X150.0 E10.0"]
["G1 Y90.0 E0.5"]
["G1 X50.0 E10.0"]
["G1 Y95.0 E0.5"]
["G1 X150.0 E10.0"]
["G1 Y100.0 E0.5"]
["G1 X50.0 E10.0"]
["G1 Y105.0 E0.5"]
["G1 X150.0 E10.0"]
["G1 Y110.0 E0.5"]
["G1 X50.0 E10.0"]
["G1 Y115.0 E0.5"]
["G1 X150.0 E10.0"]
["G1 Y120.0 E0.5"]
["G1 X50.0 E10.0"]
["G1 Y125.0 E0.5"]
["G1 X150.0 E10.0"]
["G1 Y130.0 E0.5"]
["G1 X50.0 E10.0"]
["G1 Y135.0 E0.5"]
["G1 X150.0 E10.0"]
["G1 Y140.0 E0.5"]
["G1 X50.0 E10.0"]
["G1 Y145.0 E0.5"]
["G1 X150.0 E10.0"]
["G1 Y150.0 E0.5"]
["G0 F9000 Z0.3"]
["G1 F1000 X145.0 E0.5"]
["G1 Y50.0 E10.0"]
["G1 X140.0 E0.5"]
["G1 Y150.0 E10.0"]
["G1 X135.0 E0.5"]
["G1 Y50.0 E10.0"]
["G1 X130.0 E0.5"]
["G1 Y150.0 E10.0"]
["G1 X125.0 E0.5"]
["G1 Y50.0 E10.0"]
["G1 X120.0 E0.5"]
["G1 Y150.0 E10.0"]
["G1 X115.0 E0.5"]
["G1 Y50.0 E10.0"]
["G1 X110.0 E0.5"]
["G1 Y150.0 E10.0"]
["G1 X105.0 E0.5"]
["G1 Y50.0 E10.0"]
["G1 X100.0 E0.5"]
["G1 Y150.0 E10.0"]
["G1 X95.0 E0.5"]
["G1 Y50.0 E10.0"]
["G1 X90.0 E0.5"]
["G1 Y150.0 E10.0"]
["G1 X85.0 E0.5"]
["G1 Y50.0 E10.0"]
["G1 X80.0 E0.5"]
["G1 Y150.0 E10.0"]
["G1 X75.0 E0.5"]
["G1 Y50.0 E10.0"]
["G1 X70.0 E0.5"]
["G1 Y150.0 E10.0"]
["G1 X65.0 E0.5"]
["G1 Y50.0 E10.0"]
["G1 X60.0 E0.5"]
["G1 Y150.0 E10.0"]
["G1 X55.0 E0.5"]
["G1 Y50.0 E10.0"]
["G1 X50.0 E0.5"]
["G0 F9000 Z0.4"]
["G1 F1000 Y150.0 E10.0"]
["G1 X150.0 E10.0"]
["G1 Y50.0 E10.0"]
["G1 X50.0 E10.0"]
["G1 Y55.0 E0.5"]
["G1 X150.0 E10.0"]
["G1 Y60.0 E0.5"]
["G1 X50.0 E10.0"]
["G1 Y65.0 E0.5"]
["G1 X150.0 E10.0"]
["G1 Y70.0 E0.5"]
["G1 X50.0 E10.0"]
["G1 Y75.0 E0.5"]
["G1 X150.0 E10.0"]
["G1 Y80.0 E0.5"]
["G1 X50.0 E10.0"]
["G1 Y85.0 E0.5"]
["G1 X150.0 E10.0"]
["G1 Y90.0 E0.5"]
["G1 X50.0 E10.0"]
["G1 Y95.0 E0.5"]
["G1 X150.0 E10.0"]
["G1 Y100.0 E0.5"]
["G1 X50.0 E10.0"]
["G1 Y105.0 E0.5"]
["G1 X150.0 E10.0"]
["G1 Y110.0 E0.5"]
["G1 X50.0 E10.0"]
["G1 Y115.0 E0.5"]
["G1 X150.0 E10.0"]
["G1 Y120.0 E0.5"]
["G1 X50.0 E10.0"]
["G1 Y125.0 E0.5"]
["G1 X150.0 E10.0"]
["G1 Y130.0 E0.5"]
["G1 X50.0 E10.0"]
["G1 Y135.0 E0.5"]
["G1 X150.0 E10.0"]
["G1 Y140.0 E0.5"]
["G1 X50.0 E10.0"]
["G1 Y145.0 E0.5"]
["G1 X150.0 E10.0"]
["G1 Y150.0 E0.5"]
["G0 F9000 Z0.5"]
["G1 F1000 X145.0 E0.5"]
["G1 Y50.0 E10.0"]
["G1 X140.0 E0.5"]
["G1 Y150.0 E10.0"]
["G1 X135.0 E0.5"]
["G1 Y50.0 E10.0"]
["G1 X130.0 E0.5"]
["G1 Y150.0 E10.0"]
["G1 X125.0 E0.5"]
["G1 Y50.0 E10.0"]
["G1 X120.0 E0.5"]
["G1 Y150.0 E10.0"]
["G1 X115.0 E0.5"]
["G1 Y50.0 E10.0"]
["G1 X110.0 E0.5"]
["G1 Y150.0 E10.0"]
["G1 X105.0 E0.5"]
["G1 Y50.0 E10.0"]
["G1 X100.0 E0.5"]
["G1 Y150.0 E10.0"]
["G1 X95.0 E0.5"]
["G1 Y50.0 E10.0"]
["G1 X90.0 E0.5"]
["G1 Y150.0 E10.0"]
["G1 X85.0 E0.5"]
["G1 Y50.0 E10.0"]
["G1 X80.0 E0.5"]
["G1 Y150.0 E10.0"]
["G1 X75.0 E0.5"]
["G1 Y50.0 E10.0"]
["G1 X70.0 E0.5"]
["G1 Y150.0 E10.0"]
["G1 X65.0 E0.5"]
["G1 Y50.0 E10.0"]
["G1 X60.0 E0.5"]
["G1 Y150.0 E10.0"]
["G1 X55.0 E0.5"]
["G1 Y50.0 E10.0"]
["G1 X50.0 E0.5"]
["G0 F9000 Z0.6"]
["G1 F1000 Y150.0 E10.0"]
["G1 X150.0 E10.0"]
["G1 Y50.0 E10.0"]
["G1 X50.0 E10.0"]
["G1 Y55.0 E0.5"]
["G1 X150.0 E10.0"]
["G1 Y60.0 E0.5"]
["G1 X50.0 E10.0"]
["G1 Y65.0 E0.5"]
["G1 X150.0 E10.0"]
["G1 Y70.0 E0.5"]
["G1 X50.0 E10.0"]
["G1 Y75.0 E0.5"]
["G1 X150.0 E10.0"]
["G1 Y80.0 E0.5"]
["G1 X50.0 E10.0"]
["G1 Y85.0 E0.5"]
["G1 X150.0 E10.0"]
["G1 Y90.0 E0.5"]
["G1 X50.0 E10.0"]
["G1 Y95.0 E0.5"]
["G1 X150.0 E10.0"]
["G1 Y100.0 E0.5"]
["G1 X50.0 E10.0"]
["G1 Y105.0 E0.5"]
["G1 X150.0 E10.0"]
["G1 Y110.0 E0.5"]
["G1 X50.0 E10.0"]
["G1 Y115.0 E0.5"]
["G1 X150.0 E10.0"]
["G1 Y120.0 E0.5"]
["G1 X50.0 E10.0"]
["G1 Y125.0 E0.5"]
["G1 X150.0 E10.0"]
["G1 Y130.0 E0.5"]
["G1 X50.0 E10.0"]
["G1 Y135.0 E0.5"]
["G1 X150.0 E10.0"]
["G1 Y140.0 E0.5"]
["G1 X50.0 E10.0"]
["G1 Y145.0 E0.5"]
["G1 X150.0 E10.0"]
["G1 Y150.0 E0.5"]
["G0 F9000 Z0.7"]
["G1 F1000 X145.0 E0.5"]
["G1 Y50.0 E10.0"]
["G1 X140.0 E0.5"]
["G1 Y150.0 E10.0"]
["G1 X135.0 E0.5"]
["G1 Y50.0 E10.0"]
["G1 X130.0 E0.5"]
["G1 Y150.0 E10.0"]
["G1 X125.0 E0.5"]
["G1 Y50.0 E10.0"]
["G1 X120.0 E0.5"]
["G1 Y150.0 E10.0"]
["G1 X115.0 E0.5"]
["G1 Y50.0 E10.0"]
["G1 X110.0 E0.5"]
["G1 Y150.0 E10.0"]
["G1 X105.0 E0.5"]
["G1 Y50.0 E10.0"]
["G1 X100.0 E0.5"]
["G1 Y150.0 E10.0"]
["G1 X95.0 E0.5"]
["G1 Y50.0 E10.0"]
["G1 X90.0 E0.5"]
["G1 Y150.0 E10.0"]
["G1 X85.0 E0.5"]
["G1 Y50.0 E10.0"]
["G1 X80.0 E0.5"]
["G1 Y150.0 E10.0"]
["G1 X75.0 E0.5"]
["G1 Y50.0 E10.0"]
["G1 X70.0 E0.5"]
["G1 Y150.0 E10.0"]
["G1 X65.0 E0.5"]
["G1 Y50.0 E10.0"]
["G1 X60.0 E0.5"]
["G1 Y150.0 E10.0"]
["G1 X55.0 E0.5"]
["G1 Y50.0 E10.0"]
["G1 X50.0 E0.5"]
["G0 F9000 Z0.8"]
["G1 F1000 Y150.0 E10.0"]
["G1 X150.0 E10.0"]
["G1 Y50.0 E10.0"]
["G1 X50.0 E10.0"]
["G1 Y55.0 E0.5"]
["G1 X150.0 E10.0"]
["G1 Y60.0 E0.5"]
["G1 X50.0 E10.0"]
["G1 Y65.0 E0.5"]
["G1 X150.0 E10.0"]
["G1 Y70.0 E0.5"]
["G1 X50.0 E10.0"]
["G1 Y75.0 E0.5"]
["G1 X150.0 E10.0"]
["G1 Y80.0 E0.5"]
["G1 X50.0 E10.0"]
["G1 Y85.0 E0.5"]
["G1 X150.0 E10.0"]
["G1 Y90.0 E0.5"]
["G1 X50.0 E10.0"]
["G1 Y95.0 E0.5"]
["G1 X150.0 E10.0"]
["G1 Y100.0 E0.5"]
["G1 X50.0 E10.0"]
["G1 Y105.0 E0.5"]
["G1 X150.0 E10.0"]
["G1 Y110.0 E0.5"]
["G1 X50.0 E10.0"]
["G1 Y115.0 E0.5"]
["G1 X150.0 E10.0"]
["G1 Y120.0 E0.5"]
["G1 X50.0 E10.0"]
["G1 Y125.0 E0.5"]
["G1 X150.0 E10.0"]
["G1 Y130.0 E0.5"]
["G1 X50.0 E10.0"]
["G1 Y135.0 E0.5"]
["G1 X150.0 E10.0"]
["G1 Y140.0 E0.5"]
["G1 X50.0 E10.0"]
["G1 Y145.0 E0.5"]
["G1 X150.0 E10.0"]
["G1 Y150.0 E0.5"]
["G0 F9000 Z0.9"]
["G1 F1000 X145.0 E0.5"]
["G1 Y50.0 E10.0"]
["G1 X140.0 E0.5"]
["G1 Y150.0 E10.0"]
["G1 X135.0 E0.5"]
["G1 Y50.0 E10.0"]
["G1 X130.0 E0.5"]
["G1 Y150.0 E10.0"]
["G1 X125.0 E0.5"]
["G1 Y50.0 E10.0"]
["G1 X120.0 E0.5"]
["G1 Y150.0 E10.0"]
["G1 X115.0 E0.5"]
["G1 Y50.0 E10.0"]
["G1 X110.0 E0.5"]
["G1 Y150.0 E10.0"]
["G1 X105.0 E0.5"]
["G1 Y50.0 E10.0"]
["G1 X100.0 E0.5"]
["G1 Y150.0 E10.0"]
["G1 X95.0 E0.5"]
["G1 Y50.0 E10.0"]
["G1 X90.0 E0.5"]
["G1 Y150.0 E10.0"]
["G1 X85.0 E0.5"]
["G1 Y50.0 E10.0"]
["G1 X80.0 E0.5"]
["G1 Y150.0 E10.0"]
["G1 X75.0 E0.5"]
["G1 Y50.0 E10.0"]
["G1 X70.0 E0.5"]
["G1 Y150.0 E10.0"]
["G1 X65.0 E0.5"]
["G1 Y50.0 E10.0"]
["G1 X60.0 E0.5"]
["G1 Y150.0 E10.0"]
["G1 X55.0 E0.5"]
["G1 Y50.0 E10.0"]
["G1 X50.0 E0.5"]
["G0 F9000 Z1.0"]
["G1 F1000 Y150.0 E10.0"]
["G1 X150.0 E10.0"]
["G1 Y50.0 E10.0"]
["G1 X50.0 E10.0"]
["G1 Y55.0 E0.5"]
["G1 X150.0 E10.0"]
["G1 Y60.0 E0.5"]
["G1 X50.0 E10.0"]
["G1 Y65.0 E0.5"]
["G1 X150.0 E10.0"]
["G1 Y70.0 E0.5"]
["G1 X50.0 E10.0"]
["G1 Y75.0 E0.5"]
["G1 X150.0 E10.0"]
["G1 Y80.0 E0.5"]
["G1 X50.0 E10.0"]
["G1 Y85.0 E0.5"]
["G1 X150.0 E10.0"]
["G1 Y90.0 E0.5"]
["G1 X50.0 E10.0"]
["G1 Y95.0 E0.5"]
["G1 X150.0 E10.0"]
["G1 Y100.0 E0.5"]
["G1 X50.0 E10.0"]
["G1 Y105.0 E0.5"]
["G1 X150.0 E10.0"]
["G1 Y110.0 E0.5"]
["G1 X50.0 E10.0"]
["G1 Y115.0 E0.5"]
["G1 X150.0 E10.0"]
["G1 Y120.0 E0.5"]
["G1 X50.0 E10.0"]
["G1 Y125.0 E0.5"]
["G1 X150.0 E10.0"]
["G1 Y130.0 E0.5"]
["G1 X50.0 E10.0"]
["G1 Y135.0 E0.5"]
["G1 X150.0 E10.0"]
["G1 Y140.0 E0.5"]
["G1 X50.0 E10.0"]
["G1 Y145.0 E0.5"]
["G1 X150.0 E10.0"]
["G1 Y150.0 E0.5"]
["G0 F9000 Z1.1"]
["G1 F1000 X145.0 E0.5"]
["G1 Y50.0 E10.0"]
["G1 X140.0 E0.5"]
["G1 Y150.0 E10.0"]
["G1 X135.0 E0.5"]
["G1 Y50.0 E10.0"]
["G1 X130.0 E0.5"]
["G1 Y150.0 E10.0"]
["G1 X125.0 E0.5"]
["G1 Y50.0 E10.0"]
["G1 X120.0 E0.5"]
["G1 Y150.0 E10.0"]
["G1 X115.0 E0.5"]
["G1 Y50.0 E10.0"]
["G1 X110.0 E0.5"]
["G1 Y150.0 E10.0"]
["G1 X105.0 E0.5"]
["G1 Y50.0 E10.0"]
["G1 X100.0 E0.5"]
["G1 Y150.0 E10.0"]
["G1 X95.0 E0.5"]
["G1 Y50.0 E10.0"]
["G1 X90.0 E0.5"]
["G1 Y150.0 E10.0"]
["G1 X85.0 E0.5"]
["G1 Y50.0 E10.0"]
["G1 X80.0 E0.5"]
["G1 Y150.0 E10.0"]
["G1 X75.0 E0.5"]
["G1 Y50.0 E10.0"]
["G1 X70.0 E0.5"]
["G1 Y150.0 E10.0"]
["G1 X65.0 E0.5"]
["G1 Y50.0 E10.0"]
["G1 X60.0 E0.5"]
["G1 Y150.0 E10.0"]
["G1 X55.0 E0.5"]
["G1 Y50.0 E10.0"]
["G1 X50.0 E0.5"]
["G0 F9000 Z1.2"]
["G1 F1000 Y150.0 E10.0"]
["G1 X150.0 E10.0"]
["G1 Y50.0 E10.0"]
["G1 X50.0 E10.0"]
["G1 Y55.0 E0.5"]
["G1 X150.0 E10.0"]
["G1 Y60.0 E0.5"]
["G1 X50.0 E10.0"]
["G1 Y65.0 E0.5"]
["G1 X150.0 E10.0"]
["G1 Y70.0 E0.5"]
["G1 X50.0 E10.0"]
["G1 Y75.0 E0.5"]
["G1 X150.0 E10.0"]
["G1 Y80.0 E0.5"]
["G1 X50.0 E10.0"]
["G1 Y85.0 E0.5"]
["G1 X150.0 E10.0"]
["G1 Y90.0 E0.5"]
["G1 X50.0 E10.0"]
["G1 Y95.0 E0.5"]
["G1 X150.0 E10.0"]
["G1 Y100.0 E0.5"]
["G1 X50.0 E10.0"]
["G1 Y105.0 E0.5"]
["G1 X150.0 E10.0"]
["G1 Y110.0 E0.5"]
["G1 X50.0 E10.0"]
["G1 Y115.0 E0.5"]
["G1 X150.0 E10.0"]
["G1 Y120.0 E0.5"]
["G1 X50.0 E10.0"]
["G1 Y125.0 E0.5"]
["G1 X150.0 E10.0"]
["G1 Y130.0 E0.5"]
["G1 X50.0 E10.0"]
["G1 Y135.0 E0.5"]
["G1 X150.0 E10.0"]
["G1 Y140.0 E0.5"]
["G1 X50.0 E10.0"]
["G1 Y145.0 E0.5"]
["G1 X150.0 E10.0"]
["G1 Y150.0 E0.5"]
["G0 F9000 Z1.3"]
["G1 F1000 X145.0 E0.5"]
["G1 Y50.0 E10.0"]
["G1 X140.0 E0.5"]
["G1 Y150.0 E10.0"]
["G1 X135.0 E0.5"]
["G1 Y50.0 E10.0"]
["G1 X130.0 E0.5"]
["G1 Y150.0 E10.0"]
["G1 X125.0 E0.5"]
["G1 Y50.0 E10.0"]
["G1 X120.0 E0.5"]
["G1 Y150.0 E10.0"]
["G1 X115.0 E0.5"]
["G1 Y50.0 E10.0"]
["G1 X110.0 E0.5"]
["G1 Y150.0 E10.0"]
["G1 X105.0 E0.5"]
["G1 Y50.0 E10.0"]
["G1 X100.0 E0.5"]
["G1 Y150.0 E10.0"]
["G1 X95.0 E0.5"]
["G1 Y50.0 E10.0"]
["G1 X90.0 E0.5"]
["G1 Y150.0 E10.0"]
["G1 X85.0 E0.5"]
["G1 Y50.0 E10.0"]
["G1 X80.0 E0.5"]
["G1 Y150.0 E10.0"]
["G1 X75.0 E0.5"]
["G1 Y50.0 E10.0"]
["G1 X70.0 E0.5"]
["G1 Y150.0 E10.0"]
["G1 X65.0 E0.5"]
["G1 Y50.0 E10.0"]
["G1 X60.0 E0.5"]
["G1 Y150.0 E10.0"]
["G1 X55.0 E0.5"]
["G1 Y50.0 E10.0"]
["G1 X50.0 E0.5"]
["G0 F9000 Z1.4"]
["G1 F1000 Y150.0 E10.0"]
["G1 X150.0 E10.0"]
["G1 Y50.0 E10.0"]
["G1 X50.0 E10.0"]
["G1 Y55.0 E0.5"]
["G1 X150.0 E10.0"]
["G1 Y60.0 E0.5"]
["G1 X50.0 E10.0"]
["G1 Y65.0 E0.5"]
["G1 X150.0 E10.0"]
["G1 Y70.0 E0.5"]
["G1 X50.0 E10.0"]
["G1 Y75.0 E0.5"]
["G1 X150.0 E10.0"]
["G1 Y80.0 E0.5"]
["G1 X50.0 E10.0"]
["G1 Y85.0 E0.5"]
["G1 X150.0 E10.0"]
["G1 Y90.0 E0.5"]
["G1 X50.0 E10.0"]
["G1 Y95.0 E0.5"]
["G1 X150.0 E10.0"]
["G1 Y100.0 E0.5"]
["G1 X50.0 E10.0"]
["G1 Y105.0 E0.5"]
["G1 X150.0 E10.0"]
["G1 Y110.0 E0.5"]
["G1 X50.0 E10.0"]
["G1 Y115.0 E0.5"]
["G1 X150.0 E10.0"]
["G1 Y120.0 E0.5"]
["G1 X50.0 E10.0"]
["G1 Y125.0 E0.5"]
["G1 X150.0 E10.0"]
["G1 Y130.0 E0.5"]
["G1 X50.0 E10.0"]
["G1 Y135.0 E0.5"]
["G1 X150.0 E10.0"]
["G1 Y140.0 E0.5"]
["G1 X50.0 E10.0"]
["G1 Y145.0 E0.5"]
["G1 X150.0 E10.0"]
["G1 Y150.0 E0.5"]
["G0 F9000 Z1.5"]
["G1 F1000 X145.0 E0.5"]
["G1 Y50.0 E10.0"]
["G1 X140.0 E0.5"]
["G1 Y150.0 E10.0"]
["G1 X135.0 E0.5"]
["G1 Y50.0 E10.0"]
["G1 X130.0 E0.5"]
["G1 Y150.0 E10.0"]
["G1 X125.0 E0.5"]
["G1 Y50.0 E10.0"]
["G1 X120.0 E0.5"]
["G1 Y150.0 E10.0"]
["G1 X115.0 E0.5"]
["G1 Y50.0 E10.0"]
["G1 X110.0 E0.5"]
["G1 Y150.0 E10.0"]
["G1 X105.0 E0.5"]
["G1 Y50.0 E10.0"]
["G1 X100.0 E0.5"]
["G1 Y150.0 E10.0"]
["G1 X95.0 E0.5"]
["G1 Y50.0 E10.0"]
["G1 X90.0 E0.5"]
["G1 Y150.0 E10.0"]
["G1 X85.0 E0.5"]
["G1 Y50.0 E10.0"]
["G1 X80.0 E0.5"]
["G1 Y150.0 E10.0"]
["G1 X75.0 E0.5"]
["G1 Y50.0 E10.0"]
["G1 X70.0 E0.5"]
["G1 Y150.0 E10.0"]
["G1 X65.0 E0.5"]
["G1 Y50.0 E10.0"]
["G1 X60.0 E0.5"]
["G1 Y150.0 E10.0"]
["G1 X55.0 E0.5"]
["G1 Y50.0 E10.0"]
["G1 X50.0 E0.5"]
["G0 F9000 Z1.6"]
["G1 F1000 Y150.0 E10.0"]
["G1 X150.0 E10.0"]
["G1 Y50.0 E10.0"]
["G1 X50.0 E10.0"]
["G1 Y55.0 E0.5"]
["G1 X150.0 E10.0"]
["G1 Y60.0 E0.5"]
["G1 X50.0 E10.0"]
["G1 Y65.0 E0.5"]
["G1 X150.0 E10.0"]
["G1 Y70.0 E0.5"]
["G1 X50.0 E10.0"]
["G1 Y75.0 E0.5"]
["G1 X150.0 E10.0"]
["G1 Y80.0 E0.5"]
["G1 X50.0 E10.0"]
["G1 Y85.0 E0.5"]
["G1 X150.0 E10.0"]
["G1 Y90.0 E0.5"]
["G1 X50.0 E10.0"]
["G1 Y95.0 E0.5"]
["G1 X150.0 E10.0"]
["G1 Y100.0 E0.5"]
["G1 X50.0 E10.0"]
["G1 Y105.0 E0.5"]
["G1 X150.0 E10.0"]
["G1 Y110.0 E0.5"]
["G1 X50.0 E10.0"]
["G1 Y115.0 E0.5"]
["G1 X150.0 E10.0"]
["G1 Y120.0 E0.5"]
["G1 X50.0 E10.0"]
["G1 Y125.0 E0.5"]
["G1 X150.0 E10.0"]
["G1 Y130.0 E0.5"]
["G1 X50.0 E10.0"]
["G1 Y135.0 E0.5"]
["G1 X150.0 E10.0"]
["G1 Y140.0 E0.5"]
["G1 X50.0 E10.0"]
["G1 Y145.0 E0.5"]
["G1 X150.0 E10.0"]
["G1 Y150.0 E0.5"]
["G0 F9000 Z1.7"]
["G1 F1000 X145.0 E0.5"]
["G1 Y50.0 E10.0"]
["G1 X140.0 E0.5"]
["G1 Y150.0 E10.0"]
["G1 X135.0 E0.5"]
["G1 Y50.0 E10.0"]
["G1 X130.0 E0.5"]
["G1 Y150.0 E10.0"]
["G1 X125.0 E0.5"]
["G1 Y50.0 E10.0"]
["G1 X120.0 E0.5"]
["G1 Y150.0 E10.0"]
["G1 X115.0 E0.5"]
["G1 Y50.0 E10.0"]
["G1 X110.0 E0.5"]
["G1 Y150.0 E10.0"]
["G1 X105.0 E0.5"]
["G1 Y50.0 E10.0"]
["G1 X100.0 E0.5"]
["G1 Y150.0 E10.0"]
["G1 X95.0 E0.5"]
["G1 Y50.0 E10.0"]
["G1 X90.0 E0.5"]
["G1 Y150.0 E10.0"]
["G1 X85.0 E0.5"]
["G1 Y50.0 E10.0"]
["G1 X80.0 E0.5"]
["G1 Y150.0 E10.0"]
["G1 X75.0 E0.5"]
["G1 Y50.0 E10.0"]
["G1 X70.0 E0.5"]
["G1 Y150.0 E10.0"]
["G1 X65.0 E0.5"]
["G1 Y50.0 E10.0"]
["G1 X60.0 E0.5"]
["G1 Y150.0 E10.0"]
["G1 X55.0 E0.5"]
["G1 Y50.0 E10.0"]
["G1 X50.0 E0.5"]
["G0 F9000 Z1.8"]
["G1 F1000 Y150.0 E10.0"]
["G1 X150.0 E10.0"]
["G1 Y50.0 E10.0"]
["G1 X50.0 E10.0"]
["G1 Y55.0 E0.5"]
["G1 X150.0 E10.0"]
["G1 Y60.0 E0.5"]
["G1 X50.0 E10.0"]
["G1 Y65.0 E0.5"]
["G1 X150.0 E10.0"]
["G1 Y70.0 E0.5"]
["G1 X50.0 E10.0"]
["G1 Y75.0 E0.5"]
["G1 X150.0 E10.0"]
["G1 Y80.0 E0.5"]
["G1 X50.0 E10.0"]
["G1 Y85.0 E0.5"]
["G1 X150.0 E10.0"]
["G1 Y90.0 E0.5"]
["G1 X50.0 E10.0"]
["G1 Y95.0 E0.5"]
["G1 X150.0 E10.0"]
["G1 Y100.0 E0.5"]
["G1 X50.0 E10.0"]
["G1 Y105.0 E0.5"]
["G1 X150.0 E10.0"]
["G1 Y110.0 E0.5"]
["G1 X50.0 E10.0"]
["G1 Y115.0 E0.5"]
["G1 X150.0 E10.0"]
["G1 Y120.0 E0.5"]
["G1 X50.0 E10.0"]
["G1 Y125.0 E0.5"]
["G1 X150.0 E10.0"]
["G1 Y130.0 E0.5"]
["G1 X50.0 E10.0"]
["G1 Y135.0 E0.5"]
["G1 X150.0 E10.0"]
["G1 Y140.0 E0.5"]
["G1 X50.0 E10.0"]
["G1 Y145.0 E0.5"]
["G1 X150.0 E10.0"]
["G1 Y150.0 E0.5"]
["G0 F9000 Z1.9"]
["G1 F1000 X145.0 E0.5"]
["G1 Y50.0 E10.0"]
["G1 X140.0 E0.5"]
["G1 Y150.0 E10.0"]
["G1 X135.0 E0.5"]
["G1 Y50.0 E10.0"]
["G1 X130.0 E0.5"]
["G1 Y150.0 E10.0"]
["G1 X125.0 E0.5"]
["G1 Y50.0 E10.0"]
["G1 X120.0 E0.5"]
["G1 Y150.0 E10.0"]
["G1 X115.0 E0.5"]
["G1 Y50.0 E10.0"]
["G1 X110.0 E0.5"]
["G1 Y150.0 E10.0"]
["G1 X105.0 E0.5"]
["G1 Y50.0 E10.0"]
["G1 X100.0 E0.5"]
["G1 Y150.0 E10.0"]
["G1 X95.0 E0.5"]
["G1 Y50.0 E10.0"]
["G1 X90.0 E0.5"]
["G1 Y150.0 E10.0"]
["G1 X85.0 E0.5"]
["G1 Y50.0 E10.0"]
["G1 X80.0 E0.5"]
["G1 Y150.0 E10.0"]
["G1 X75.0 E0.5"]
["G1 Y50.0 E10.0"]
["G1 X70.0 E0.5"]
["G1 Y150.0 E10.0"]
["G1 X65.0 E0.5"]
["G1 Y50.0 E10.0"]
["G1 X60.0 E0.5"]
["G1 Y150.0 E10.0"]
["G1 X55.0 E0.5"]
["G1 Y50.0 E10.0"]
["G1 X50.0 E0.5"]
["G0 F9000 Z2.0"]
["G1 F1000 Y150.0 E10.0"]
["G1 X150.0 E10.0"]
["G1 Y50.0 E10.0"]
["G1 X50.0 E10.0"]
["G1 Y55.0 E0.5"]
["G1 X150.0 E10.0"]
["G1 Y60.0 E0.5"]
["G1 X50.0 E10.0"]
["G1 Y65.0 E0.5"]
["G1 X150.0 E10.0"]
["G1 Y70.0 E0.5"]
["G1 X50.0 E10.0"]
["G1 Y75.0 E0.5"]
["G1 X150.0 E10.0"]
["G1 Y80.0 E0.5"]
["G1 X50.0 E10.0"]
["G1 Y85.0 E0.5"]
["G1 X150.0 E10.0"]
["G1 Y90.0 E0.5"]
["G1 X50.0 E10.0"]
["G1 Y95.0 E0.5"]
["G1 X150.0 E10.0"]
["G1 Y100.0 E0.5"]
["G1 X50.0 E10.0"]
["G1 Y105.0 E0.5"]
["G1 X150.0 E10.0"]
["G1 Y110.0 E0.5"]
["G1 X50.0 E10.0"]
["G1 Y115.0 E0.5"]
["G1 X150.0 E10.0"]
["G1 Y120.0 E0.5"]
["G1 X50.0 E10.0"]
["G1 Y125.0 E0.5"]
["G1 X150.0 E10.0"]
["G1 Y130.0 E0.5"]
["G1 X50.0 E10.0"]
["G1 Y135.0 E0.5"]
["G1 X150.0 E10.0"]
["G1 Y140.0 E0.5"]
["G1 X50.0 E10.0"]
["G1 Y145.0 E0.5"]
["G1 X150.0 E10.0"]
["G1 Y150.0 E0.5"]
["G0 F9000 Z2.1"]
["G1 F1000 X145.0 E0.5"]
["G1 Y50.0 E10.0"]
["G1 X140.0 E0.5"]
["G1 Y150.0 E10.0"]
["G1 X135.0 E0.5"]
["G1 Y50.0 E10.0"]
["G1 X130.0 E0.5"]
["G1 Y150.0 E10.0"]
["G1 X125.0 E0.5"]
["G1 Y50.0 E10.0"]
["G1 X120.0 E0.5"]
["G1 Y150.0 E10.0"]
["G1 X115.0 E0.5"]
["G1 Y50.0 E10.0"]
["G1 X110.0 E0.5"]
["G1 Y150.0 E10.0"]
["G1 X105.0 E0.5"]
["G1 Y50.0 E10.0"]
["G1 X100.0 E0.5"]
["G1 Y150.0 E10.0"]
["G1 X95.0 E0.5"]
["G1 Y50.0 E10.0"]
["G1 X90.0 E0.5"]
["G1 Y150.0 E10.0"]
["G1 X85.0 E0.5"]
["G1 Y50.0 E10.0"]
["G1 X80.0 E0.5"]
["G1 Y150.0 E10.0"]
["G1 X75.0 E0.5"]
["G1 Y50.0 E10.0"]
["G1 X70.0 E0.5"]
["G1 Y150.0 E10.0"]
["G1 X65.0 E0.5"]
["G1 Y50.0 E10.0"]
["G1 X60.0 E0.5"]
["G1 Y150.0 E10.0"]
["G1 X55.0 E0.5"]
["G1 Y50.0 E10.0"]
["G1 X50.0 E0.5"]
[]
[";START OF THE END GCODE"]
[]
[";G10"]
["M107"]
[]
["M84"]
["M82 ;absolute extrusion mode"]
[";End of Gcode"]
[" "]
[" "]
[" "]
[]
[";Version _2.6 of the firmware can abort the print too early if the file ends"]
[";too soon. However if the file hasn't ended yet because there are comments at"]
[";the end of the file, it won't abort yet. Therefore we have to put at least 512"]
[";bytes at the end of the g-code so that the file is not yet finished by the"]
[";time that the motion planner gets flushed. With firmware version _3.3 this"]
[";should be fixed, so this comment wouldn't be necessary any more. Now we have"]
[";to pad this text to make precisely 512 bytes."]
[]
[";End of Gcode"]
[";SETTING_3 {\"global_quality\": \"[general]\\\\nversion = 3\\\\nname = Fine #2\\\\ndefini"]
[";SETTING_3 tion = ultimaker2_plus\\\\n\\\\n[metadata]\\\\nsetting_version = 4\\\\nqualit"]
[";SETTING_3 y_type = normal\\\\ntype = quality_changes\\\\n\\\\n[values]\\\\nadhesion_typ"]
[";SETTING_3 e = none\\\\nlayer_height = 0.2\\\\nlayer_height_0 = 0.3\\\\n\\\\n\", \"extrude"]
[";SETTING_3 r_quality\": [\"[general]\\\\nversion = 3\\\\nname = Fine #2\\\\ndefinition ="]
[";SETTING_3  ultimaker2_plus\\\\n\\\\n[metadata]\\\\nsetting_version = 4\\\\nquality_type"]
[";SETTING_3  = normal\\\\nposition = 0\\\\ntype = quality_changes\\\\n\\\\n[values]\\\\nlin"]
[";SETTING_3 e_width = 0.4\\\\nspeed_print = 25\\\\n\\\\n\"]}"]
[]
["; END OF END CODE"]

{"sheet":"Changelog","index":12,"n_rows":42,"n_cols":1,"rows_kept":42,"cut":false,"hidden":false,"merged":[]}
["Planned future code modifications:"]
["Change number format of equations to automatically use periods instead of commas for decimal points (regardless of computer regional settings ) and to avoid having excessive decimal places."]
[]
[]
[]
["Heron02c - 02/07/2021"]
["Corrected the title of the 'NomHeight' column in the printpath sheet"]
["Corrected typo bug in VBA code \"VBA_edit_004\""]
[]
[]
[]
[]
[]
[]
["Heron02b - 09/04/2021"]
["Minor change to the FeatParams sheet since one of the repeat rule features had the term \"X-centre\" accidentally replaced by incorrect text"]
["Minor change to the FeatParams sheet (added Note B to the Reproduce and recalculate feature)"]
["Edited two lines of VBA code \"VBA_edit_003\" to make sure the GCode respected the initial position of the nozzle after start GCode"]
[]
["How to transfer data from previous versions: Copy across your designs woksheets and the following worksheets if you edited them: StartGCODE, EndGCODE, ToolGCODE (choose 'Yes' if prompted by Excel about names already existing)"]
[]
[]
[]
["Heron02a - 02/04/2021"]
["Added VBA code \"VBA_edit_001\" to reset the printing speed parameter after a tool change to ensure that any F-commands in tool-change Gcode do not affect printing speed after the tool change"]
["The 'Lattice' demo design in 'FullControlPaperExamples' had a bug (missing parameter/feature links) which has now been fixed"]
["Added VBA code \"VBA_edit_002\" to detect if the computer is using commas as decimal places (and link to a guide to overcome this issue: bit.ly/3dteSmc)"]
["Added several example sets of start- and end-GCode (for reference)"]
[]
["How to transfer data from previous versions: Copy across your designs woksheets and the following worksheets if you edited them: StartGCODE, EndGCODE, ToolGCODE (choose 'Yes' if prompted by Excel about names already existing)"]
[]
[]
[]
["Heron01a - 09/11/2020"]
["Minor bug fix to prevent some user settings being deleted when new mathematical polar line features were added"]
[]
["How to transfer data from previous versions: Copy across your designs woksheets and the following worksheets if you edited them: StartGCODE, EndGCODE, ToolGCODE (choose 'Yes' if prompted by Excel about names already existing)"]
[]
[]
[]
["Heron01 - Sep 2020:"]
["Original shared version"]